Body Name,Body,Service Area Categorisation,Service Division Categorisation,Responsible Unit,Expenses Type,Detailed Expenses Type,Payment Date,Transaction Number,Payment Amount,Supplier Type,Supplier Name,Supplier Id
Portsmouth City Council,PCC,Children's and Education Services,Asylum seekers,Children's Services and Education,Third Party Payments,Other establishments,05-Jul-21,6515734,-42.88,SUPPLIER,SAKURA CARE LIMITED,300000020469343
Portsmouth City Council,PCC,Children's and Education Services,Asylum seekers,Children's Services and Education,Third Party Payments,Other establishments,05-Jul-21,6515734,370.71,SUPPLIER,SAKURA CARE LIMITED,300000020469343
Portsmouth City Council,PCC,Children's and Education Services,Asylum seekers,Children's Services and Education,Third Party Payments,Other establishments,05-Jul-21,6515734,741.43,SUPPLIER,SAKURA CARE LIMITED,300000020469343
Portsmouth City Council,PCC,Children's and Education Services,Asylum seekers,Children's Services and Education,Third Party Payments,Other establishments,05-Jul-21,6515734,"2,595.00",SUPPLIER,SAKURA CARE LIMITED,300000020469343
Portsmouth City Council,PCC,Children's and Education Services,Children Looked After,Children's Services and Education,Transport-Related Expenditure,Direct transport costs,14-Jul-21,6517363,-240,SUPPLIER,LEASEPLAN LTD T/A AUTOMOTIVE LEASING,300000020483966
Portsmouth City Council,PCC,Adult Social Care,Physical Support Older People (85+),Adult Services,Third Party Payments,Other establishments,13-Jul-21,6516955,"1,456.00",SUPPLIER,ABICARE SERVICES LTD,300000020470310
Portsmouth City Council,PCC,Adult Social Care,Physical Support Older People (85+),Adult Services,Third Party Payments,Other establishments,13-Jul-21,6516955,"1,961.68",SUPPLIER,ABICARE SERVICES LTD,300000020470310
Portsmouth City Council,PCC,Adult Social Care,Physical Support Adults (18 - 64),Adult Services,Third Party Payments,Other establishments,05-Jul-21,6515686,496.16,SUPPLIER,ACCESS CARE LTD,300000020464178
Portsmouth City Council,PCC,Adult Social Care,Physical Support Adults (18 - 64),Adult Services,Third Party Payments,Other establishments,05-Jul-21,6515686,"3,120.32",SUPPLIER,ACCESS CARE LTD,300000020464178
Portsmouth City Council,PCC,Housing Revenue Account,Special Services,"Housing, Neighbourhood and Building Services",Transport-Related Expenditure,Contract hire and operating leases,14-Jul-21,6517363,"-7,470.55",SUPPLIER,LEASEPLAN LTD T/A AUTOMOTIVE LEASING,300000020483966
Portsmouth City Council,PCC,Housing Revenue Account,"Rents, Rates, Taxes and Other Charges","Housing, Neighbourhood and Building Services",Premises-Related Expenditure,Rates,28-Jul-21,6520105,124,OTHER LOCAL AUTHORITY,HAVANT BOROUGH COUNCIL,300000020457057
Portsmouth City Council,PCC,Housing Revenue Account,"Rents, Rates, Taxes and Other Charges","Housing, Neighbourhood and Building Services",Premises-Related Expenditure,Rates,28-Jul-21,6520105,124,OTHER LOCAL AUTHORITY,HAVANT BOROUGH COUNCIL,300000020457057
Portsmouth City Council,PCC,Housing Revenue Account,"Rents, Rates, Taxes and Other Charges","Housing, Neighbourhood and Building Services",Premises-Related Expenditure,Rates,28-Jul-21,6520105,124,OTHER LOCAL AUTHORITY,HAVANT BOROUGH COUNCIL,300000020457057
Portsmouth City Council,PCC,Housing Revenue Account,"Rents, Rates, Taxes and Other Charges","Housing, Neighbourhood and Building Services",Premises-Related Expenditure,Rates,28-Jul-21,6520105,124,OTHER LOCAL AUTHORITY,HAVANT BOROUGH COUNCIL,300000020457057
Portsmouth City Council,PCC,Housing Revenue Account,"Rents, Rates, Taxes and Other Charges","Housing, Neighbourhood and Building Services",Premises-Related Expenditure,Rates,28-Jul-21,6520105,124,OTHER LOCAL AUTHORITY,HAVANT BOROUGH COUNCIL,300000020457057
Portsmouth City Council,PCC,Housing Revenue Account,"Rents, Rates, Taxes and Other Charges","Housing, Neighbourhood and Building Services",Premises-Related Expenditure,Rates,28-Jul-21,6520105,124,OTHER LOCAL AUTHORITY,HAVANT BOROUGH COUNCIL,300000020457057
Portsmouth City Council,PCC,Housing Revenue Account,"Rents, Rates, Taxes and Other Charges","Housing, Neighbourhood and Building Services",Premises-Related Expenditure,Rates,28-Jul-21,6520105,124,OTHER LOCAL AUTHORITY,HAVANT BOROUGH COUNCIL,300000020457057
Portsmouth City Council,PCC,Housing Revenue Account,"Rents, Rates, Taxes and Other Charges","Housing, Neighbourhood and Building Services",Premises-Related Expenditure,Rates,28-Jul-21,6520105,124,OTHER LOCAL AUTHORITY,HAVANT BOROUGH COUNCIL,300000020457057
Portsmouth City Council,PCC,Housing Revenue Account,"Rents, Rates, Taxes and Other Charges","Housing, Neighbourhood and Building Services",Premises-Related Expenditure,Rates,28-Jul-21,6520105,-124,OTHER LOCAL AUTHORITY,HAVANT BOROUGH COUNCIL,300000020457057
Portsmouth City Council,PCC,Housing Revenue Account,"Rents, Rates, Taxes and Other Charges","Housing, Neighbourhood and Building Services",Premises-Related Expenditure,Rates,28-Jul-21,6520105,124,OTHER LOCAL AUTHORITY,HAVANT BOROUGH COUNCIL,300000020457057
Portsmouth City Council,PCC,Housing Revenue Account,"Rents, Rates, Taxes and Other Charges","Housing, Neighbourhood and Building Services",Premises-Related Expenditure,Rates,28-Jul-21,6520105,248,OTHER LOCAL AUTHORITY,HAVANT BOROUGH COUNCIL,300000020457057
Portsmouth City Council,PCC,Housing Revenue Account,"Rents, Rates, Taxes and Other Charges","Housing, Neighbourhood and Building Services",Premises-Related Expenditure,Rates,28-Jul-21,6520105,76,OTHER LOCAL AUTHORITY,HAVANT BOROUGH COUNCIL,300000020457057
Portsmouth City Council,PCC,Housing Revenue Account,"Rents, Rates, Taxes and Other Charges","Housing, Neighbourhood and Building Services",Premises-Related Expenditure,Rates,28-Jul-21,6520105,124,OTHER LOCAL AUTHORITY,HAVANT BOROUGH COUNCIL,300000020457057
Portsmouth City Council,PCC,Housing Revenue Account,"Rents, Rates, Taxes and Other Charges","Housing, Neighbourhood and Building Services",Premises-Related Expenditure,Rates,28-Jul-21,6520105,124,OTHER LOCAL AUTHORITY,HAVANT BOROUGH COUNCIL,300000020457057
Portsmouth City Council,PCC,Housing Revenue Account,"Rents, Rates, Taxes and Other Charges","Housing, Neighbourhood and Building Services",Premises-Related Expenditure,Rates,28-Jul-21,6520105,124,OTHER LOCAL AUTHORITY,HAVANT BOROUGH COUNCIL,300000020457057
Portsmouth City Council,PCC,Housing Revenue Account,"Rents, Rates, Taxes and Other Charges","Housing, Neighbourhood and Building Services",Premises-Related Expenditure,Rates,28-Jul-21,6520105,124,OTHER LOCAL AUTHORITY,HAVANT BOROUGH COUNCIL,300000020457057
Portsmouth City Council,PCC,Housing Revenue Account,Special Services,"Housing, Neighbourhood and Building Services",Premises-Related Expenditure,Rates,28-Jul-21,6520105,394,OTHER LOCAL AUTHORITY,HAVANT BOROUGH COUNCIL,300000020457057
Portsmouth City Council,PCC,Housing Revenue Account,"Rents, Rates, Taxes and Other Charges","Housing, Neighbourhood and Building Services",Premises-Related Expenditure,Rates,23-Jul-21,6519248,124,OTHER LOCAL AUTHORITY,HAVANT BOROUGH COUNCIL,300000020457057
Portsmouth City Council,PCC,Housing Revenue Account,Supervision and Management,"Housing, Neighbourhood and Building Services",Premises-Related Expenditure,Rates,28-Jul-21,6520105,"3,174.00",OTHER LOCAL AUTHORITY,HAVANT BOROUGH COUNCIL,300000020457057
Portsmouth City Council,PCC,Housing Revenue Account,Supervision and Management,"Housing, Neighbourhood and Building Services",Premises-Related Expenditure,Rates,28-Jul-21,6520105,"1,198.00",OTHER LOCAL AUTHORITY,HAVANT BOROUGH COUNCIL,300000020457057
Portsmouth City Council,PCC,Housing Revenue Account,Special Services,"Housing, Neighbourhood and Building Services",Premises-Related Expenditure,Rates,28-Jul-21,6520105,51,OTHER LOCAL AUTHORITY,HAVANT BOROUGH COUNCIL,300000020457057
Portsmouth City Council,PCC,Children's and Education Services,Other Education and Community Budget,Children's Services and Education,Third Party Payments,Other establishments,21-Jul-21,6518365,65.84,SUPPLIER,PREPAID FINANCIAL SERVICES,300000020477745
Portsmouth City Council,PCC,Children's and Education Services,Other Education and Community Budget,Children's Services and Education,Third Party Payments,Other establishments,21-Jul-21,6518365,235,SUPPLIER,PREPAID FINANCIAL SERVICES,300000020477745
Portsmouth City Council,PCC,Children's and Education Services,Other Education and Community Budget,Children's Services and Education,Third Party Payments,Other establishments,21-Jul-21,6518365,228,SUPPLIER,PREPAID FINANCIAL SERVICES,300000020477745
Portsmouth City Council,PCC,Children's and Education Services,Other Education and Community Budget,Children's Services and Education,Third Party Payments,Other establishments,21-Jul-21,6518365,126.76,SUPPLIER,PREPAID FINANCIAL SERVICES,300000020477745
Portsmouth City Council,PCC,Children's and Education Services,Other Education and Community Budget,Children's Services and Education,Third Party Payments,Other establishments,21-Jul-21,6518365,103.63,SUPPLIER,PREPAID FINANCIAL SERVICES,300000020477745
Portsmouth City Council,PCC,Children's and Education Services,Other Education and Community Budget,Children's Services and Education,Third Party Payments,Other establishments,21-Jul-21,6518365,162.4,SUPPLIER,PREPAID FINANCIAL SERVICES,300000020477745
Portsmouth City Council,PCC,Children's and Education Services,Other Education and Community Budget,Children's Services and Education,Third Party Payments,Other establishments,21-Jul-21,6518365,20.8,SUPPLIER,PREPAID FINANCIAL SERVICES,300000020477745
Portsmouth City Council,PCC,Children's and Education Services,Other Education and Community Budget,Children's Services and Education,Third Party Payments,Other establishments,21-Jul-21,6518365,76,SUPPLIER,PREPAID FINANCIAL SERVICES,300000020477745
Portsmouth City Council,PCC,Children's and Education Services,Other Education and Community Budget,Children's Services and Education,Third Party Payments,Other establishments,21-Jul-21,6518365,201.91,SUPPLIER,PREPAID FINANCIAL SERVICES,300000020477745
Portsmouth City Council,PCC,Children's and Education Services,Other Education and Community Budget,Children's Services and Education,Third Party Payments,Other establishments,21-Jul-21,6518365,132.48,SUPPLIER,PREPAID FINANCIAL SERVICES,300000020477745
Portsmouth City Council,PCC,Children's and Education Services,Other Education and Community Budget,Children's Services and Education,Third Party Payments,Other establishments,21-Jul-21,6518365,107.1,SUPPLIER,PREPAID FINANCIAL SERVICES,300000020477745
Portsmouth City Council,PCC,Children's and Education Services,Other Education and Community Budget,Children's Services and Education,Third Party Payments,Other establishments,21-Jul-21,6518365,120.9,SUPPLIER,PREPAID FINANCIAL SERVICES,300000020477745
Portsmouth City Council,PCC,Children's and Education Services,Other Education and Community Budget,Children's Services and Education,Third Party Payments,Other establishments,21-Jul-21,6518365,196.64,SUPPLIER,PREPAID FINANCIAL SERVICES,300000020477745
Portsmouth City Council,PCC,Children's and Education Services,Other Education and Community Budget,Children's Services and Education,Third Party Payments,Other establishments,21-Jul-21,6518365,132.9,SUPPLIER,PREPAID FINANCIAL SERVICES,300000020477745
Portsmouth City Council,PCC,Children's and Education Services,Other Education and Community Budget,Children's Services and Education,Third Party Payments,Other establishments,21-Jul-21,6518365,525.96,SUPPLIER,PREPAID FINANCIAL SERVICES,300000020477745
Portsmouth City Council,PCC,Children's and Education Services,Other Education and Community Budget,Children's Services and Education,Third Party Payments,Other establishments,21-Jul-21,6518365,207.3,SUPPLIER,PREPAID FINANCIAL SERVICES,300000020477745
Portsmouth City Council,PCC,Children's and Education Services,Other Education and Community Budget,Children's Services and Education,Third Party Payments,Other establishments,21-Jul-21,6518365,193.45,SUPPLIER,PREPAID FINANCIAL SERVICES,300000020477745
Portsmouth City Council,PCC,Children's and Education Services,Other Education and Community Budget,Children's Services and Education,Third Party Payments,Other establishments,21-Jul-21,6518365,103.63,SUPPLIER,PREPAID FINANCIAL SERVICES,300000020477745
Portsmouth City Council,PCC,Children's and Education Services,Other Education and Community Budget,Children's Services and Education,Third Party Payments,Other establishments,21-Jul-21,6518365,101.25,SUPPLIER,PREPAID FINANCIAL SERVICES,300000020477745
Portsmouth City Council,PCC,Children's and Education Services,Other Education and Community Budget,Children's Services and Education,Third Party Payments,Other establishments,21-Jul-21,6518365,86.4,SUPPLIER,PREPAID FINANCIAL SERVICES,300000020477745
Portsmouth City Council,PCC,Children's and Education Services,Other Education and Community Budget,Children's Services and Education,Third Party Payments,Other establishments,21-Jul-21,6518365,100.19,SUPPLIER,PREPAID FINANCIAL SERVICES,300000020477745
Portsmouth City Council,PCC,Children's and Education Services,Other Education and Community Budget,Children's Services and Education,Third Party Payments,Other establishments,21-Jul-21,6518365,117.5,SUPPLIER,PREPAID FINANCIAL SERVICES,300000020477745
Portsmouth City Council,PCC,Children's and Education Services,Other Education and Community Budget,Children's Services and Education,Third Party Payments,Other establishments,21-Jul-21,6518365,224.54,SUPPLIER,PREPAID FINANCIAL SERVICES,300000020477745
Portsmouth City Council,PCC,Children's and Education Services,Other Education and Community Budget,Children's Services and Education,Third Party Payments,Other establishments,21-Jul-21,6518365,122.88,SUPPLIER,PREPAID FINANCIAL SERVICES,300000020477745
Portsmouth City Council,PCC,Children's and Education Services,Other Education and Community Budget,Children's Services and Education,Third Party Payments,Other establishments,21-Jul-21,6518365,84.72,SUPPLIER,PREPAID FINANCIAL SERVICES,300000020477745
Portsmouth City Council,PCC,Children's and Education Services,Other Education and Community Budget,Children's Services and Education,Third Party Payments,Other establishments,21-Jul-21,6518365,152,SUPPLIER,PREPAID FINANCIAL SERVICES,300000020477745
Portsmouth City Council,PCC,Children's and Education Services,Other Education and Community Budget,Children's Services and Education,Third Party Payments,Other establishments,21-Jul-21,6518365,51.8,SUPPLIER,PREPAID FINANCIAL SERVICES,300000020477745
Portsmouth City Council,PCC,Children's and Education Services,Other Education and Community Budget,Children's Services and Education,Third Party Payments,Other establishments,21-Jul-21,6518365,92.04,SUPPLIER,PREPAID FINANCIAL SERVICES,300000020477745
Portsmouth City Council,PCC,Children's and Education Services,Other Education and Community Budget,Children's Services and Education,Third Party Payments,Other establishments,21-Jul-21,6518365,206.55,SUPPLIER,PREPAID FINANCIAL SERVICES,300000020477745
Portsmouth City Council,PCC,Children's and Education Services,Other Education and Community Budget,Children's Services and Education,Third Party Payments,Other establishments,21-Jul-21,6518365,200.4,SUPPLIER,PREPAID FINANCIAL SERVICES,300000020477745
Portsmouth City Council,PCC,Children's and Education Services,Other Education and Community Budget,Children's Services and Education,Third Party Payments,Other establishments,21-Jul-21,6518365,114,SUPPLIER,PREPAID FINANCIAL SERVICES,300000020477745
Portsmouth City Council,PCC,Children's and Education Services,Other Education and Community Budget,Children's Services and Education,Third Party Payments,Other establishments,21-Jul-21,6518365,150.7,SUPPLIER,PREPAID FINANCIAL SERVICES,300000020477745
Portsmouth City Council,PCC,Children's and Education Services,Other Education and Community Budget,Children's Services and Education,Third Party Payments,Other establishments,21-Jul-21,6518365,243.2,SUPPLIER,PREPAID FINANCIAL SERVICES,300000020477745
Portsmouth City Council,PCC,Housing Revenue Account,"Rents, Rates, Taxes and Other Charges","Housing, Neighbourhood and Building Services",Premises-Related Expenditure,Rates,23-Jul-21,6519248,120,OTHER LOCAL AUTHORITY,HAVANT BOROUGH COUNCIL,300000020457057
Portsmouth City Council,PCC,Housing Revenue Account,Special Services,"Housing, Neighbourhood and Building Services",Premises-Related Expenditure,Rates,28-Jul-21,6520105,254,OTHER LOCAL AUTHORITY,HAVANT BOROUGH COUNCIL,300000020457057
Portsmouth City Council,PCC,Housing Revenue Account,Special Services,"Housing, Neighbourhood and Building Services",Premises-Related Expenditure,Rates,23-Jul-21,6519248,182,OTHER LOCAL AUTHORITY,HAVANT BOROUGH COUNCIL,300000020457057
Portsmouth City Council,PCC,Costs below Net Cost of Services,Trading,Regeneration,Premises-Related Expenditure,Rates,12-Jul-21,6516851,137,SUPPLIER,MANCHESTER CITY COUNCIL,300000112662644
Portsmouth City Council,PCC,Costs below Net Cost of Services,Trading,Regeneration,Premises-Related Expenditure,Rates,12-Jul-21,6516851,137,SUPPLIER,MANCHESTER CITY COUNCIL,300000112662644
Portsmouth City Council,PCC,Costs below Net Cost of Services,Trading,Regeneration,Premises-Related Expenditure,Rates,12-Jul-21,6516851,137,SUPPLIER,MANCHESTER CITY COUNCIL,300000112662644
Portsmouth City Council,PCC,Costs below Net Cost of Services,Trading,Regeneration,Premises-Related Expenditure,Rates,12-Jul-21,6516851,137,SUPPLIER,MANCHESTER CITY COUNCIL,300000112662644
Portsmouth City Council,PCC,Costs below Net Cost of Services,Trading,Regeneration,Premises-Related Expenditure,Rates,12-Jul-21,6516851,274,SUPPLIER,MANCHESTER CITY COUNCIL,300000112662644
Portsmouth City Council,PCC,Housing Revenue Account,"Rents, Rates, Taxes and Other Charges","Housing, Neighbourhood and Building Services",Premises-Related Expenditure,Rates,23-Jul-21,6519248,119,OTHER LOCAL AUTHORITY,HAVANT BOROUGH COUNCIL,300000020457057
Portsmouth City Council,PCC,Costs below Net Cost of Services,Trading,Regeneration,Premises-Related Expenditure,Rates,12-Jul-21,6516851,409,SUPPLIER,MANCHESTER CITY COUNCIL,300000112662644
Portsmouth City Council,PCC,Housing Revenue Account,"Rents, Rates, Taxes and Other Charges","Housing, Neighbourhood and Building Services",Premises-Related Expenditure,Rates,23-Jul-21,6519248,124,OTHER LOCAL AUTHORITY,HAVANT BOROUGH COUNCIL,300000020457057
Portsmouth City Council,PCC,Housing Revenue Account,"Rents, Rates, Taxes and Other Charges","Housing, Neighbourhood and Building Services",Premises-Related Expenditure,Rates,23-Jul-21,6519248,228,OTHER LOCAL AUTHORITY,HAVANT BOROUGH COUNCIL,300000020457057
Portsmouth City Council,PCC,Housing Revenue Account,"Rents, Rates, Taxes and Other Charges","Housing, Neighbourhood and Building Services",Premises-Related Expenditure,Rates,23-Jul-21,6519248,113,OTHER LOCAL AUTHORITY,HAVANT BOROUGH COUNCIL,300000020457057
Portsmouth City Council,PCC,Housing Revenue Account,"Rents, Rates, Taxes and Other Charges","Housing, Neighbourhood and Building Services",Premises-Related Expenditure,Rates,23-Jul-21,6519248,121,OTHER LOCAL AUTHORITY,HAVANT BOROUGH COUNCIL,300000020457057
Portsmouth City Council,PCC,Housing Revenue Account,Special Services,"Housing, Neighbourhood and Building Services",Premises-Related Expenditure,Rates,23-Jul-21,6519248,61,OTHER LOCAL AUTHORITY,HAVANT BOROUGH COUNCIL,300000020457057
Portsmouth City Council,PCC,Housing Revenue Account,"Rents, Rates, Taxes and Other Charges","Housing, Neighbourhood and Building Services",Premises-Related Expenditure,Rates,23-Jul-21,6519248,124,OTHER LOCAL AUTHORITY,HAVANT BOROUGH COUNCIL,300000020457057
Portsmouth City Council,PCC,Housing Revenue Account,Special Services,"Housing, Neighbourhood and Building Services",Premises-Related Expenditure,Rates,23-Jul-21,6519248,61,OTHER LOCAL AUTHORITY,HAVANT BOROUGH COUNCIL,300000020457057
Portsmouth City Council,PCC,Housing Revenue Account,Special Services,"Housing, Neighbourhood and Building Services",Premises-Related Expenditure,Rates,23-Jul-21,6519248,52,OTHER LOCAL AUTHORITY,HAVANT BOROUGH COUNCIL,300000020457057
Portsmouth City Council,PCC,Children's and Education Services,Family Support Services,Children's Services and Education,Third Party Payments,Other establishments,12-Jul-21,6516893,-875,PRIVATE PROVIDER,ATOZGS LTD,300000020468663
Portsmouth City Council,PCC,Children's and Education Services,Family Support Services,Children's Services and Education,Third Party Payments,Other establishments,12-Jul-21,6516893,"1,750.00",PRIVATE PROVIDER,ATOZGS LTD,300000020468663
Portsmouth City Council,PCC,Housing Revenue Account,"Rents, Rates, Taxes and Other Charges","Housing, Neighbourhood and Building Services",Premises-Related Expenditure,Rates,23-Jul-21,6519248,124,OTHER LOCAL AUTHORITY,HAVANT BOROUGH COUNCIL,300000020457057
Portsmouth City Council,PCC,Housing Revenue Account,"Rents, Rates, Taxes and Other Charges","Housing, Neighbourhood and Building Services",Premises-Related Expenditure,Rates,23-Jul-21,6519248,120,OTHER LOCAL AUTHORITY,HAVANT BOROUGH COUNCIL,300000020457057
Portsmouth City Council,PCC,Housing Revenue Account,"Rents, Rates, Taxes and Other Charges","Housing, Neighbourhood and Building Services",Premises-Related Expenditure,Rates,23-Jul-21,6519248,113,OTHER LOCAL AUTHORITY,HAVANT BOROUGH COUNCIL,300000020457057
Portsmouth City Council,PCC,Housing Revenue Account,"Rents, Rates, Taxes and Other Charges","Housing, Neighbourhood and Building Services",Premises-Related Expenditure,Rates,23-Jul-21,6519248,126,OTHER LOCAL AUTHORITY,HAVANT BOROUGH COUNCIL,300000020457057
Portsmouth City Council,PCC,Housing Revenue Account,"Rents, Rates, Taxes and Other Charges","Housing, Neighbourhood and Building Services",Premises-Related Expenditure,Rates,23-Jul-21,6519248,128,OTHER LOCAL AUTHORITY,HAVANT BOROUGH COUNCIL,300000020457057
Portsmouth City Council,PCC,Housing Revenue Account,"Rents, Rates, Taxes and Other Charges","Housing, Neighbourhood and Building Services",Premises-Related Expenditure,Rates,23-Jul-21,6519248,124,OTHER LOCAL AUTHORITY,HAVANT BOROUGH COUNCIL,300000020457057
Portsmouth City Council,PCC,Housing Revenue Account,"Rents, Rates, Taxes and Other Charges","Housing, Neighbourhood and Building Services",Premises-Related Expenditure,Rates,23-Jul-21,6519248,110,OTHER LOCAL AUTHORITY,HAVANT BOROUGH COUNCIL,300000020457057
Portsmouth City Council,PCC,Children's and Education Services,Asylum seekers,Children's Services and Education,Third Party Payments,Other establishments,01-Jul-21,6515466,-282.81,SUPPLIER,SAKURA CARE LIMITED,300000020469343
Portsmouth City Council,PCC,Children's and Education Services,Asylum seekers,Children's Services and Education,Third Party Payments,Other establishments,01-Jul-21,6515466,-292.33,SUPPLIER,SAKURA CARE LIMITED,300000020469343
Portsmouth City Council,PCC,Other,Suspense and Capital Schemes,Capital - Housing General Fund,Capital Charges,REFCUS,01-Jul-21,6515454,"4,315.00",SUPPLIER,D&T BATHROOMS LTD,300000020476584
Portsmouth City Council,PCC,Children's and Education Services,Safeguarding Children and Young Peoples Services,Children's Services and Education,Third Party Payments,Other establishments,01-Jul-21,6515466,-30,SUPPLIER,SAKURA CARE LIMITED,300000020469343
Portsmouth City Council,PCC,Children's and Education Services,Safeguarding Children and Young Peoples Services,Children's Services and Education,Third Party Payments,Other establishments,01-Jul-21,6515466,-7.14,SUPPLIER,SAKURA CARE LIMITED,300000020469343
Portsmouth City Council,PCC,Children's and Education Services,Safeguarding Children and Young Peoples Services,Children's Services and Education,Third Party Payments,Other establishments,01-Jul-21,6515466,-5.71,SUPPLIER,SAKURA CARE LIMITED,300000020469343
Portsmouth City Council,PCC,Children's and Education Services,Safeguarding Children and Young Peoples Services,Children's Services and Education,Third Party Payments,Other establishments,01-Jul-21,6515466,0.07,SUPPLIER,SAKURA CARE LIMITED,300000020469343
Portsmouth City Council,PCC,Children's and Education Services,Safeguarding Children and Young Peoples Services,Children's Services and Education,Third Party Payments,Other establishments,01-Jul-21,6515466,62.86,SUPPLIER,SAKURA CARE LIMITED,300000020469343
Portsmouth City Council,PCC,Children's and Education Services,Safeguarding Children and Young Peoples Services,Children's Services and Education,Third Party Payments,Other establishments,01-Jul-21,6515466,78.57,SUPPLIER,SAKURA CARE LIMITED,300000020469343
Portsmouth City Council,PCC,Children's and Education Services,Safeguarding Children and Young Peoples Services,Children's Services and Education,Third Party Payments,Other establishments,01-Jul-21,6515466,330,SUPPLIER,SAKURA CARE LIMITED,300000020469343
Portsmouth City Council,PCC,Children's and Education Services,Safeguarding Children and Young Peoples Services,Children's Services and Education,Third Party Payments,Other establishments,01-Jul-21,6515466,494.29,SUPPLIER,SAKURA CARE LIMITED,300000020469343
Portsmouth City Council,PCC,Children's and Education Services,Safeguarding Children and Young Peoples Services,Children's Services and Education,Third Party Payments,Other establishments,01-Jul-21,6515466,617.86,SUPPLIER,SAKURA CARE LIMITED,300000020469343
Portsmouth City Council,PCC,Children's and Education Services,Safeguarding Children and Young Peoples Services,Children's Services and Education,Third Party Payments,Other establishments,01-Jul-21,6515466,"2,595.00",SUPPLIER,SAKURA CARE LIMITED,300000020469343
Portsmouth City Council,PCC,Children's and Education Services,Asylum seekers,Children's Services and Education,Third Party Payments,Other establishments,01-Jul-21,6515460,-152.86,SUPPLIER,BUILDING FOUNDATIONS LIMITED,300000020474383
Portsmouth City Council,PCC,Children's and Education Services,Children Looked After,Children's Services and Education,Third Party Payments,Other establishments,01-Jul-21,6515426,-355.25,SUPPLIER,FOSTERING RELATIONS LIMITED,300000020475015
Portsmouth City Council,PCC,Children's and Education Services,Children Looked After,Children's Services and Education,Third Party Payments,Other establishments,01-Jul-21,6515426,507.43,SUPPLIER,FOSTERING RELATIONS LIMITED,300000020475015
Portsmouth City Council,PCC,Children's and Education Services,Children Looked After,Children's Services and Education,Third Party Payments,Other establishments,01-Jul-21,6515426,676.57,SUPPLIER,FOSTERING RELATIONS LIMITED,300000020475015
Portsmouth City Council,PCC,Children's and Education Services,Children Looked After,Children's Services and Education,Third Party Payments,Other establishments,01-Jul-21,6515426,"2,368.00",SUPPLIER,FOSTERING RELATIONS LIMITED,300000020475015
Portsmouth City Council,PCC,Children's and Education Services,Children Looked After,Children's Services and Education,Third Party Payments,Other establishments,01-Jul-21,6515426,-0.02,SUPPLIER,FOSTERING RELATIONS LIMITED,300000020475015
Portsmouth City Council,PCC,Children's and Education Services,Children Looked After,Children's Services and Education,Third Party Payments,Other establishments,01-Jul-21,6515426,507.43,SUPPLIER,FOSTERING RELATIONS LIMITED,300000020475015
Portsmouth City Council,PCC,Children's and Education Services,Children Looked After,Children's Services and Education,Third Party Payments,Other establishments,01-Jul-21,6515426,676.57,SUPPLIER,FOSTERING RELATIONS LIMITED,300000020475015
Portsmouth City Council,PCC,Children's and Education Services,Children Looked After,Children's Services and Education,Third Party Payments,Other establishments,01-Jul-21,6515456,-0.47,SUPPLIER,FAMILYPLACEMENT.COM LIMITED,300000020478905
Portsmouth City Council,PCC,Children's and Education Services,Children Looked After,Children's Services and Education,Third Party Payments,Other establishments,01-Jul-21,6515456,108.96,SUPPLIER,FAMILYPLACEMENT.COM LIMITED,300000020478905
Portsmouth City Council,PCC,Children's and Education Services,Children Looked After,Children's Services and Education,Third Party Payments,Other establishments,01-Jul-21,6515456,653.74,SUPPLIER,FAMILYPLACEMENT.COM LIMITED,300000020478905
Portsmouth City Council,PCC,Children's and Education Services,Children Looked After,Children's Services and Education,Third Party Payments,Other establishments,01-Jul-21,6515456,960,SUPPLIER,FAMILYPLACEMENT.COM LIMITED,300000020478905
Portsmouth City Council,PCC,Children's and Education Services,Children Looked After,Children's Services and Education,Third Party Payments,Other establishments,02-Jul-21,6515631,442.44,SUPPLIER,THE CHILDRENS FAMILY TRUST,300000020479545
Portsmouth City Council,PCC,Children's and Education Services,Children Looked After,Children's Services and Education,Third Party Payments,Other establishments,02-Jul-21,6515631,553.05,SUPPLIER,THE CHILDRENS FAMILY TRUST,300000020479545
Portsmouth City Council,PCC,Children's and Education Services,Children Looked After,Children's Services and Education,Third Party Payments,Other establishments,02-Jul-21,6515631,"2,322.81",SUPPLIER,THE CHILDRENS FAMILY TRUST,300000020479545
Portsmouth City Council,PCC,Children's and Education Services,Children Looked After,Children's Services and Education,Third Party Payments,Other establishments,02-Jul-21,6515631,-0.05,SUPPLIER,THE CHILDRENS FAMILY TRUST,300000020479545
Portsmouth City Council,PCC,Children's and Education Services,Children Looked After,Children's Services and Education,Third Party Payments,Other establishments,02-Jul-21,6515631,431.25,SUPPLIER,THE CHILDRENS FAMILY TRUST,300000020479545
Portsmouth City Council,PCC,Children's and Education Services,Children Looked After,Children's Services and Education,Third Party Payments,Other establishments,02-Jul-21,6515631,539.06,SUPPLIER,THE CHILDRENS FAMILY TRUST,300000020479545
Portsmouth City Council,PCC,Children's and Education Services,Children Looked After,Children's Services and Education,Third Party Payments,Other establishments,02-Jul-21,6515631,"2,264.04",SUPPLIER,THE CHILDRENS FAMILY TRUST,300000020479545
Portsmouth City Council,PCC,Children's and Education Services,Children Looked After,Children's Services and Education,Third Party Payments,Other establishments,02-Jul-21,6515631,-0.05,SUPPLIER,THE CHILDRENS FAMILY TRUST,300000020479545
Portsmouth City Council,PCC,Children's and Education Services,Children Looked After,Children's Services and Education,Third Party Payments,Other establishments,02-Jul-21,6515631,442.45,SUPPLIER,THE CHILDRENS FAMILY TRUST,300000020479545
Portsmouth City Council,PCC,Children's and Education Services,Children Looked After,Children's Services and Education,Third Party Payments,Other establishments,02-Jul-21,6515631,553.06,SUPPLIER,THE CHILDRENS FAMILY TRUST,300000020479545
Portsmouth City Council,PCC,Children's and Education Services,Children Looked After,Children's Services and Education,Third Party Payments,Other establishments,02-Jul-21,6515631,"2,322.84",SUPPLIER,THE CHILDRENS FAMILY TRUST,300000020479545
Portsmouth City Council,PCC,Children's and Education Services,Children Looked After,Children's Services and Education,Third Party Payments,Other establishments,02-Jul-21,6515631,-33.55,SUPPLIER,THE CHILDRENS FAMILY TRUST,300000020479545
Portsmouth City Council,PCC,Children's and Education Services,Children Looked After,Children's Services and Education,Third Party Payments,Other establishments,02-Jul-21,6515631,446.91,SUPPLIER,THE CHILDRENS FAMILY TRUST,300000020479545
Portsmouth City Council,PCC,Children's and Education Services,Children Looked After,Children's Services and Education,Third Party Payments,Other establishments,02-Jul-21,6515631,558.64,SUPPLIER,THE CHILDRENS FAMILY TRUST,300000020479545
Portsmouth City Council,PCC,Children's and Education Services,Children Looked After,Children's Services and Education,Third Party Payments,Other establishments,02-Jul-21,6515631,"2,346.30",SUPPLIER,THE CHILDRENS FAMILY TRUST,300000020479545
Portsmouth City Council,PCC,Children's and Education Services,Children Looked After,Children's Services and Education,Third Party Payments,Other establishments,02-Jul-21,6515631,438,SUPPLIER,THE CHILDRENS FAMILY TRUST,300000020479545
Portsmouth City Council,PCC,Children's and Education Services,Children Looked After,Children's Services and Education,Third Party Payments,Other establishments,02-Jul-21,6515631,547.5,SUPPLIER,THE CHILDRENS FAMILY TRUST,300000020479545
Portsmouth City Council,PCC,Children's and Education Services,Children Looked After,Children's Services and Education,Third Party Payments,Other establishments,02-Jul-21,6515631,"2,299.50",SUPPLIER,THE CHILDRENS FAMILY TRUST,300000020479545
Portsmouth City Council,PCC,Children's and Education Services,Safeguarding Children and Young Peoples Services,Children's Services and Education,Third Party Payments,Other establishments,01-Jul-21,6515460,-0.01,SUPPLIER,BUILDING FOUNDATIONS LIMITED,300000020474383
Portsmouth City Council,PCC,Children's and Education Services,Safeguarding Children and Young Peoples Services,Children's Services and Education,Third Party Payments,Other establishments,01-Jul-21,6515460,71.43,SUPPLIER,BUILDING FOUNDATIONS LIMITED,300000020474383
Portsmouth City Council,PCC,Children's and Education Services,Safeguarding Children and Young Peoples Services,Children's Services and Education,Third Party Payments,Other establishments,01-Jul-21,6515460,89.29,SUPPLIER,BUILDING FOUNDATIONS LIMITED,300000020474383
Portsmouth City Council,PCC,Children's and Education Services,Safeguarding Children and Young Peoples Services,Children's Services and Education,Third Party Payments,Other establishments,01-Jul-21,6515460,375,SUPPLIER,BUILDING FOUNDATIONS LIMITED,300000020474383
Portsmouth City Council,PCC,Children's and Education Services,Safeguarding Children and Young Peoples Services,Children's Services and Education,Third Party Payments,Other establishments,01-Jul-21,6515460,357.14,SUPPLIER,BUILDING FOUNDATIONS LIMITED,300000020474383
Portsmouth City Council,PCC,Children's and Education Services,Safeguarding Children and Young Peoples Services,Children's Services and Education,Third Party Payments,Other establishments,01-Jul-21,6515460,446.43,SUPPLIER,BUILDING FOUNDATIONS LIMITED,300000020474383
Portsmouth City Council,PCC,Children's and Education Services,Safeguarding Children and Young Peoples Services,Children's Services and Education,Third Party Payments,Other establishments,01-Jul-21,6515460,"1,875.00",SUPPLIER,BUILDING FOUNDATIONS LIMITED,300000020474383
Portsmouth City Council,PCC,Housing Services,Homelessness,"Housing, Neighbourhood and Building Services",Premises-Related Expenditure,Rents,30-Jul-21,6520763,"6,000.00",SUPPLIER,K H PROPERTY INVESTMENT LIMITED,300000020467836
Portsmouth City Council,PCC,Adult Social Care,Physical Support Older People (85+),Adult Services,Third Party Payments,Other establishments,21-Jul-21,6518898,43.35,SUPPLIER,ADMIRAL CARE LTD,300000020477405
Portsmouth City Council,PCC,Adult Social Care,Physical Support Older People (85+),Adult Services,Third Party Payments,Other establishments,21-Jul-21,6518898,53.28,SUPPLIER,ADMIRAL CARE LTD,300000020477405
Portsmouth City Council,PCC,Adult Social Care,Physical Support Older People (85+),Adult Services,Third Party Payments,Other establishments,21-Jul-21,6518898,53.28,SUPPLIER,ADMIRAL CARE LTD,300000020477405
Portsmouth City Council,PCC,Adult Social Care,Mental Health Support Older People (65 - 74),Adult Services,Third Party Payments,Other establishments,21-Jul-21,6518898,71.04,SUPPLIER,ADMIRAL CARE LTD,300000020477405
Portsmouth City Council,PCC,Adult Social Care,Mental Health Support Older People (65 - 74),Adult Services,Third Party Payments,Other establishments,21-Jul-21,6518898,71.04,SUPPLIER,ADMIRAL CARE LTD,300000020477405
Portsmouth City Council,PCC,Adult Social Care,Physical Support Older People (85+),Adult Services,Third Party Payments,Other establishments,21-Jul-21,6518898,111,SUPPLIER,ADMIRAL CARE LTD,300000020477405
Portsmouth City Council,PCC,Adult Social Care,Physical Support Older People (85+),Adult Services,Third Party Payments,Other establishments,21-Jul-21,6518898,111,SUPPLIER,ADMIRAL CARE LTD,300000020477405
Portsmouth City Council,PCC,Adult Social Care,Mental Health Support Older People (65 - 74),Adult Services,Third Party Payments,Other establishments,21-Jul-21,6518898,124.32,SUPPLIER,ADMIRAL CARE LTD,300000020477405
Portsmouth City Council,PCC,Adult Social Care,Mental Health Support Older People (65 - 74),Adult Services,Third Party Payments,Other establishments,21-Jul-21,6518898,142.08,SUPPLIER,ADMIRAL CARE LTD,300000020477405
Portsmouth City Council,PCC,Adult Social Care,Mental Health Support Older People (65 - 74),Adult Services,Third Party Payments,Other establishments,21-Jul-21,6518898,142.08,SUPPLIER,ADMIRAL CARE LTD,300000020477405
Portsmouth City Council,PCC,Adult Social Care,Mental Health Support Older People (65 - 74),Adult Services,Third Party Payments,Other establishments,21-Jul-21,6518898,142.08,SUPPLIER,ADMIRAL CARE LTD,300000020477405
Portsmouth City Council,PCC,Adult Social Care,Mental Health Support Older People (65 - 74),Adult Services,Third Party Payments,Other establishments,21-Jul-21,6518898,142.08,SUPPLIER,ADMIRAL CARE LTD,300000020477405
Portsmouth City Council,PCC,Adult Social Care,Physical Support Older People (85+),Adult Services,Third Party Payments,Other establishments,21-Jul-21,6518898,173.4,SUPPLIER,ADMIRAL CARE LTD,300000020477405
Portsmouth City Council,PCC,Housing Revenue Account,"Rents, Rates, Taxes and Other Charges","Housing, Neighbourhood and Building Services",Premises-Related Expenditure,Rates,23-Jul-21,6519248,131,OTHER LOCAL AUTHORITY,HAVANT BOROUGH COUNCIL,300000020457057
Portsmouth City Council,PCC,Housing Revenue Account,"Rents, Rates, Taxes and Other Charges","Housing, Neighbourhood and Building Services",Premises-Related Expenditure,Rates,23-Jul-21,6519248,132,OTHER LOCAL AUTHORITY,HAVANT BOROUGH COUNCIL,300000020457057
Portsmouth City Council,PCC,Children's and Education Services,Asylum seekers,Children's Services and Education,Third Party Payments,Other establishments,01-Jul-21,6515466,-521.64,SUPPLIER,SAKURA CARE LIMITED,300000020469343
Portsmouth City Council,PCC,Children's and Education Services,Asylum seekers,Children's Services and Education,Third Party Payments,Other establishments,01-Jul-21,6515466,-488.56,SUPPLIER,SAKURA CARE LIMITED,300000020469343
Portsmouth City Council,PCC,Children's and Education Services,Asylum seekers,Children's Services and Education,Third Party Payments,Other establishments,01-Jul-21,6515466,-33.08,SUPPLIER,SAKURA CARE LIMITED,300000020469343
Portsmouth City Council,PCC,Children's and Education Services,Asylum seekers,Children's Services and Education,Third Party Payments,Other establishments,01-Jul-21,6515466,521.64,SUPPLIER,SAKURA CARE LIMITED,300000020469343
Portsmouth City Council,PCC,Children's and Education Services,Asylum seekers,Children's Services and Education,Third Party Payments,Other establishments,01-Jul-21,6515466,-199.63,SUPPLIER,SAKURA CARE LIMITED,300000020469343
Portsmouth City Council,PCC,Children's and Education Services,Asylum seekers,Children's Services and Education,Third Party Payments,Other establishments,01-Jul-21,6515466,-115.8,SUPPLIER,SAKURA CARE LIMITED,300000020469343
Portsmouth City Council,PCC,Children's and Education Services,Asylum seekers,Children's Services and Education,Third Party Payments,Other establishments,01-Jul-21,6515466,-49.63,SUPPLIER,SAKURA CARE LIMITED,300000020469343
Portsmouth City Council,PCC,Children's and Education Services,Asylum seekers,Children's Services and Education,Third Party Payments,Other establishments,01-Jul-21,6515466,-41.36,SUPPLIER,SAKURA CARE LIMITED,300000020469343
Portsmouth City Council,PCC,Children's and Education Services,Asylum seekers,Children's Services and Education,Third Party Payments,Other establishments,01-Jul-21,6515466,-20,SUPPLIER,SAKURA CARE LIMITED,300000020469343
Portsmouth City Council,PCC,Children's and Education Services,Asylum seekers,Children's Services and Education,Third Party Payments,Other establishments,01-Jul-21,6515466,-8.57,SUPPLIER,SAKURA CARE LIMITED,300000020469343
Portsmouth City Council,PCC,Children's and Education Services,Asylum seekers,Children's Services and Education,Third Party Payments,Other establishments,01-Jul-21,6515466,-7.14,SUPPLIER,SAKURA CARE LIMITED,300000020469343
Portsmouth City Council,PCC,Children's and Education Services,Asylum seekers,Children's Services and Education,Third Party Payments,Other establishments,01-Jul-21,6515466,7.14,SUPPLIER,SAKURA CARE LIMITED,300000020469343
Portsmouth City Council,PCC,Children's and Education Services,Asylum seekers,Children's Services and Education,Third Party Payments,Other establishments,01-Jul-21,6515466,8.57,SUPPLIER,SAKURA CARE LIMITED,300000020469343
Portsmouth City Council,PCC,Children's and Education Services,Asylum seekers,Children's Services and Education,Third Party Payments,Other establishments,01-Jul-21,6515466,20,SUPPLIER,SAKURA CARE LIMITED,300000020469343
Portsmouth City Council,PCC,Children's and Education Services,Asylum seekers,Children's Services and Education,Third Party Payments,Other establishments,01-Jul-21,6515466,41.36,SUPPLIER,SAKURA CARE LIMITED,300000020469343
Portsmouth City Council,PCC,Children's and Education Services,Asylum seekers,Children's Services and Education,Third Party Payments,Other establishments,01-Jul-21,6515466,49.63,SUPPLIER,SAKURA CARE LIMITED,300000020469343
Portsmouth City Council,PCC,Children's and Education Services,Asylum seekers,Children's Services and Education,Third Party Payments,Other establishments,01-Jul-21,6515466,115.8,SUPPLIER,SAKURA CARE LIMITED,300000020469343
Portsmouth City Council,PCC,Children's and Education Services,Asylum seekers,Children's Services and Education,Third Party Payments,Other establishments,01-Jul-21,6515466,199.63,SUPPLIER,SAKURA CARE LIMITED,300000020469343
Portsmouth City Council,PCC,Children's and Education Services,Asylum seekers,Children's Services and Education,Third Party Payments,Other establishments,01-Jul-21,6515466,370.71,SUPPLIER,SAKURA CARE LIMITED,300000020469343
Portsmouth City Council,PCC,Children's and Education Services,Asylum seekers,Children's Services and Education,Third Party Payments,Other establishments,01-Jul-21,6515466,617.86,SUPPLIER,SAKURA CARE LIMITED,300000020469343
Portsmouth City Council,PCC,Children's and Education Services,Asylum seekers,Children's Services and Education,Third Party Payments,Other establishments,01-Jul-21,6515466,741.43,SUPPLIER,SAKURA CARE LIMITED,300000020469343
Portsmouth City Council,PCC,Children's and Education Services,Asylum seekers,Children's Services and Education,Third Party Payments,Other establishments,01-Jul-21,6515466,"1,730.00",SUPPLIER,SAKURA CARE LIMITED,300000020469343
Portsmouth City Council,PCC,Children's and Education Services,Asylum seekers,Children's Services and Education,Third Party Payments,Other establishments,02-Jul-21,6515649,123.25,SUPPLIER,FAMILY FIRST FOSTERING,300000020483859
Portsmouth City Council,PCC,Children's and Education Services,Asylum seekers,Children's Services and Education,Third Party Payments,Other establishments,02-Jul-21,6515649,246.5,SUPPLIER,FAMILY FIRST FOSTERING,300000020483859
Portsmouth City Council,PCC,Children's and Education Services,Asylum seekers,Children's Services and Education,Third Party Payments,Other establishments,02-Jul-21,6515649,"3,451.00",SUPPLIER,FAMILY FIRST FOSTERING,300000020483859
Portsmouth City Council,PCC,Children's and Education Services,Asylum seekers,Children's Services and Education,Third Party Payments,Other establishments,02-Jul-21,6515649,123.25,SUPPLIER,FAMILY FIRST FOSTERING,300000020483859
Portsmouth City Council,PCC,Children's and Education Services,Asylum seekers,Children's Services and Education,Third Party Payments,Other establishments,02-Jul-21,6515649,246.5,SUPPLIER,FAMILY FIRST FOSTERING,300000020483859
Portsmouth City Council,PCC,Children's and Education Services,Asylum seekers,Children's Services and Education,Third Party Payments,Other establishments,02-Jul-21,6515649,"3,451.00",SUPPLIER,FAMILY FIRST FOSTERING,300000020483859
Portsmouth City Council,PCC,Children's and Education Services,Safeguarding Children and Young Peoples Services,Children's Services and Education,Third Party Payments,Other establishments,02-Jul-21,6515649,-256.5,SUPPLIER,FAMILY FIRST FOSTERING,300000020483859
Portsmouth City Council,PCC,Children's and Education Services,Safeguarding Children and Young Peoples Services,Children's Services and Education,Third Party Payments,Other establishments,02-Jul-21,6515649,8.27,SUPPLIER,FAMILY FIRST FOSTERING,300000020483859
Portsmouth City Council,PCC,Children's and Education Services,Safeguarding Children and Young Peoples Services,Children's Services and Education,Third Party Payments,Other establishments,02-Jul-21,6515649,16.54,SUPPLIER,FAMILY FIRST FOSTERING,300000020483859
Portsmouth City Council,PCC,Children's and Education Services,Safeguarding Children and Young Peoples Services,Children's Services and Education,Third Party Payments,Other establishments,02-Jul-21,6515649,231.6,SUPPLIER,FAMILY FIRST FOSTERING,300000020483859
Portsmouth City Council,PCC,Children's and Education Services,Safeguarding Children and Young Peoples Services,Children's Services and Education,Third Party Payments,Other establishments,02-Jul-21,6515649,71.43,SUPPLIER,FAMILY FIRST FOSTERING,300000020483859
Portsmouth City Council,PCC,Children's and Education Services,Safeguarding Children and Young Peoples Services,Children's Services and Education,Third Party Payments,Other establishments,02-Jul-21,6515649,142.86,SUPPLIER,FAMILY FIRST FOSTERING,300000020483859
Portsmouth City Council,PCC,Children's and Education Services,Safeguarding Children and Young Peoples Services,Children's Services and Education,Third Party Payments,Other establishments,02-Jul-21,6515649,"2,000.00",SUPPLIER,FAMILY FIRST FOSTERING,300000020483859
Portsmouth City Council,PCC,Children's and Education Services,Safeguarding Children and Young Peoples Services,Children's Services and Education,Third Party Payments,Other establishments,02-Jul-21,6515648,-221.43,SUPPLIER,LOVE146,300000020473545
Portsmouth City Council,PCC,Children's and Education Services,Safeguarding Children and Young Peoples Services,Children's Services and Education,Third Party Payments,Other establishments,02-Jul-21,6515648,7.14,SUPPLIER,LOVE146,300000020473545
Portsmouth City Council,PCC,Children's and Education Services,Safeguarding Children and Young Peoples Services,Children's Services and Education,Third Party Payments,Other establishments,02-Jul-21,6515648,14.29,SUPPLIER,LOVE146,300000020473545
Portsmouth City Council,PCC,Children's and Education Services,Safeguarding Children and Young Peoples Services,Children's Services and Education,Third Party Payments,Other establishments,02-Jul-21,6515648,200,SUPPLIER,LOVE146,300000020473545
Portsmouth City Council,PCC,Children's and Education Services,Safeguarding Children and Young Peoples Services,Children's Services and Education,Third Party Payments,Other establishments,02-Jul-21,6515648,92.86,SUPPLIER,LOVE146,300000020473545
Portsmouth City Council,PCC,Children's and Education Services,Safeguarding Children and Young Peoples Services,Children's Services and Education,Third Party Payments,Other establishments,02-Jul-21,6515648,185.71,SUPPLIER,LOVE146,300000020473545
Portsmouth City Council,PCC,Children's and Education Services,Safeguarding Children and Young Peoples Services,Children's Services and Education,Third Party Payments,Other establishments,02-Jul-21,6515648,"2,600.00",SUPPLIER,LOVE146,300000020473545
Portsmouth City Council,PCC,Children's and Education Services,Children Looked After,Children's Services and Education,Third Party Payments,Other establishments,02-Jul-21,6515596,0.02,SUPPLIER,FOSTERING SOLUTIONS,300000009793967
Portsmouth City Council,PCC,Children's and Education Services,Children Looked After,Children's Services and Education,Third Party Payments,Other establishments,02-Jul-21,6515596,101.97,SUPPLIER,FOSTERING SOLUTIONS,300000009793967
Portsmouth City Council,PCC,Children's and Education Services,Children Looked After,Children's Services and Education,Third Party Payments,Other establishments,02-Jul-21,6515596,203.95,SUPPLIER,FOSTERING SOLUTIONS,300000009793967
Portsmouth City Council,PCC,Children's and Education Services,Children Looked After,Children's Services and Education,Third Party Payments,Other establishments,02-Jul-21,6515596,"2,855.24",SUPPLIER,FOSTERING SOLUTIONS,300000009793967
Portsmouth City Council,PCC,Children's and Education Services,Children Looked After,Children's Services and Education,Third Party Payments,Other establishments,02-Jul-21,6515596,0.77,SUPPLIER,FOSTERING SOLUTIONS,300000009793967
Portsmouth City Council,PCC,Children's and Education Services,Children Looked After,Children's Services and Education,Third Party Payments,Other establishments,02-Jul-21,6515596,101.95,SUPPLIER,FOSTERING SOLUTIONS,300000009793967
Portsmouth City Council,PCC,Children's and Education Services,Children Looked After,Children's Services and Education,Third Party Payments,Other establishments,02-Jul-21,6515596,203.9,SUPPLIER,FOSTERING SOLUTIONS,300000009793967
Portsmouth City Council,PCC,Children's and Education Services,Children Looked After,Children's Services and Education,Third Party Payments,Other establishments,02-Jul-21,6515596,"2,854.56",SUPPLIER,FOSTERING SOLUTIONS,300000009793967
Portsmouth City Council,PCC,Children's and Education Services,Children Looked After,Children's Services and Education,Third Party Payments,Other establishments,02-Jul-21,6515596,0.06,SUPPLIER,FOSTERING SOLUTIONS,300000009793967
Portsmouth City Council,PCC,Children's and Education Services,Children Looked After,Children's Services and Education,Third Party Payments,Other establishments,02-Jul-21,6515596,107.34,SUPPLIER,FOSTERING SOLUTIONS,300000009793967
Portsmouth City Council,PCC,Children's and Education Services,Children Looked After,Children's Services and Education,Third Party Payments,Other establishments,02-Jul-21,6515596,214.68,SUPPLIER,FOSTERING SOLUTIONS,300000009793967
Portsmouth City Council,PCC,Children's and Education Services,Children Looked After,Children's Services and Education,Third Party Payments,Other establishments,02-Jul-21,6515596,"3,005.48",SUPPLIER,FOSTERING SOLUTIONS,300000009793967
Portsmouth City Council,PCC,Children's and Education Services,Safeguarding Children and Young Peoples Services,Children's Services and Education,Third Party Payments,Other establishments,02-Jul-21,6515596,-0.04,SUPPLIER,FOSTERING SOLUTIONS,300000009793967
Portsmouth City Council,PCC,Children's and Education Services,Safeguarding Children and Young Peoples Services,Children's Services and Education,Third Party Payments,Other establishments,02-Jul-21,6515596,63.57,SUPPLIER,FOSTERING SOLUTIONS,300000009793967
Portsmouth City Council,PCC,Children's and Education Services,Safeguarding Children and Young Peoples Services,Children's Services and Education,Third Party Payments,Other establishments,02-Jul-21,6515596,127.14,SUPPLIER,FOSTERING SOLUTIONS,300000009793967
Portsmouth City Council,PCC,Children's and Education Services,Safeguarding Children and Young Peoples Services,Children's Services and Education,Third Party Payments,Other establishments,02-Jul-21,6515596,"1,780.00",SUPPLIER,FOSTERING SOLUTIONS,300000009793967
Portsmouth City Council,PCC,Children's and Education Services,Children Looked After,Children's Services and Education,Third Party Payments,Other establishments,02-Jul-21,6515596,0.06,SUPPLIER,FOSTERING SOLUTIONS,300000009793967
Portsmouth City Council,PCC,Children's and Education Services,Children Looked After,Children's Services and Education,Third Party Payments,Other establishments,02-Jul-21,6515596,107.34,SUPPLIER,FOSTERING SOLUTIONS,300000009793967
Portsmouth City Council,PCC,Children's and Education Services,Children Looked After,Children's Services and Education,Third Party Payments,Other establishments,02-Jul-21,6515596,214.68,SUPPLIER,FOSTERING SOLUTIONS,300000009793967
Portsmouth City Council,PCC,Children's and Education Services,Children Looked After,Children's Services and Education,Third Party Payments,Other establishments,02-Jul-21,6515596,"3,005.48",SUPPLIER,FOSTERING SOLUTIONS,300000009793967
Portsmouth City Council,PCC,Children's and Education Services,Children Looked After,Children's Services and Education,Third Party Payments,Other establishments,02-Jul-21,6515596,0.07,SUPPLIER,FOSTERING SOLUTIONS,300000009793967
Portsmouth City Council,PCC,Children's and Education Services,Children Looked After,Children's Services and Education,Third Party Payments,Other establishments,02-Jul-21,6515596,101.97,SUPPLIER,FOSTERING SOLUTIONS,300000009793967
Portsmouth City Council,PCC,Children's and Education Services,Children Looked After,Children's Services and Education,Third Party Payments,Other establishments,02-Jul-21,6515596,203.94,SUPPLIER,FOSTERING SOLUTIONS,300000009793967
Portsmouth City Council,PCC,Children's and Education Services,Children Looked After,Children's Services and Education,Third Party Payments,Other establishments,02-Jul-21,6515596,"2,855.20",SUPPLIER,FOSTERING SOLUTIONS,300000009793967
Portsmouth City Council,PCC,Children's and Education Services,Family Support Services,Children's Services and Education,Third Party Payments,Other establishments,02-Jul-21,6515650,700,PRIVATE PROVIDER,WATERFIELDS LETTINGS LTD,300000020474297
Portsmouth City Council,PCC,Children's and Education Services,Safeguarding Children and Young Peoples Services,Children's Services and Education,Third Party Payments,Other establishments,05-Jul-21,6515738,-30,SUPPLIER,LILIAN DAVIS GROUP LTD,300000020467263
Portsmouth City Council,PCC,Children's and Education Services,Safeguarding Children and Young Peoples Services,Children's Services and Education,Third Party Payments,Other establishments,05-Jul-21,6515738,-7.14,SUPPLIER,LILIAN DAVIS GROUP LTD,300000020467263
Portsmouth City Council,PCC,Children's and Education Services,Safeguarding Children and Young Peoples Services,Children's Services and Education,Third Party Payments,Other establishments,05-Jul-21,6515738,-5.71,SUPPLIER,LILIAN DAVIS GROUP LTD,300000020467263
Portsmouth City Council,PCC,Children's and Education Services,Safeguarding Children and Young Peoples Services,Children's Services and Education,Third Party Payments,Other establishments,05-Jul-21,6515738,33.09,SUPPLIER,LILIAN DAVIS GROUP LTD,300000020467263
Portsmouth City Council,PCC,Children's and Education Services,Safeguarding Children and Young Peoples Services,Children's Services and Education,Third Party Payments,Other establishments,05-Jul-21,6515738,41.36,SUPPLIER,LILIAN DAVIS GROUP LTD,300000020467263
Portsmouth City Council,PCC,Children's and Education Services,Safeguarding Children and Young Peoples Services,Children's Services and Education,Third Party Payments,Other establishments,05-Jul-21,6515738,173.7,SUPPLIER,LILIAN DAVIS GROUP LTD,300000020467263
Portsmouth City Council,PCC,Children's and Education Services,Safeguarding Children and Young Peoples Services,Children's Services and Education,Third Party Payments,Other establishments,05-Jul-21,6515738,100,SUPPLIER,LILIAN DAVIS GROUP LTD,300000020467263
Portsmouth City Council,PCC,Children's and Education Services,Safeguarding Children and Young Peoples Services,Children's Services and Education,Third Party Payments,Other establishments,05-Jul-21,6515738,125,SUPPLIER,LILIAN DAVIS GROUP LTD,300000020467263
Portsmouth City Council,PCC,Children's and Education Services,Safeguarding Children and Young Peoples Services,Children's Services and Education,Third Party Payments,Other establishments,05-Jul-21,6515738,525,SUPPLIER,LILIAN DAVIS GROUP LTD,300000020467263
Portsmouth City Council,PCC,Children's and Education Services,Safeguarding Children and Young Peoples Services,Children's Services and Education,Third Party Payments,Other establishments,05-Jul-21,6515738,228.57,SUPPLIER,LILIAN DAVIS GROUP LTD,300000020467263
Portsmouth City Council,PCC,Children's and Education Services,Safeguarding Children and Young Peoples Services,Children's Services and Education,Third Party Payments,Other establishments,05-Jul-21,6515738,285.71,SUPPLIER,LILIAN DAVIS GROUP LTD,300000020467263
Portsmouth City Council,PCC,Children's and Education Services,Safeguarding Children and Young Peoples Services,Children's Services and Education,Third Party Payments,Other establishments,05-Jul-21,6515738,"1,200.00",SUPPLIER,LILIAN DAVIS GROUP LTD,300000020467263
Portsmouth City Council,PCC,Children's and Education Services,Safeguarding Children and Young Peoples Services,Children's Services and Education,Third Party Payments,Other establishments,05-Jul-21,6515738,-30,SUPPLIER,LILIAN DAVIS GROUP LTD,300000020467263
Portsmouth City Council,PCC,Children's and Education Services,Safeguarding Children and Young Peoples Services,Children's Services and Education,Third Party Payments,Other establishments,05-Jul-21,6515738,-7.14,SUPPLIER,LILIAN DAVIS GROUP LTD,300000020467263
Portsmouth City Council,PCC,Children's and Education Services,Safeguarding Children and Young Peoples Services,Children's Services and Education,Third Party Payments,Other establishments,05-Jul-21,6515738,-5.71,SUPPLIER,LILIAN DAVIS GROUP LTD,300000020467263
Portsmouth City Council,PCC,Children's and Education Services,Safeguarding Children and Young Peoples Services,Children's Services and Education,Third Party Payments,Other establishments,05-Jul-21,6515738,-0.01,SUPPLIER,LILIAN DAVIS GROUP LTD,300000020467263
Portsmouth City Council,PCC,Children's and Education Services,Safeguarding Children and Young Peoples Services,Children's Services and Education,Third Party Payments,Other establishments,05-Jul-21,6515738,71.43,SUPPLIER,LILIAN DAVIS GROUP LTD,300000020467263
Portsmouth City Council,PCC,Children's and Education Services,Safeguarding Children and Young Peoples Services,Children's Services and Education,Third Party Payments,Other establishments,05-Jul-21,6515738,89.29,SUPPLIER,LILIAN DAVIS GROUP LTD,300000020467263
Portsmouth City Council,PCC,Children's and Education Services,Safeguarding Children and Young Peoples Services,Children's Services and Education,Third Party Payments,Other establishments,05-Jul-21,6515738,375,SUPPLIER,LILIAN DAVIS GROUP LTD,300000020467263
Portsmouth City Council,PCC,Children's and Education Services,Safeguarding Children and Young Peoples Services,Children's Services and Education,Third Party Payments,Other establishments,05-Jul-21,6515738,248.57,SUPPLIER,LILIAN DAVIS GROUP LTD,300000020467263
Portsmouth City Council,PCC,Children's and Education Services,Safeguarding Children and Young Peoples Services,Children's Services and Education,Third Party Payments,Other establishments,05-Jul-21,6515738,310.71,SUPPLIER,LILIAN DAVIS GROUP LTD,300000020467263
Portsmouth City Council,PCC,Children's and Education Services,Safeguarding Children and Young Peoples Services,Children's Services and Education,Third Party Payments,Other establishments,05-Jul-21,6515738,"1,305.00",SUPPLIER,LILIAN DAVIS GROUP LTD,300000020467263
Portsmouth City Council,PCC,Children's and Education Services,Safeguarding Children and Young Peoples Services,Children's Services and Education,Third Party Payments,Other establishments,05-Jul-21,6515738,-42.86,SUPPLIER,LILIAN DAVIS GROUP LTD,300000020467263
Portsmouth City Council,PCC,Children's and Education Services,Safeguarding Children and Young Peoples Services,Children's Services and Education,Third Party Payments,Other establishments,05-Jul-21,6515738,71.43,SUPPLIER,LILIAN DAVIS GROUP LTD,300000020467263
Portsmouth City Council,PCC,Children's and Education Services,Safeguarding Children and Young Peoples Services,Children's Services and Education,Third Party Payments,Other establishments,05-Jul-21,6515738,89.29,SUPPLIER,LILIAN DAVIS GROUP LTD,300000020467263
Portsmouth City Council,PCC,Children's and Education Services,Safeguarding Children and Young Peoples Services,Children's Services and Education,Third Party Payments,Other establishments,05-Jul-21,6515738,375,SUPPLIER,LILIAN DAVIS GROUP LTD,300000020467263
Portsmouth City Council,PCC,Children's and Education Services,Safeguarding Children and Young Peoples Services,Children's Services and Education,Third Party Payments,Other establishments,05-Jul-21,6515738,248.57,SUPPLIER,LILIAN DAVIS GROUP LTD,300000020467263
Portsmouth City Council,PCC,Children's and Education Services,Safeguarding Children and Young Peoples Services,Children's Services and Education,Third Party Payments,Other establishments,05-Jul-21,6515738,310.71,SUPPLIER,LILIAN DAVIS GROUP LTD,300000020467263
Portsmouth City Council,PCC,Children's and Education Services,Safeguarding Children and Young Peoples Services,Children's Services and Education,Third Party Payments,Other establishments,05-Jul-21,6515738,"1,305.00",SUPPLIER,LILIAN DAVIS GROUP LTD,300000020467263
Portsmouth City Council,PCC,Children's and Education Services,Safeguarding Children and Young Peoples Services,Children's Services and Education,Third Party Payments,Other establishments,05-Jul-21,6515738,-30,SUPPLIER,LILIAN DAVIS GROUP LTD,300000020467263
Portsmouth City Council,PCC,Children's and Education Services,Safeguarding Children and Young Peoples Services,Children's Services and Education,Third Party Payments,Other establishments,05-Jul-21,6515738,-7.14,SUPPLIER,LILIAN DAVIS GROUP LTD,300000020467263
Portsmouth City Council,PCC,Children's and Education Services,Safeguarding Children and Young Peoples Services,Children's Services and Education,Third Party Payments,Other establishments,05-Jul-21,6515738,-5.71,SUPPLIER,LILIAN DAVIS GROUP LTD,300000020467263
Portsmouth City Council,PCC,Children's and Education Services,Safeguarding Children and Young Peoples Services,Children's Services and Education,Third Party Payments,Other establishments,05-Jul-21,6515738,42.86,SUPPLIER,LILIAN DAVIS GROUP LTD,300000020467263
Portsmouth City Council,PCC,Children's and Education Services,Safeguarding Children and Young Peoples Services,Children's Services and Education,Third Party Payments,Other establishments,05-Jul-21,6515738,53.57,SUPPLIER,LILIAN DAVIS GROUP LTD,300000020467263
Portsmouth City Council,PCC,Children's and Education Services,Safeguarding Children and Young Peoples Services,Children's Services and Education,Third Party Payments,Other establishments,05-Jul-21,6515738,225,SUPPLIER,LILIAN DAVIS GROUP LTD,300000020467263
Portsmouth City Council,PCC,Children's and Education Services,Safeguarding Children and Young Peoples Services,Children's Services and Education,Third Party Payments,Other establishments,05-Jul-21,6515738,248.57,SUPPLIER,LILIAN DAVIS GROUP LTD,300000020467263
Portsmouth City Council,PCC,Children's and Education Services,Safeguarding Children and Young Peoples Services,Children's Services and Education,Third Party Payments,Other establishments,05-Jul-21,6515738,310.71,SUPPLIER,LILIAN DAVIS GROUP LTD,300000020467263
Portsmouth City Council,PCC,Children's and Education Services,Safeguarding Children and Young Peoples Services,Children's Services and Education,Third Party Payments,Other establishments,05-Jul-21,6515738,"1,305.00",SUPPLIER,LILIAN DAVIS GROUP LTD,300000020467263
Portsmouth City Council,PCC,Children's and Education Services,Safeguarding Children and Young Peoples Services,Children's Services and Education,Third Party Payments,Other establishments,05-Jul-21,6515738,-248.16,SUPPLIER,LILIAN DAVIS GROUP LTD,300000020467263
Portsmouth City Council,PCC,Children's and Education Services,Safeguarding Children and Young Peoples Services,Children's Services and Education,Third Party Payments,Other establishments,05-Jul-21,6515738,-30,SUPPLIER,LILIAN DAVIS GROUP LTD,300000020467263
Portsmouth City Council,PCC,Children's and Education Services,Safeguarding Children and Young Peoples Services,Children's Services and Education,Third Party Payments,Other establishments,05-Jul-21,6515738,-7.14,SUPPLIER,LILIAN DAVIS GROUP LTD,300000020467263
Portsmouth City Council,PCC,Children's and Education Services,Safeguarding Children and Young Peoples Services,Children's Services and Education,Third Party Payments,Other establishments,05-Jul-21,6515738,-5.71,SUPPLIER,LILIAN DAVIS GROUP LTD,300000020467263
Portsmouth City Council,PCC,Children's and Education Services,Safeguarding Children and Young Peoples Services,Children's Services and Education,Third Party Payments,Other establishments,05-Jul-21,6515738,33.09,SUPPLIER,LILIAN DAVIS GROUP LTD,300000020467263
Portsmouth City Council,PCC,Children's and Education Services,Safeguarding Children and Young Peoples Services,Children's Services and Education,Third Party Payments,Other establishments,05-Jul-21,6515738,41.36,SUPPLIER,LILIAN DAVIS GROUP LTD,300000020467263
Portsmouth City Council,PCC,Children's and Education Services,Safeguarding Children and Young Peoples Services,Children's Services and Education,Third Party Payments,Other establishments,05-Jul-21,6515738,42.86,SUPPLIER,LILIAN DAVIS GROUP LTD,300000020467263
Portsmouth City Council,PCC,Children's and Education Services,Safeguarding Children and Young Peoples Services,Children's Services and Education,Third Party Payments,Other establishments,05-Jul-21,6515738,53.57,SUPPLIER,LILIAN DAVIS GROUP LTD,300000020467263
Portsmouth City Council,PCC,Children's and Education Services,Safeguarding Children and Young Peoples Services,Children's Services and Education,Third Party Payments,Other establishments,05-Jul-21,6515738,173.7,SUPPLIER,LILIAN DAVIS GROUP LTD,300000020467263
Portsmouth City Council,PCC,Children's and Education Services,Safeguarding Children and Young Peoples Services,Children's Services and Education,Third Party Payments,Other establishments,05-Jul-21,6515738,225,SUPPLIER,LILIAN DAVIS GROUP LTD,300000020467263
Portsmouth City Council,PCC,Children's and Education Services,Safeguarding Children and Young Peoples Services,Children's Services and Education,Third Party Payments,Other establishments,05-Jul-21,6515738,242.86,SUPPLIER,LILIAN DAVIS GROUP LTD,300000020467263
Portsmouth City Council,PCC,Children's and Education Services,Safeguarding Children and Young Peoples Services,Children's Services and Education,Third Party Payments,Other establishments,05-Jul-21,6515738,303.57,SUPPLIER,LILIAN DAVIS GROUP LTD,300000020467263
Portsmouth City Council,PCC,Children's and Education Services,Safeguarding Children and Young Peoples Services,Children's Services and Education,Third Party Payments,Other establishments,05-Jul-21,6515738,"1,275.00",SUPPLIER,LILIAN DAVIS GROUP LTD,300000020467263
Portsmouth City Council,PCC,Children's and Education Services,Children Looked After,Children's Services and Education,Third Party Payments,Other establishments,06-Jul-21,6515800,-430.56,SUPPLIER,CAMBIAN GROUP LTD,300000020462057
Portsmouth City Council,PCC,Children's and Education Services,Children Looked After,Children's Services and Education,Third Party Payments,Other establishments,06-Jul-21,6515800,"1,048.89",SUPPLIER,CAMBIAN GROUP LTD,300000020462057
Portsmouth City Council,PCC,Children's and Education Services,Children Looked After,Children's Services and Education,Third Party Payments,Other establishments,06-Jul-21,6515800,"1,135.80",SUPPLIER,CAMBIAN GROUP LTD,300000020462057
Portsmouth City Council,PCC,Children's and Education Services,Children Looked After,Children's Services and Education,Third Party Payments,Other establishments,06-Jul-21,6515800,"1,748.14",SUPPLIER,CAMBIAN GROUP LTD,300000020462057
Portsmouth City Council,PCC,Children's and Education Services,Children Looked After,Children's Services and Education,Third Party Payments,Other establishments,06-Jul-21,6515800,"1,893.01",SUPPLIER,CAMBIAN GROUP LTD,300000020462057
Portsmouth City Council,PCC,Children's and Education Services,Children Looked After,Children's Services and Education,Third Party Payments,Other establishments,06-Jul-21,6515800,"29,368.80",SUPPLIER,CAMBIAN GROUP LTD,300000020462057
Portsmouth City Council,PCC,Children's and Education Services,Children Looked After,Children's Services and Education,Third Party Payments,Other establishments,06-Jul-21,6515800,"31,802.52",SUPPLIER,CAMBIAN GROUP LTD,300000020462057
Portsmouth City Council,PCC,Children's and Education Services,Children Looked After,Children's Services and Education,Third Party Payments,Other establishments,06-Jul-21,6515795,-8.57,SUPPLIER,CEDAR HOPE CARE SERVICES LIMITED,300000020476114
Portsmouth City Council,PCC,Children's and Education Services,Children Looked After,Children's Services and Education,Third Party Payments,Other establishments,06-Jul-21,6515795,-1.43,SUPPLIER,CEDAR HOPE CARE SERVICES LIMITED,300000020476114
Portsmouth City Council,PCC,Children's and Education Services,Children Looked After,Children's Services and Education,Third Party Payments,Other establishments,06-Jul-21,6515795,8.27,SUPPLIER,CEDAR HOPE CARE SERVICES LIMITED,300000020476114
Portsmouth City Council,PCC,Children's and Education Services,Children Looked After,Children's Services and Education,Third Party Payments,Other establishments,06-Jul-21,6515795,49.63,SUPPLIER,CEDAR HOPE CARE SERVICES LIMITED,300000020476114
Portsmouth City Council,PCC,Children's and Education Services,Children Looked After,Children's Services and Education,Third Party Payments,Other establishments,06-Jul-21,6515795,57.14,SUPPLIER,CEDAR HOPE CARE SERVICES LIMITED,300000020476114
Portsmouth City Council,PCC,Children's and Education Services,Children Looked After,Children's Services and Education,Third Party Payments,Other establishments,06-Jul-21,6515795,342.86,SUPPLIER,CEDAR HOPE CARE SERVICES LIMITED,300000020476114
Portsmouth City Council,PCC,Children's and Education Services,Children Looked After,Children's Services and Education,Third Party Payments,Other establishments,06-Jul-21,6515795,552,SUPPLIER,CEDAR HOPE CARE SERVICES LIMITED,300000020476114
Portsmouth City Council,PCC,Children's and Education Services,Children Looked After,Children's Services and Education,Third Party Payments,Other establishments,06-Jul-21,6515795,"3,312.00",SUPPLIER,CEDAR HOPE CARE SERVICES LIMITED,300000020476114
Portsmouth City Council,PCC,Children's and Education Services,Asylum seekers,Children's Services and Education,Third Party Payments,Other establishments,05-Jul-21,6515738,-40,SUPPLIER,LILIAN DAVIS GROUP LTD,300000020467263
Portsmouth City Council,PCC,Children's and Education Services,Asylum seekers,Children's Services and Education,Third Party Payments,Other establishments,05-Jul-21,6515738,-7.14,SUPPLIER,LILIAN DAVIS GROUP LTD,300000020467263
Portsmouth City Council,PCC,Children's and Education Services,Asylum seekers,Children's Services and Education,Third Party Payments,Other establishments,05-Jul-21,6515738,-5.71,SUPPLIER,LILIAN DAVIS GROUP LTD,300000020467263
Portsmouth City Council,PCC,Children's and Education Services,Asylum seekers,Children's Services and Education,Third Party Payments,Other establishments,05-Jul-21,6515738,-0.02,SUPPLIER,LILIAN DAVIS GROUP LTD,300000020467263
Portsmouth City Council,PCC,Children's and Education Services,Asylum seekers,Children's Services and Education,Third Party Payments,Other establishments,05-Jul-21,6515738,33.09,SUPPLIER,LILIAN DAVIS GROUP LTD,300000020467263
Portsmouth City Council,PCC,Children's and Education Services,Asylum seekers,Children's Services and Education,Third Party Payments,Other establishments,05-Jul-21,6515738,41.36,SUPPLIER,LILIAN DAVIS GROUP LTD,300000020467263
Portsmouth City Council,PCC,Children's and Education Services,Asylum seekers,Children's Services and Education,Third Party Payments,Other establishments,05-Jul-21,6515738,231.6,SUPPLIER,LILIAN DAVIS GROUP LTD,300000020467263
Portsmouth City Council,PCC,Children's and Education Services,Asylum seekers,Children's Services and Education,Third Party Payments,Other establishments,05-Jul-21,6515738,71.43,SUPPLIER,LILIAN DAVIS GROUP LTD,300000020467263
Portsmouth City Council,PCC,Children's and Education Services,Asylum seekers,Children's Services and Education,Third Party Payments,Other establishments,05-Jul-21,6515738,89.29,SUPPLIER,LILIAN DAVIS GROUP LTD,300000020467263
Portsmouth City Council,PCC,Children's and Education Services,Asylum seekers,Children's Services and Education,Third Party Payments,Other establishments,05-Jul-21,6515738,500,SUPPLIER,LILIAN DAVIS GROUP LTD,300000020467263
Portsmouth City Council,PCC,Children's and Education Services,Asylum seekers,Children's Services and Education,Third Party Payments,Other establishments,05-Jul-21,6515738,220,SUPPLIER,LILIAN DAVIS GROUP LTD,300000020467263
Portsmouth City Council,PCC,Children's and Education Services,Asylum seekers,Children's Services and Education,Third Party Payments,Other establishments,05-Jul-21,6515738,275,SUPPLIER,LILIAN DAVIS GROUP LTD,300000020467263
Portsmouth City Council,PCC,Children's and Education Services,Asylum seekers,Children's Services and Education,Third Party Payments,Other establishments,05-Jul-21,6515738,"1,540.00",SUPPLIER,LILIAN DAVIS GROUP LTD,300000020467263
Portsmouth City Council,PCC,Children's and Education Services,Safeguarding Children and Young Peoples Services,Children's Services and Education,Third Party Payments,Other establishments,06-Jul-21,6515862,-750,SUPPLIER,SEVEN WAYS (SUPPORT) LIMITED,300000020473013
Portsmouth City Council,PCC,Children's and Education Services,Safeguarding Children and Young Peoples Services,Children's Services and Education,Third Party Payments,Other establishments,06-Jul-21,6515862,75,SUPPLIER,SEVEN WAYS (SUPPORT) LIMITED,300000020473013
Portsmouth City Council,PCC,Children's and Education Services,Safeguarding Children and Young Peoples Services,Children's Services and Education,Third Party Payments,Other establishments,06-Jul-21,6515862,450,SUPPLIER,SEVEN WAYS (SUPPORT) LIMITED,300000020473013
Portsmouth City Council,PCC,Children's and Education Services,Safeguarding Children and Young Peoples Services,Children's Services and Education,Third Party Payments,Other establishments,06-Jul-21,6515862,"1,575.00",SUPPLIER,SEVEN WAYS (SUPPORT) LIMITED,300000020473013
Portsmouth City Council,PCC,Children's and Education Services,Family Support Services,Children's Services and Education,Supplies and Services,Services,06-Jul-21,6515840,673,SUPPLIER,AA GLOBAL LANGUAGE SERVICES LTD,300000020483226
Portsmouth City Council,PCC,Children's and Education Services,Family Support Services,Children's Services and Education,Supplies and Services,Services,06-Jul-21,6515840,206,SUPPLIER,AA GLOBAL LANGUAGE SERVICES LTD,300000020483226
Portsmouth City Council,PCC,Children's and Education Services,Safeguarding Children and Young Peoples Services,Children's Services and Education,Third Party Payments,Other establishments,02-Jul-21,6515648,250,SUPPLIER,LOVE146,300000020473545
Portsmouth City Council,PCC,Children's and Education Services,Children Looked After,Children's Services and Education,Third Party Payments,Other establishments,07-Jul-21,6516110,-0.08,SUPPLIER,FOSTERING RELATIONS LIMITED,300000020475015
Portsmouth City Council,PCC,Children's and Education Services,Children Looked After,Children's Services and Education,Third Party Payments,Other establishments,07-Jul-21,6516110,507.43,SUPPLIER,FOSTERING RELATIONS LIMITED,300000020475015
Portsmouth City Council,PCC,Children's and Education Services,Children Looked After,Children's Services and Education,Third Party Payments,Other establishments,07-Jul-21,6516110,676.57,SUPPLIER,FOSTERING RELATIONS LIMITED,300000020475015
Portsmouth City Council,PCC,Children's and Education Services,Children Looked After,Children's Services and Education,Third Party Payments,Other establishments,07-Jul-21,6516110,"3,552.00",SUPPLIER,FOSTERING RELATIONS LIMITED,300000020475015
Portsmouth City Council,PCC,Adult Social Care,Physical Support Older People (85+),Adult Services,Third Party Payments,Other establishments,21-Jul-21,6518898,186.48,SUPPLIER,ADMIRAL CARE LTD,300000020477405
Portsmouth City Council,PCC,Adult Social Care,Physical Support Older People (85+),Adult Services,Third Party Payments,Other establishments,21-Jul-21,6518898,213.12,SUPPLIER,ADMIRAL CARE LTD,300000020477405
Portsmouth City Council,PCC,Adult Social Care,Social Care Activities,Adult Services,Third Party Payments,Other establishments,21-Jul-21,6518898,217.56,SUPPLIER,ADMIRAL CARE LTD,300000020477405
Portsmouth City Council,PCC,Adult Social Care,Physical Support Older People (85+),Adult Services,Third Party Payments,Other establishments,21-Jul-21,6518898,222,SUPPLIER,ADMIRAL CARE LTD,300000020477405
Portsmouth City Council,PCC,Adult Social Care,Social Care Activities,Adult Services,Third Party Payments,Other establishments,21-Jul-21,6518898,248.64,SUPPLIER,ADMIRAL CARE LTD,300000020477405
Portsmouth City Council,PCC,Housing Revenue Account,Special Services,"Housing, Neighbourhood and Building Services",Premises-Related Expenditure,Energy costs,05-Jul-21,6515714,-19.19,LIMITED COMPANY,CONTRACT NATURAL GAS LTD,300000020484079
Portsmouth City Council,PCC,Housing Revenue Account,Special Services,"Housing, Neighbourhood and Building Services",Premises-Related Expenditure,Energy costs,05-Jul-21,6515714,33.17,LIMITED COMPANY,CONTRACT NATURAL GAS LTD,300000020484079
Portsmouth City Council,PCC,Housing Revenue Account,Special Services,"Housing, Neighbourhood and Building Services",Premises-Related Expenditure,Energy costs,05-Jul-21,6515714,2.48,LIMITED COMPANY,CONTRACT NATURAL GAS LTD,300000020484079
Portsmouth City Council,PCC,Housing Revenue Account,Special Services,"Housing, Neighbourhood and Building Services",Premises-Related Expenditure,Energy costs,05-Jul-21,6515714,12.23,LIMITED COMPANY,CONTRACT NATURAL GAS LTD,300000020484079
Portsmouth City Council,PCC,Children's and Education Services,Primary Schools,Children's Services and Education,Premises-Related Expenditure,Energy costs,05-Jul-21,6515714,79.99,LIMITED COMPANY,CONTRACT NATURAL GAS LTD,300000020484079
Portsmouth City Council,PCC,Housing Revenue Account,Special Services,"Housing, Neighbourhood and Building Services",Premises-Related Expenditure,Energy costs,05-Jul-21,6515714,89.66,LIMITED COMPANY,CONTRACT NATURAL GAS LTD,300000020484079
Portsmouth City Council,PCC,Highways and Transport Services,"Airports, Harbours and Toll Facilities",Portsmouth International Port,Premises-Related Expenditure,Energy costs,05-Jul-21,6515714,2.48,LIMITED COMPANY,CONTRACT NATURAL GAS LTD,300000020484079
Portsmouth City Council,PCC,Children's and Education Services,Primary Schools,Children's Services and Education,Premises-Related Expenditure,Energy costs,05-Jul-21,6515714,159.03,LIMITED COMPANY,CONTRACT NATURAL GAS LTD,300000020484079
Portsmouth City Council,PCC,Children's and Education Services,Primary Schools,Children's Services and Education,Premises-Related Expenditure,Energy costs,05-Jul-21,6515714,50.39,LIMITED COMPANY,CONTRACT NATURAL GAS LTD,300000020484079
Portsmouth City Council,PCC,Housing Revenue Account,Special Services,"Housing, Neighbourhood and Building Services",Premises-Related Expenditure,Energy costs,05-Jul-21,6515714,255.73,LIMITED COMPANY,CONTRACT NATURAL GAS LTD,300000020484079
Portsmouth City Council,PCC,Housing Revenue Account,Special Services,"Housing, Neighbourhood and Building Services",Premises-Related Expenditure,Energy costs,05-Jul-21,6515714,193.99,LIMITED COMPANY,CONTRACT NATURAL GAS LTD,300000020484079
Portsmouth City Council,PCC,Children's and Education Services,Primary Schools,Children's Services and Education,Premises-Related Expenditure,Energy costs,05-Jul-21,6515714,29.54,LIMITED COMPANY,CONTRACT NATURAL GAS LTD,300000020484079
Portsmouth City Council,PCC,Children's and Education Services,Primary Schools,Children's Services and Education,Premises-Related Expenditure,Energy costs,05-Jul-21,6515714,445.65,LIMITED COMPANY,CONTRACT NATURAL GAS LTD,300000020484079
Portsmouth City Council,PCC,Housing Revenue Account,Special Services,"Housing, Neighbourhood and Building Services",Premises-Related Expenditure,Energy costs,05-Jul-21,6515714,134.05,LIMITED COMPANY,CONTRACT NATURAL GAS LTD,300000020484079
Portsmouth City Council,PCC,Housing Services,Homelessness,"Housing, Neighbourhood and Building Services",Premises-Related Expenditure,Energy costs,05-Jul-21,6515714,41.32,LIMITED COMPANY,CONTRACT NATURAL GAS LTD,300000020484079
Portsmouth City Council,PCC,Housing Services,Homelessness,"Housing, Neighbourhood and Building Services",Premises-Related Expenditure,Energy costs,05-Jul-21,6515714,51.03,LIMITED COMPANY,CONTRACT NATURAL GAS LTD,300000020484079
Portsmouth City Council,PCC,Children's and Education Services,Primary Schools,Children's Services and Education,Premises-Related Expenditure,Energy costs,05-Jul-21,6515714,"2,668.52",LIMITED COMPANY,CONTRACT NATURAL GAS LTD,300000020484079
Portsmouth City Council,PCC,Children's and Education Services,Children Looked After,Children's Services and Education,Premises-Related Expenditure,Energy costs,05-Jul-21,6515714,51.75,LIMITED COMPANY,CONTRACT NATURAL GAS LTD,300000020484079
Portsmouth City Council,PCC,Children's and Education Services,Children Looked After,Children's Services and Education,Premises-Related Expenditure,Energy costs,05-Jul-21,6515714,58.44,LIMITED COMPANY,CONTRACT NATURAL GAS LTD,300000020484079
Portsmouth City Council,PCC,Housing Revenue Account,Special Services,"Housing, Neighbourhood and Building Services",Premises-Related Expenditure,Energy costs,05-Jul-21,6515714,55.1,LIMITED COMPANY,CONTRACT NATURAL GAS LTD,300000020484079
Portsmouth City Council,PCC,Planning Services,Business support,Regeneration,Premises-Related Expenditure,Energy costs,05-Jul-21,6515714,126.17,LIMITED COMPANY,CONTRACT NATURAL GAS LTD,300000020484079
Portsmouth City Council,PCC,Children's and Education Services,Primary Schools,Children's Services and Education,Premises-Related Expenditure,Energy costs,05-Jul-21,6515714,266.05,LIMITED COMPANY,CONTRACT NATURAL GAS LTD,300000020484079
Portsmouth City Council,PCC,Children's and Education Services,Primary Schools,Children's Services and Education,Premises-Related Expenditure,Energy costs,05-Jul-21,6515714,43.73,LIMITED COMPANY,CONTRACT NATURAL GAS LTD,300000020484079
Portsmouth City Council,PCC,Children's and Education Services,Primary Schools,Children's Services and Education,Premises-Related Expenditure,Energy costs,05-Jul-21,6515714,73.16,LIMITED COMPANY,CONTRACT NATURAL GAS LTD,300000020484079
Portsmouth City Council,PCC,Cultural and Related Services,Library Service,"Culture, Leisure & Regulatory Services",Premises-Related Expenditure,Energy costs,05-Jul-21,6515714,131.72,LIMITED COMPANY,CONTRACT NATURAL GAS LTD,300000020484079
Portsmouth City Council,PCC,Children's and Education Services,Family Support Services,Children's Services and Education,Premises-Related Expenditure,Energy costs,05-Jul-21,6515714,857.59,LIMITED COMPANY,CONTRACT NATURAL GAS LTD,300000020484079
Portsmouth City Council,PCC,Housing Revenue Account,Special Services,"Housing, Neighbourhood and Building Services",Premises-Related Expenditure,Energy costs,05-Jul-21,6515714,226.35,LIMITED COMPANY,CONTRACT NATURAL GAS LTD,300000020484079
Portsmouth City Council,PCC,Housing Revenue Account,Special Services,"Housing, Neighbourhood and Building Services",Premises-Related Expenditure,Energy costs,05-Jul-21,6515714,"1,566.98",LIMITED COMPANY,CONTRACT NATURAL GAS LTD,300000020484079
Portsmouth City Council,PCC,Environmental and Regulatory Services,"Cemetery, Cremation and Mortuary Services","Culture, Leisure & Regulatory Services",Premises-Related Expenditure,Energy costs,05-Jul-21,6515714,84.04,LIMITED COMPANY,CONTRACT NATURAL GAS LTD,300000020484079
Portsmouth City Council,PCC,Cultural and Related Services,Library Service,"Culture, Leisure & Regulatory Services",Premises-Related Expenditure,Energy costs,05-Jul-21,6515714,53.76,LIMITED COMPANY,CONTRACT NATURAL GAS LTD,300000020484079
Portsmouth City Council,PCC,Cultural and Related Services,Library Service,"Culture, Leisure & Regulatory Services",Premises-Related Expenditure,Energy costs,05-Jul-21,6515714,2.48,LIMITED COMPANY,CONTRACT NATURAL GAS LTD,300000020484079
Portsmouth City Council,PCC,Children's and Education Services,Children Looked After,Children's Services and Education,Premises-Related Expenditure,Energy costs,05-Jul-21,6515714,199.35,LIMITED COMPANY,CONTRACT NATURAL GAS LTD,300000020484079
Portsmouth City Council,PCC,Costs below Net Cost of Services,Trading,Regeneration,Premises-Related Expenditure,Energy costs,05-Jul-21,6515714,2.48,LIMITED COMPANY,CONTRACT NATURAL GAS LTD,300000020484079
Portsmouth City Council,PCC,Cultural and Related Services,Library Service,"Culture, Leisure & Regulatory Services",Premises-Related Expenditure,Energy costs,05-Jul-21,6515714,84.35,LIMITED COMPANY,CONTRACT NATURAL GAS LTD,300000020484079
Portsmouth City Council,PCC,Housing Revenue Account,Special Services,"Housing, Neighbourhood and Building Services",Premises-Related Expenditure,Energy costs,05-Jul-21,6515714,124.1,LIMITED COMPANY,CONTRACT NATURAL GAS LTD,300000020484079
Portsmouth City Council,PCC,Housing Revenue Account,Special Services,"Housing, Neighbourhood and Building Services",Premises-Related Expenditure,Energy costs,05-Jul-21,6515714,82.7,LIMITED COMPANY,CONTRACT NATURAL GAS LTD,300000020484079
Portsmouth City Council,PCC,Housing Revenue Account,Special Services,"Housing, Neighbourhood and Building Services",Premises-Related Expenditure,Energy costs,05-Jul-21,6515714,171.57,LIMITED COMPANY,CONTRACT NATURAL GAS LTD,300000020484079
Portsmouth City Council,PCC,Cultural and Related Services,Recreation and Sport,"Culture, Leisure & Regulatory Services",Premises-Related Expenditure,Energy costs,05-Jul-21,6515714,53.13,LIMITED COMPANY,CONTRACT NATURAL GAS LTD,300000020484079
Portsmouth City Council,PCC,Children's and Education Services,Primary Schools,Children's Services and Education,Premises-Related Expenditure,Energy costs,05-Jul-21,6515714,228.41,LIMITED COMPANY,CONTRACT NATURAL GAS LTD,300000020484079
Portsmouth City Council,PCC,Children's and Education Services,Primary Schools,Children's Services and Education,Premises-Related Expenditure,Energy costs,05-Jul-21,6515714,135.25,LIMITED COMPANY,CONTRACT NATURAL GAS LTD,300000020484079
Portsmouth City Council,PCC,Children's and Education Services,Secondary Schools,Children's Services and Education,Premises-Related Expenditure,Energy costs,05-Jul-21,6515714,42.24,LIMITED COMPANY,CONTRACT NATURAL GAS LTD,300000020484079
Portsmouth City Council,PCC,Children's and Education Services,Secondary Schools,Children's Services and Education,Premises-Related Expenditure,Energy costs,05-Jul-21,6515714,80.11,LIMITED COMPANY,CONTRACT NATURAL GAS LTD,300000020484079
Portsmouth City Council,PCC,Planning Services,Business support,Regeneration,Premises-Related Expenditure,Energy costs,05-Jul-21,6515714,16.43,LIMITED COMPANY,CONTRACT NATURAL GAS LTD,300000020484079
Portsmouth City Council,PCC,Planning Services,Business support,Regeneration,Premises-Related Expenditure,Energy costs,05-Jul-21,6515714,511.43,LIMITED COMPANY,CONTRACT NATURAL GAS LTD,300000020484079
Portsmouth City Council,PCC,Children's and Education Services,Other Education and Community Budget,Regeneration,Premises-Related Expenditure,Energy costs,05-Jul-21,6515714,825.57,LIMITED COMPANY,CONTRACT NATURAL GAS LTD,300000020484079
Portsmouth City Council,PCC,Housing Revenue Account,Special Services,"Housing, Neighbourhood and Building Services",Premises-Related Expenditure,Energy costs,05-Jul-21,6515714,400.66,LIMITED COMPANY,CONTRACT NATURAL GAS LTD,300000020484079
Portsmouth City Council,PCC,Housing Revenue Account,Special Services,"Housing, Neighbourhood and Building Services",Premises-Related Expenditure,Energy costs,05-Jul-21,6515714,66.75,LIMITED COMPANY,CONTRACT NATURAL GAS LTD,300000020484079
Portsmouth City Council,PCC,Costs below Net Cost of Services,Trading,Regeneration,Premises-Related Expenditure,Energy costs,05-Jul-21,6515714,"10,246.71",LIMITED COMPANY,CONTRACT NATURAL GAS LTD,300000020484079
Portsmouth City Council,PCC,Housing Revenue Account,Special Services,"Housing, Neighbourhood and Building Services",Premises-Related Expenditure,Energy costs,05-Jul-21,6515714,129.64,LIMITED COMPANY,CONTRACT NATURAL GAS LTD,300000020484079
Portsmouth City Council,PCC,Housing Revenue Account,Special Services,"Housing, Neighbourhood and Building Services",Premises-Related Expenditure,Energy costs,05-Jul-21,6515714,27.42,LIMITED COMPANY,CONTRACT NATURAL GAS LTD,300000020484079
Portsmouth City Council,PCC,Housing Revenue Account,Special Services,"Housing, Neighbourhood and Building Services",Premises-Related Expenditure,Energy costs,05-Jul-21,6515714,27.99,LIMITED COMPANY,CONTRACT NATURAL GAS LTD,300000020484079
Portsmouth City Council,PCC,Housing Revenue Account,Special Services,"Housing, Neighbourhood and Building Services",Premises-Related Expenditure,Energy costs,05-Jul-21,6515714,398.2,LIMITED COMPANY,CONTRACT NATURAL GAS LTD,300000020484079
Portsmouth City Council,PCC,Housing Revenue Account,Special Services,"Housing, Neighbourhood and Building Services",Premises-Related Expenditure,Energy costs,05-Jul-21,6515714,4.86,LIMITED COMPANY,CONTRACT NATURAL GAS LTD,300000020484079
Portsmouth City Council,PCC,Housing Revenue Account,Special Services,"Housing, Neighbourhood and Building Services",Premises-Related Expenditure,Energy costs,05-Jul-21,6515714,69.54,LIMITED COMPANY,CONTRACT NATURAL GAS LTD,300000020484079
Portsmouth City Council,PCC,Housing Revenue Account,Special Services,"Housing, Neighbourhood and Building Services",Premises-Related Expenditure,Energy costs,05-Jul-21,6515714,2.48,LIMITED COMPANY,CONTRACT NATURAL GAS LTD,300000020484079
Portsmouth City Council,PCC,Adult Social Care,Physical Support Older People (85+),Adult Services,Third Party Payments,Other establishments,21-Jul-21,6518898,260.1,SUPPLIER,ADMIRAL CARE LTD,300000020477405
Portsmouth City Council,PCC,Cultural and Related Services,Culture and Heritage,"Culture, Leisure & Regulatory Services",Premises-Related Expenditure,Energy costs,05-Jul-21,6515714,2.48,LIMITED COMPANY,CONTRACT NATURAL GAS LTD,300000020484079
Portsmouth City Council,PCC,Central Services,"Registration of Births, Deaths and Marriages","Culture, Leisure & Regulatory Services",Premises-Related Expenditure,Energy costs,05-Jul-21,6515714,216.53,LIMITED COMPANY,CONTRACT NATURAL GAS LTD,300000020484079
Portsmouth City Council,PCC,Children's and Education Services,Primary Schools,Children's Services and Education,Premises-Related Expenditure,Energy costs,05-Jul-21,6515714,819.96,LIMITED COMPANY,CONTRACT NATURAL GAS LTD,300000020484079
Portsmouth City Council,PCC,Other,Suspense and Capital Schemes,Capital - Housing General Fund,Capital Charges,Capital Expenditure (WIP),05-Jul-21,6515714,31.93,LIMITED COMPANY,CONTRACT NATURAL GAS LTD,300000020484079
Portsmouth City Council,PCC,Housing Revenue Account,Special Services,"Housing, Neighbourhood and Building Services",Premises-Related Expenditure,Energy costs,05-Jul-21,6515714,95.79,LIMITED COMPANY,CONTRACT NATURAL GAS LTD,300000020484079
Portsmouth City Council,PCC,Children's and Education Services,Primary Schools,Children's Services and Education,Premises-Related Expenditure,Energy costs,05-Jul-21,6515714,"1,630.92",LIMITED COMPANY,CONTRACT NATURAL GAS LTD,300000020484079
Portsmouth City Council,PCC,Costs below Net Cost of Services,Trading,Regeneration,Premises-Related Expenditure,Energy costs,05-Jul-21,6515714,49.23,LIMITED COMPANY,CONTRACT NATURAL GAS LTD,300000020484079
Portsmouth City Council,PCC,Housing Revenue Account,Special Services,"Housing, Neighbourhood and Building Services",Premises-Related Expenditure,Energy costs,05-Jul-21,6515714,275.62,LIMITED COMPANY,CONTRACT NATURAL GAS LTD,300000020484079
Portsmouth City Council,PCC,Children's and Education Services,Family Support Services,Children's Services and Education,Premises-Related Expenditure,Energy costs,05-Jul-21,6515714,271.3,LIMITED COMPANY,CONTRACT NATURAL GAS LTD,300000020484079
Portsmouth City Council,PCC,Children's and Education Services,Primary Schools,Children's Services and Education,Premises-Related Expenditure,Energy costs,05-Jul-21,6515714,266.45,LIMITED COMPANY,CONTRACT NATURAL GAS LTD,300000020484079
Portsmouth City Council,PCC,Children's and Education Services,Primary Schools,Children's Services and Education,Premises-Related Expenditure,Energy costs,05-Jul-21,6515714,22.48,LIMITED COMPANY,CONTRACT NATURAL GAS LTD,300000020484079
Portsmouth City Council,PCC,Children's and Education Services,Primary Schools,Children's Services and Education,Premises-Related Expenditure,Energy costs,05-Jul-21,6515714,185.7,LIMITED COMPANY,CONTRACT NATURAL GAS LTD,300000020484079
Portsmouth City Council,PCC,Children's and Education Services,Primary Schools,Children's Services and Education,Premises-Related Expenditure,Energy costs,05-Jul-21,6515714,9.31,LIMITED COMPANY,CONTRACT NATURAL GAS LTD,300000020484079
Portsmouth City Council,PCC,Children's and Education Services,Primary Schools,Children's Services and Education,Premises-Related Expenditure,Energy costs,05-Jul-21,6515714,47.62,LIMITED COMPANY,CONTRACT NATURAL GAS LTD,300000020484079
Portsmouth City Council,PCC,Children's and Education Services,Secondary Schools,Children's Services and Education,Premises-Related Expenditure,Energy costs,05-Jul-21,6515714,19.7,LIMITED COMPANY,CONTRACT NATURAL GAS LTD,300000020484079
Portsmouth City Council,PCC,Children's and Education Services,Secondary Schools,Children's Services and Education,Premises-Related Expenditure,Energy costs,05-Jul-21,6515714,387.65,LIMITED COMPANY,CONTRACT NATURAL GAS LTD,300000020484079
Portsmouth City Council,PCC,Planning Services,Business support,Regeneration,Premises-Related Expenditure,Energy costs,05-Jul-21,6515714,850.66,LIMITED COMPANY,CONTRACT NATURAL GAS LTD,300000020484079
Portsmouth City Council,PCC,Children's and Education Services,Children Looked After,Children's Services and Education,Premises-Related Expenditure,Energy costs,05-Jul-21,6515714,170.59,LIMITED COMPANY,CONTRACT NATURAL GAS LTD,300000020484079
Portsmouth City Council,PCC,Housing Revenue Account,Supervision and Management,"Housing, Neighbourhood and Building Services",Premises-Related Expenditure,Energy costs,05-Jul-21,6515714,62.3,LIMITED COMPANY,CONTRACT NATURAL GAS LTD,300000020484079
Portsmouth City Council,PCC,Cultural and Related Services,Library Service,"Culture, Leisure & Regulatory Services",Premises-Related Expenditure,Energy costs,05-Jul-21,6515714,141.67,LIMITED COMPANY,CONTRACT NATURAL GAS LTD,300000020484079
Portsmouth City Council,PCC,Adult Social Care,Physical Support Older People (85+),Adult Services,Third Party Payments,Other establishments,21-Jul-21,6518898,266.4,SUPPLIER,ADMIRAL CARE LTD,300000020477405
Portsmouth City Council,PCC,Housing Revenue Account,"Rents, Rates, Taxes and Other Charges","Housing, Neighbourhood and Building Services",Premises-Related Expenditure,Energy costs,05-Jul-21,6515714,17.97,LIMITED COMPANY,CONTRACT NATURAL GAS LTD,300000020484079
Portsmouth City Council,PCC,Housing Revenue Account,"Rents, Rates, Taxes and Other Charges","Housing, Neighbourhood and Building Services",Premises-Related Expenditure,Energy costs,05-Jul-21,6515714,26.92,LIMITED COMPANY,CONTRACT NATURAL GAS LTD,300000020484079
Portsmouth City Council,PCC,Housing Revenue Account,"Rents, Rates, Taxes and Other Charges","Housing, Neighbourhood and Building Services",Premises-Related Expenditure,Energy costs,05-Jul-21,6515714,3.23,LIMITED COMPANY,CONTRACT NATURAL GAS LTD,300000020484079
Portsmouth City Council,PCC,Housing Revenue Account,Special Services,"Housing, Neighbourhood and Building Services",Premises-Related Expenditure,CRC Allowances,05-Jul-21,6515714,69.87,LIMITED COMPANY,CONTRACT NATURAL GAS LTD,300000020484079
Portsmouth City Council,PCC,Housing Revenue Account,Special Services,"Housing, Neighbourhood and Building Services",Premises-Related Expenditure,CRC Allowances,05-Jul-21,6515714,44.58,LIMITED COMPANY,CONTRACT NATURAL GAS LTD,300000020484079
Portsmouth City Council,PCC,Housing Revenue Account,Special Services,"Housing, Neighbourhood and Building Services",Premises-Related Expenditure,Energy costs,05-Jul-21,6515714,28.18,LIMITED COMPANY,CONTRACT NATURAL GAS LTD,300000020484079
Portsmouth City Council,PCC,Housing Revenue Account,Special Services,"Housing, Neighbourhood and Building Services",Premises-Related Expenditure,CRC Allowances,05-Jul-21,6515714,29.23,LIMITED COMPANY,CONTRACT NATURAL GAS LTD,300000020484079
Portsmouth City Council,PCC,Housing Revenue Account,Special Services,"Housing, Neighbourhood and Building Services",Premises-Related Expenditure,Energy costs,05-Jul-21,6515714,"9,210.28",LIMITED COMPANY,CONTRACT NATURAL GAS LTD,300000020484079
Portsmouth City Council,PCC,Housing Revenue Account,Special Services,"Housing, Neighbourhood and Building Services",Premises-Related Expenditure,Energy costs,05-Jul-21,6515714,4.34,LIMITED COMPANY,CONTRACT NATURAL GAS LTD,300000020484079
Portsmouth City Council,PCC,Housing Revenue Account,Special Services,"Housing, Neighbourhood and Building Services",Premises-Related Expenditure,Energy costs,05-Jul-21,6515714,2.48,LIMITED COMPANY,CONTRACT NATURAL GAS LTD,300000020484079
Portsmouth City Council,PCC,Support Service / Transparency Costs Unallocated,AMS,"Housing, Neighbourhood and Building Services",Premises-Related Expenditure,Energy costs,05-Jul-21,6515714,"7,382.86",LIMITED COMPANY,CONTRACT NATURAL GAS LTD,300000020484079
Portsmouth City Council,PCC,Housing Revenue Account,Special Services,"Housing, Neighbourhood and Building Services",Premises-Related Expenditure,Energy costs,05-Jul-21,6515714,583.94,LIMITED COMPANY,CONTRACT NATURAL GAS LTD,300000020484079
Portsmouth City Council,PCC,Cultural and Related Services,Recreation and Sport,"Culture, Leisure & Regulatory Services",Premises-Related Expenditure,Energy costs,05-Jul-21,6515714,"7,363.11",LIMITED COMPANY,CONTRACT NATURAL GAS LTD,300000020484079
Portsmouth City Council,PCC,Housing Revenue Account,Special Services,"Housing, Neighbourhood and Building Services",Premises-Related Expenditure,Energy costs,05-Jul-21,6515714,-36.05,LIMITED COMPANY,CONTRACT NATURAL GAS LTD,300000020484079
Portsmouth City Council,PCC,Planning Services,Business support,Regeneration,Premises-Related Expenditure,Energy costs,05-Jul-21,6515714,"3,425.46",LIMITED COMPANY,CONTRACT NATURAL GAS LTD,300000020484079
Portsmouth City Council,PCC,Housing Revenue Account,Special Services,"Housing, Neighbourhood and Building Services",Premises-Related Expenditure,Energy costs,05-Jul-21,6515714,-773.07,LIMITED COMPANY,CONTRACT NATURAL GAS LTD,300000020484079
Portsmouth City Council,PCC,Housing Revenue Account,Special Services,"Housing, Neighbourhood and Building Services",Premises-Related Expenditure,Energy costs,05-Jul-21,6515714,815.54,LIMITED COMPANY,CONTRACT NATURAL GAS LTD,300000020484079
Portsmouth City Council,PCC,Housing Revenue Account,Special Services,"Housing, Neighbourhood and Building Services",Premises-Related Expenditure,Energy costs,05-Jul-21,6515714,706.82,LIMITED COMPANY,CONTRACT NATURAL GAS LTD,300000020484079
Portsmouth City Council,PCC,Cultural and Related Services,Culture and Heritage,"Culture, Leisure & Regulatory Services",Premises-Related Expenditure,Energy costs,05-Jul-21,6515714,139.34,LIMITED COMPANY,CONTRACT NATURAL GAS LTD,300000020484079
Portsmouth City Council,PCC,0,0,"Culture, Leisure & Regulatory Services",Premises-Related Expenditure,Energy costs,05-Jul-21,6515714,495.8,LIMITED COMPANY,CONTRACT NATURAL GAS LTD,300000020484079
Portsmouth City Council,PCC,Housing Revenue Account,Special Services,"Housing, Neighbourhood and Building Services",Premises-Related Expenditure,Energy costs,05-Jul-21,6515714,"-1,670.06",LIMITED COMPANY,CONTRACT NATURAL GAS LTD,300000020484079
Portsmouth City Council,PCC,Housing Revenue Account,Special Services,"Housing, Neighbourhood and Building Services",Premises-Related Expenditure,Energy costs,05-Jul-21,6515714,114.34,LIMITED COMPANY,CONTRACT NATURAL GAS LTD,300000020484079
Portsmouth City Council,PCC,Cultural and Related Services,Recreation and Sport,"Culture, Leisure & Regulatory Services",Premises-Related Expenditure,Energy costs,05-Jul-21,6515714,153.42,LIMITED COMPANY,CONTRACT NATURAL GAS LTD,300000020484079
Portsmouth City Council,PCC,Housing Revenue Account,Supervision and Management,"Housing, Neighbourhood and Building Services",Premises-Related Expenditure,Energy costs,05-Jul-21,6515714,433.87,LIMITED COMPANY,CONTRACT NATURAL GAS LTD,300000020484079
Portsmouth City Council,PCC,Highways and Transport Services,"Airports, Harbours and Toll Facilities",Portsmouth International Port,Premises-Related Expenditure,Energy costs,05-Jul-21,6515714,63.43,LIMITED COMPANY,CONTRACT NATURAL GAS LTD,300000020484079
Portsmouth City Council,PCC,Cultural and Related Services,Open Spaces,"Culture, Leisure & Regulatory Services",Premises-Related Expenditure,Energy costs,05-Jul-21,6515714,193.34,LIMITED COMPANY,CONTRACT NATURAL GAS LTD,300000020484079
Portsmouth City Council,PCC,Housing Revenue Account,Special Services,"Housing, Neighbourhood and Building Services",Premises-Related Expenditure,Energy costs,05-Jul-21,6515714,21.62,LIMITED COMPANY,CONTRACT NATURAL GAS LTD,300000020484079
Portsmouth City Council,PCC,Children's and Education Services,Children Looked After,Children's Services and Education,Premises-Related Expenditure,Energy costs,05-Jul-21,6515714,296.73,LIMITED COMPANY,CONTRACT NATURAL GAS LTD,300000020484079
Portsmouth City Council,PCC,Housing Revenue Account,Special Services,"Housing, Neighbourhood and Building Services",Premises-Related Expenditure,Energy costs,05-Jul-21,6515714,15.81,LIMITED COMPANY,CONTRACT NATURAL GAS LTD,300000020484079
Portsmouth City Council,PCC,Housing Revenue Account,Supervision and Management,"Housing, Neighbourhood and Building Services",Premises-Related Expenditure,Energy costs,05-Jul-21,6515714,2.48,LIMITED COMPANY,CONTRACT NATURAL GAS LTD,300000020484079
Portsmouth City Council,PCC,Highways and Transport Services,"Airports, Harbours and Toll Facilities",Portsmouth International Port,Premises-Related Expenditure,Energy costs,05-Jul-21,6515714,2.48,LIMITED COMPANY,CONTRACT NATURAL GAS LTD,300000020484079
Portsmouth City Council,PCC,Adult Social Care,Physical Support Older People (85+),Adult Services,Third Party Payments,Other establishments,21-Jul-21,6518898,275.28,SUPPLIER,ADMIRAL CARE LTD,300000020477405
Portsmouth City Council,PCC,Adult Social Care,Physical Support Older People (85+),Adult Services,Third Party Payments,Other establishments,21-Jul-21,6518898,297.48,SUPPLIER,ADMIRAL CARE LTD,300000020477405
Portsmouth City Council,PCC,Adult Social Care,Mental Health Support Older People (65 - 74),Adult Services,Third Party Payments,Other establishments,21-Jul-21,6518898,355.2,SUPPLIER,ADMIRAL CARE LTD,300000020477405
Portsmouth City Council,PCC,Housing Revenue Account,Supervision and Management,"Housing, Neighbourhood and Building Services",Premises-Related Expenditure,Energy costs,05-Jul-21,6515714,"1,243.16",LIMITED COMPANY,CONTRACT NATURAL GAS LTD,300000020484079
Portsmouth City Council,PCC,Adult Social Care,Social Care Activities,Adult Services,Third Party Payments,Other establishments,21-Jul-21,6518898,366.72,SUPPLIER,ADMIRAL CARE LTD,300000020477405
Portsmouth City Council,PCC,Children's and Education Services,Primary Schools,Children's Services and Education,Premises-Related Expenditure,Energy costs,05-Jul-21,6515714,789.06,LIMITED COMPANY,CONTRACT NATURAL GAS LTD,300000020484079
Portsmouth City Council,PCC,Children's and Education Services,Primary Schools,Children's Services and Education,Premises-Related Expenditure,Energy costs,05-Jul-21,6515714,98.03,LIMITED COMPANY,CONTRACT NATURAL GAS LTD,300000020484079
Portsmouth City Council,PCC,Housing Revenue Account,Special Services,"Housing, Neighbourhood and Building Services",Premises-Related Expenditure,Energy costs,05-Jul-21,6515714,209.81,LIMITED COMPANY,CONTRACT NATURAL GAS LTD,300000020484079
Portsmouth City Council,PCC,Children's and Education Services,Other Education and Community Budget,Children's Services and Education,Premises-Related Expenditure,Energy costs,05-Jul-21,6515714,32.55,LIMITED COMPANY,CONTRACT NATURAL GAS LTD,300000020484079
Portsmouth City Council,PCC,Adult Social Care,Physical Support Older People (85+),Adult Services,Third Party Payments,Other establishments,21-Jul-21,6518898,372.96,SUPPLIER,ADMIRAL CARE LTD,300000020477405
Portsmouth City Council,PCC,Housing Revenue Account,Special Services,"Housing, Neighbourhood and Building Services",Premises-Related Expenditure,Energy costs,05-Jul-21,6515714,77.75,LIMITED COMPANY,CONTRACT NATURAL GAS LTD,300000020484079
Portsmouth City Council,PCC,Housing Revenue Account,Special Services,"Housing, Neighbourhood and Building Services",Premises-Related Expenditure,Energy costs,05-Jul-21,6515714,26.04,LIMITED COMPANY,CONTRACT NATURAL GAS LTD,300000020484079
Portsmouth City Council,PCC,Housing Revenue Account,Special Services,"Housing, Neighbourhood and Building Services",Premises-Related Expenditure,Energy costs,05-Jul-21,6515714,0.32,LIMITED COMPANY,CONTRACT NATURAL GAS LTD,300000020484079
Portsmouth City Council,PCC,Adult Social Care,Physical Support Adults (18 - 64),Adult Services,Third Party Payments,Other establishments,21-Jul-21,6518898,390.15,SUPPLIER,ADMIRAL CARE LTD,300000020477405
Portsmouth City Council,PCC,Other,Suspense and Capital Schemes,Portsmouth International Port,Premises-Related Expenditure,Energy costs,05-Jul-21,6515714,341.14,LIMITED COMPANY,CONTRACT NATURAL GAS LTD,300000020484079
Portsmouth City Council,PCC,Housing Revenue Account,Special Services,"Housing, Neighbourhood and Building Services",Premises-Related Expenditure,Energy costs,05-Jul-21,6515714,88.5,LIMITED COMPANY,CONTRACT NATURAL GAS LTD,300000020484079
Portsmouth City Council,PCC,Housing Revenue Account,Special Services,"Housing, Neighbourhood and Building Services",Premises-Related Expenditure,Energy costs,05-Jul-21,6515714,60.18,LIMITED COMPANY,CONTRACT NATURAL GAS LTD,300000020484079
Portsmouth City Council,PCC,Children's and Education Services,Primary Schools,Children's Services and Education,Premises-Related Expenditure,Energy costs,05-Jul-21,6515714,418.78,LIMITED COMPANY,CONTRACT NATURAL GAS LTD,300000020484079
Portsmouth City Council,PCC,Housing Revenue Account,Special Services,"Housing, Neighbourhood and Building Services",Premises-Related Expenditure,Energy costs,05-Jul-21,6515714,"-3,702.73",LIMITED COMPANY,CONTRACT NATURAL GAS LTD,300000020484079
Portsmouth City Council,PCC,Children's and Education Services,Primary Schools,Children's Services and Education,Premises-Related Expenditure,Energy costs,05-Jul-21,6515714,193.58,LIMITED COMPANY,CONTRACT NATURAL GAS LTD,300000020484079
Portsmouth City Council,PCC,Housing Revenue Account,Special Services,"Housing, Neighbourhood and Building Services",Premises-Related Expenditure,Energy costs,05-Jul-21,6515714,34.83,LIMITED COMPANY,CONTRACT NATURAL GAS LTD,300000020484079
Portsmouth City Council,PCC,Housing Revenue Account,Special Services,"Housing, Neighbourhood and Building Services",Premises-Related Expenditure,Energy costs,05-Jul-21,6515714,696.78,LIMITED COMPANY,CONTRACT NATURAL GAS LTD,300000020484079
Portsmouth City Council,PCC,Housing Revenue Account,Special Services,"Housing, Neighbourhood and Building Services",Premises-Related Expenditure,Energy costs,05-Jul-21,6515714,146.53,LIMITED COMPANY,CONTRACT NATURAL GAS LTD,300000020484079
Portsmouth City Council,PCC,Children's and Education Services,Primary Schools,Children's Services and Education,Premises-Related Expenditure,Energy costs,05-Jul-21,6515714,118.43,LIMITED COMPANY,CONTRACT NATURAL GAS LTD,300000020484079
Portsmouth City Council,PCC,Housing Revenue Account,Special Services,"Housing, Neighbourhood and Building Services",Premises-Related Expenditure,Energy costs,05-Jul-21,6515714,"1,164.70",LIMITED COMPANY,CONTRACT NATURAL GAS LTD,300000020484079
Portsmouth City Council,PCC,Housing Revenue Account,"Rents, Rates, Taxes and Other Charges","Housing, Neighbourhood and Building Services",Premises-Related Expenditure,Energy costs,05-Jul-21,6515714,6.05,LIMITED COMPANY,CONTRACT NATURAL GAS LTD,300000020484079
Portsmouth City Council,PCC,Housing Revenue Account,Supervision and Management,"Housing, Neighbourhood and Building Services",Premises-Related Expenditure,Energy costs,05-Jul-21,6515714,28.52,LIMITED COMPANY,CONTRACT NATURAL GAS LTD,300000020484079
Portsmouth City Council,PCC,Children's and Education Services,Primary Schools,Children's Services and Education,Premises-Related Expenditure,Energy costs,05-Jul-21,6515714,269.69,LIMITED COMPANY,CONTRACT NATURAL GAS LTD,300000020484079
Portsmouth City Council,PCC,Adult Social Care,Physical Support Older People (85+),Adult Services,Third Party Payments,Other establishments,21-Jul-21,6518898,497.28,SUPPLIER,ADMIRAL CARE LTD,300000020477405
Portsmouth City Council,PCC,Housing Revenue Account,Special Services,"Housing, Neighbourhood and Building Services",Premises-Related Expenditure,Energy costs,05-Jul-21,6515714,19.08,LIMITED COMPANY,CONTRACT NATURAL GAS LTD,300000020484079
Portsmouth City Council,PCC,Housing Revenue Account,Special Services,"Housing, Neighbourhood and Building Services",Premises-Related Expenditure,Energy costs,05-Jul-21,6515714,28.4,LIMITED COMPANY,CONTRACT NATURAL GAS LTD,300000020484079
Portsmouth City Council,PCC,Housing Revenue Account,Special Services,"Housing, Neighbourhood and Building Services",Premises-Related Expenditure,Energy costs,05-Jul-21,6515714,3.12,LIMITED COMPANY,CONTRACT NATURAL GAS LTD,300000020484079
Portsmouth City Council,PCC,Children's and Education Services,Children Looked After,Children's Services and Education,Premises-Related Expenditure,Energy costs,05-Jul-21,6515714,204.14,LIMITED COMPANY,CONTRACT NATURAL GAS LTD,300000020484079
Portsmouth City Council,PCC,Housing Revenue Account,Special Services,"Housing, Neighbourhood and Building Services",Premises-Related Expenditure,Energy costs,05-Jul-21,6515714,3.33,LIMITED COMPANY,CONTRACT NATURAL GAS LTD,300000020484079
Portsmouth City Council,PCC,Children's and Education Services,Primary Schools,Children's Services and Education,Premises-Related Expenditure,Energy costs,05-Jul-21,6515714,"3,251.38",LIMITED COMPANY,CONTRACT NATURAL GAS LTD,300000020484079
Portsmouth City Council,PCC,Children's and Education Services,Primary Schools,Children's Services and Education,Premises-Related Expenditure,Energy costs,05-Jul-21,6515714,485.91,LIMITED COMPANY,CONTRACT NATURAL GAS LTD,300000020484079
Portsmouth City Council,PCC,Housing Revenue Account,Special Services,"Housing, Neighbourhood and Building Services",Premises-Related Expenditure,Energy costs,05-Jul-21,6515714,172.76,LIMITED COMPANY,CONTRACT NATURAL GAS LTD,300000020484079
Portsmouth City Council,PCC,Children's and Education Services,Primary Schools,Children's Services and Education,Premises-Related Expenditure,Energy costs,05-Jul-21,6515714,243.76,LIMITED COMPANY,CONTRACT NATURAL GAS LTD,300000020484079
Portsmouth City Council,PCC,Housing Revenue Account,Supervision and Management,"Housing, Neighbourhood and Building Services",Premises-Related Expenditure,Energy costs,05-Jul-21,6515714,144.4,LIMITED COMPANY,CONTRACT NATURAL GAS LTD,300000020484079
Portsmouth City Council,PCC,Housing Revenue Account,Supervision and Management,"Housing, Neighbourhood and Building Services",Premises-Related Expenditure,Energy costs,05-Jul-21,6515714,179.96,LIMITED COMPANY,CONTRACT NATURAL GAS LTD,300000020484079
Portsmouth City Council,PCC,Housing Revenue Account,Special Services,"Housing, Neighbourhood and Building Services",Premises-Related Expenditure,Energy costs,05-Jul-21,6515714,32.24,LIMITED COMPANY,CONTRACT NATURAL GAS LTD,300000020484079
Portsmouth City Council,PCC,Housing Revenue Account,Special Services,"Housing, Neighbourhood and Building Services",Premises-Related Expenditure,Energy costs,05-Jul-21,6515714,53.26,LIMITED COMPANY,CONTRACT NATURAL GAS LTD,300000020484079
Portsmouth City Council,PCC,Housing Services,Homelessness,"Housing, Neighbourhood and Building Services",Premises-Related Expenditure,Energy costs,05-Jul-21,6515714,38.62,LIMITED COMPANY,CONTRACT NATURAL GAS LTD,300000020484079
Portsmouth City Council,PCC,Other,Suspense and Capital Schemes,"Housing, Neighbourhood and Building Services",Premises-Related Expenditure,Energy costs,05-Jul-21,6515714,12.63,LIMITED COMPANY,CONTRACT NATURAL GAS LTD,300000020484079
Portsmouth City Council,PCC,Housing Revenue Account,Special Services,"Housing, Neighbourhood and Building Services",Premises-Related Expenditure,Energy costs,05-Jul-21,6515714,80.83,LIMITED COMPANY,CONTRACT NATURAL GAS LTD,300000020484079
Portsmouth City Council,PCC,Housing Revenue Account,Special Services,"Housing, Neighbourhood and Building Services",Premises-Related Expenditure,Energy costs,05-Jul-21,6515714,35.06,LIMITED COMPANY,CONTRACT NATURAL GAS LTD,300000020484079
Portsmouth City Council,PCC,Housing Revenue Account,Special Services,"Housing, Neighbourhood and Building Services",Premises-Related Expenditure,Energy costs,05-Jul-21,6515714,62.62,LIMITED COMPANY,CONTRACT NATURAL GAS LTD,300000020484079
Portsmouth City Council,PCC,Housing Revenue Account,Special Services,"Housing, Neighbourhood and Building Services",Premises-Related Expenditure,Energy costs,05-Jul-21,6515714,58.52,LIMITED COMPANY,CONTRACT NATURAL GAS LTD,300000020484079
Portsmouth City Council,PCC,Housing Revenue Account,Special Services,"Housing, Neighbourhood and Building Services",Premises-Related Expenditure,Energy costs,05-Jul-21,6515714,71.66,LIMITED COMPANY,CONTRACT NATURAL GAS LTD,300000020484079
Portsmouth City Council,PCC,Housing Revenue Account,Special Services,"Housing, Neighbourhood and Building Services",Premises-Related Expenditure,Energy costs,05-Jul-21,6515714,9.39,LIMITED COMPANY,CONTRACT NATURAL GAS LTD,300000020484079
Portsmouth City Council,PCC,Highways and Transport Services,"Airports, Harbours and Toll Facilities",Portsmouth International Port,Premises-Related Expenditure,Energy costs,05-Jul-21,6515714,13.64,LIMITED COMPANY,CONTRACT NATURAL GAS LTD,300000020484079
Portsmouth City Council,PCC,Other,Suspense and Capital Schemes,Portsmouth International Port,Premises-Related Expenditure,Energy costs,05-Jul-21,6515714,117.26,LIMITED COMPANY,CONTRACT NATURAL GAS LTD,300000020484079
Portsmouth City Council,PCC,Housing Revenue Account,Special Services,"Housing, Neighbourhood and Building Services",Premises-Related Expenditure,Energy costs,05-Jul-21,6515714,410.34,LIMITED COMPANY,CONTRACT NATURAL GAS LTD,300000020484079
Portsmouth City Council,PCC,Housing Services,Homelessness,"Housing, Neighbourhood and Building Services",Premises-Related Expenditure,Energy costs,05-Jul-21,6515714,24.69,LIMITED COMPANY,CONTRACT NATURAL GAS LTD,300000020484079
Portsmouth City Council,PCC,Children's and Education Services,Primary Schools,Children's Services and Education,Premises-Related Expenditure,Energy costs,05-Jul-21,6515714,17.25,LIMITED COMPANY,CONTRACT NATURAL GAS LTD,300000020484079
Portsmouth City Council,PCC,Children's and Education Services,Other Children and Family Services,Children's Services and Education,Premises-Related Expenditure,Energy costs,05-Jul-21,6515714,35.66,LIMITED COMPANY,CONTRACT NATURAL GAS LTD,300000020484079
Portsmouth City Council,PCC,Housing Services,Homelessness,"Housing, Neighbourhood and Building Services",Premises-Related Expenditure,Energy costs,05-Jul-21,6515714,34.78,LIMITED COMPANY,CONTRACT NATURAL GAS LTD,300000020484079
Portsmouth City Council,PCC,Housing Services,Homelessness,"Housing, Neighbourhood and Building Services",Premises-Related Expenditure,Energy costs,05-Jul-21,6515714,42.81,LIMITED COMPANY,CONTRACT NATURAL GAS LTD,300000020484079
Portsmouth City Council,PCC,Adult Social Care,Physical Support Older People (85+),Adult Services,Third Party Payments,Other establishments,21-Jul-21,6518898,497.28,SUPPLIER,ADMIRAL CARE LTD,300000020477405
Portsmouth City Council,PCC,Housing Revenue Account,Special Services,"Housing, Neighbourhood and Building Services",Premises-Related Expenditure,Energy costs,05-Jul-21,6515714,83.32,LIMITED COMPANY,CONTRACT NATURAL GAS LTD,300000020484079
Portsmouth City Council,PCC,Children's and Education Services,Primary Schools,Children's Services and Education,Premises-Related Expenditure,Energy costs,05-Jul-21,6515714,241.41,LIMITED COMPANY,CONTRACT NATURAL GAS LTD,300000020484079
Portsmouth City Council,PCC,Adult Social Care,Physical Support Older People (85+),Adult Services,Third Party Payments,Other establishments,21-Jul-21,6518898,497.28,SUPPLIER,ADMIRAL CARE LTD,300000020477405
Portsmouth City Council,PCC,Children's and Education Services,Children Looked After,Children's Services and Education,Premises-Related Expenditure,Energy costs,05-Jul-21,6515714,62.99,LIMITED COMPANY,CONTRACT NATURAL GAS LTD,300000020484079
Portsmouth City Council,PCC,Housing Revenue Account,Special Services,"Housing, Neighbourhood and Building Services",Premises-Related Expenditure,Energy costs,05-Jul-21,6515714,123.72,LIMITED COMPANY,CONTRACT NATURAL GAS LTD,300000020484079
Portsmouth City Council,PCC,Other,Suspense and Capital Schemes,"Housing, Neighbourhood and Building Services",Supplies and Services,Services,09-Jul-21,6516583,"10,000.00",LIMITED COMPANY,L DEVINE AND CO LIMITED,300000020464366
Portsmouth City Council,PCC,Housing Revenue Account,"Rents, Rates, Taxes and Other Charges","Housing, Neighbourhood and Building Services",Premises-Related Expenditure,Rates,23-Jul-21,6519248,112,OTHER LOCAL AUTHORITY,HAVANT BOROUGH COUNCIL,300000020457057
Portsmouth City Council,PCC,Housing Revenue Account,Special Services,"Housing, Neighbourhood and Building Services",Premises-Related Expenditure,Energy costs,05-Jul-21,6515714,40.98,LIMITED COMPANY,CONTRACT NATURAL GAS LTD,300000020484079
Portsmouth City Council,PCC,Housing Revenue Account,Special Services,"Housing, Neighbourhood and Building Services",Premises-Related Expenditure,Energy costs,05-Jul-21,6515714,82.98,LIMITED COMPANY,CONTRACT NATURAL GAS LTD,300000020484079
Portsmouth City Council,PCC,Housing Revenue Account,Special Services,"Housing, Neighbourhood and Building Services",Premises-Related Expenditure,Energy costs,05-Jul-21,6515714,37.38,LIMITED COMPANY,CONTRACT NATURAL GAS LTD,300000020484079
Portsmouth City Council,PCC,Housing Revenue Account,Special Services,"Housing, Neighbourhood and Building Services",Premises-Related Expenditure,Energy costs,05-Jul-21,6515714,234.62,LIMITED COMPANY,CONTRACT NATURAL GAS LTD,300000020484079
Portsmouth City Council,PCC,Housing Revenue Account,Special Services,"Housing, Neighbourhood and Building Services",Premises-Related Expenditure,Energy costs,05-Jul-21,6515714,53.34,LIMITED COMPANY,CONTRACT NATURAL GAS LTD,300000020484079
Portsmouth City Council,PCC,Other,Suspense and Capital Schemes,Capital - Housing General Fund,Capital Charges,REFCUS,09-Jul-21,6516580,"3,675.00",LIMITED COMPANY,LIFTECH SYSTEMS (SE) LIMITED,300000020461913
Portsmouth City Council,PCC,Other,Suspense and Capital Schemes,Capital - Housing General Fund,Capital Charges,REFCUS,09-Jul-21,6516580,"1,385.00",LIMITED COMPANY,LIFTECH SYSTEMS (SE) LIMITED,300000020461913
Portsmouth City Council,PCC,Children's and Education Services,Children Looked After,Children's Services and Education,Third Party Payments,Other establishments,09-Jul-21,6516666,457.14,SUPPLIER,WESTERN PATHWAYS LIMITED,300000020475374
Portsmouth City Council,PCC,Children's and Education Services,Children Looked After,Children's Services and Education,Third Party Payments,Other establishments,09-Jul-21,6516666,"1,142.86",SUPPLIER,WESTERN PATHWAYS LIMITED,300000020475374
Portsmouth City Council,PCC,Children's and Education Services,Children Looked After,Children's Services and Education,Third Party Payments,Other establishments,09-Jul-21,6516666,457.14,SUPPLIER,WESTERN PATHWAYS LIMITED,300000020475374
Portsmouth City Council,PCC,Children's and Education Services,Children Looked After,Children's Services and Education,Third Party Payments,Other establishments,09-Jul-21,6516666,"1,142.86",SUPPLIER,WESTERN PATHWAYS LIMITED,300000020475374
Portsmouth City Council,PCC,Children's and Education Services,Safeguarding Children and Young Peoples Services,Children's Services and Education,Third Party Payments,Other establishments,09-Jul-21,6516666,228.57,SUPPLIER,WESTERN PATHWAYS LIMITED,300000020475374
Portsmouth City Council,PCC,Children's and Education Services,Safeguarding Children and Young Peoples Services,Children's Services and Education,Third Party Payments,Other establishments,09-Jul-21,6516666,571.43,SUPPLIER,WESTERN PATHWAYS LIMITED,300000020475374
Portsmouth City Council,PCC,Children's and Education Services,Safeguarding Children and Young Peoples Services,Children's Services and Education,Third Party Payments,Other establishments,09-Jul-21,6516666,228.57,SUPPLIER,WESTERN PATHWAYS LIMITED,300000020475374
Portsmouth City Council,PCC,Children's and Education Services,Safeguarding Children and Young Peoples Services,Children's Services and Education,Third Party Payments,Other establishments,09-Jul-21,6516666,571.43,SUPPLIER,WESTERN PATHWAYS LIMITED,300000020475374
Portsmouth City Council,PCC,Children's and Education Services,Safeguarding Children and Young Peoples Services,Children's Services and Education,Third Party Payments,Other establishments,09-Jul-21,6516666,228.57,SUPPLIER,WESTERN PATHWAYS LIMITED,300000020475374
Portsmouth City Council,PCC,Children's and Education Services,Safeguarding Children and Young Peoples Services,Children's Services and Education,Third Party Payments,Other establishments,09-Jul-21,6516666,571.43,SUPPLIER,WESTERN PATHWAYS LIMITED,300000020475374
Portsmouth City Council,PCC,Children's and Education Services,Safeguarding Children and Young Peoples Services,Children's Services and Education,Third Party Payments,Other establishments,09-Jul-21,6516666,228.57,SUPPLIER,WESTERN PATHWAYS LIMITED,300000020475374
Portsmouth City Council,PCC,Children's and Education Services,Safeguarding Children and Young Peoples Services,Children's Services and Education,Third Party Payments,Other establishments,09-Jul-21,6516666,571.43,SUPPLIER,WESTERN PATHWAYS LIMITED,300000020475374
Portsmouth City Council,PCC,Children's and Education Services,Other Children and Family Services,Children's Services and Education,Supplies and Services,Services,06-Jul-21,6515840,"-2,865.00",SUPPLIER,AA GLOBAL LANGUAGE SERVICES LTD,300000020483226
Portsmouth City Council,PCC,Children's and Education Services,Other Children and Family Services,Children's Services and Education,Supplies and Services,Services,06-Jul-21,6515840,"3,000.00",SUPPLIER,AA GLOBAL LANGUAGE SERVICES LTD,300000020483226
Portsmouth City Council,PCC,Children's and Education Services,Other Children and Family Services,Children's Services and Education,Supplies and Services,Services,06-Jul-21,6515840,-56.5,SUPPLIER,AA GLOBAL LANGUAGE SERVICES LTD,300000020483226
Portsmouth City Council,PCC,Children's and Education Services,Other Children and Family Services,Children's Services and Education,Supplies and Services,Services,06-Jul-21,6515840,300,SUPPLIER,AA GLOBAL LANGUAGE SERVICES LTD,300000020483226
Portsmouth City Council,PCC,Children's and Education Services,Other Children and Family Services,Children's Services and Education,Supplies and Services,Services,06-Jul-21,6515840,243.5,SUPPLIER,AA GLOBAL LANGUAGE SERVICES LTD,300000020483226
Portsmouth City Council,PCC,Children's and Education Services,Other Children and Family Services,Children's Services and Education,Supplies and Services,Services,06-Jul-21,6515840,249,SUPPLIER,AA GLOBAL LANGUAGE SERVICES LTD,300000020483226
Portsmouth City Council,PCC,Children's and Education Services,Other Children and Family Services,Children's Services and Education,Supplies and Services,Services,06-Jul-21,6515840,996,SUPPLIER,AA GLOBAL LANGUAGE SERVICES LTD,300000020483226
Portsmouth City Council,PCC,Children's and Education Services,Children Looked After,Children's Services and Education,Third Party Payments,Other establishments,12-Jul-21,6516855,-248.37,LIMITED COMPANY,RECOVERY HOMES FOR YOUNG PEOPLE LTD,300000115394857
Portsmouth City Council,PCC,Children's and Education Services,Children Looked After,Children's Services and Education,Third Party Payments,Other establishments,12-Jul-21,6516855,33.09,LIMITED COMPANY,RECOVERY HOMES FOR YOUNG PEOPLE LTD,300000115394857
Portsmouth City Council,PCC,Children's and Education Services,Children Looked After,Children's Services and Education,Third Party Payments,Other establishments,12-Jul-21,6516855,41.36,LIMITED COMPANY,RECOVERY HOMES FOR YOUNG PEOPLE LTD,300000115394857
Portsmouth City Council,PCC,Children's and Education Services,Children Looked After,Children's Services and Education,Third Party Payments,Other establishments,12-Jul-21,6516855,173.7,LIMITED COMPANY,RECOVERY HOMES FOR YOUNG PEOPLE LTD,300000115394857
Portsmouth City Council,PCC,Children's and Education Services,Children Looked After,Children's Services and Education,Third Party Payments,Other establishments,12-Jul-21,6516855,511.43,LIMITED COMPANY,RECOVERY HOMES FOR YOUNG PEOPLE LTD,300000115394857
Portsmouth City Council,PCC,Children's and Education Services,Children Looked After,Children's Services and Education,Third Party Payments,Other establishments,12-Jul-21,6516855,600,LIMITED COMPANY,RECOVERY HOMES FOR YOUNG PEOPLE LTD,300000115394857
Portsmouth City Council,PCC,Children's and Education Services,Children Looked After,Children's Services and Education,Third Party Payments,Other establishments,12-Jul-21,6516855,639.29,LIMITED COMPANY,RECOVERY HOMES FOR YOUNG PEOPLE LTD,300000115394857
Portsmouth City Council,PCC,Children's and Education Services,Children Looked After,Children's Services and Education,Third Party Payments,Other establishments,12-Jul-21,6516855,750,LIMITED COMPANY,RECOVERY HOMES FOR YOUNG PEOPLE LTD,300000115394857
Portsmouth City Council,PCC,Children's and Education Services,Children Looked After,Children's Services and Education,Third Party Payments,Other establishments,12-Jul-21,6516855,"2,685.00",LIMITED COMPANY,RECOVERY HOMES FOR YOUNG PEOPLE LTD,300000115394857
Portsmouth City Council,PCC,Children's and Education Services,Children Looked After,Children's Services and Education,Third Party Payments,Other establishments,12-Jul-21,6516855,"3,150.00",LIMITED COMPANY,RECOVERY HOMES FOR YOUNG PEOPLE LTD,300000115394857
Portsmouth City Council,PCC,Children's and Education Services,Children Looked After,Children's Services and Education,Third Party Payments,Other establishments,12-Jul-21,6516711,-35.7,SUPPLIER,CORE ASSETS GROUP,300000020461175
Portsmouth City Council,PCC,Children's and Education Services,Children Looked After,Children's Services and Education,Third Party Payments,Other establishments,12-Jul-21,6516711,476,SUPPLIER,CORE ASSETS GROUP,300000020461175
Portsmouth City Council,PCC,Children's and Education Services,Children Looked After,Children's Services and Education,Third Party Payments,Other establishments,12-Jul-21,6516711,595,SUPPLIER,CORE ASSETS GROUP,300000020461175
Portsmouth City Council,PCC,Children's and Education Services,Children Looked After,Children's Services and Education,Third Party Payments,Other establishments,12-Jul-21,6516711,"2,499.00",SUPPLIER,CORE ASSETS GROUP,300000020461175
Portsmouth City Council,PCC,Children's and Education Services,Children Looked After,Children's Services and Education,Third Party Payments,Other establishments,13-Jul-21,6516950,-254.29,SUPPLIER,STILL WATERS CARE SERVICES LTD,300000020474495
Portsmouth City Council,PCC,Children's and Education Services,Children Looked After,Children's Services and Education,Third Party Payments,Other establishments,13-Jul-21,6516950,-0.11,SUPPLIER,STILL WATERS CARE SERVICES LTD,300000020474495
Portsmouth City Council,PCC,Children's and Education Services,Children Looked After,Children's Services and Education,Third Party Payments,Other establishments,13-Jul-21,6516950,0.11,SUPPLIER,STILL WATERS CARE SERVICES LTD,300000020474495
Portsmouth City Council,PCC,Children's and Education Services,Children Looked After,Children's Services and Education,Third Party Payments,Other establishments,13-Jul-21,6516950,64,SUPPLIER,STILL WATERS CARE SERVICES LTD,300000020474495
Portsmouth City Council,PCC,Children's and Education Services,Children Looked After,Children's Services and Education,Third Party Payments,Other establishments,13-Jul-21,6516950,127.14,SUPPLIER,STILL WATERS CARE SERVICES LTD,300000020474495
Portsmouth City Council,PCC,Children's and Education Services,Children Looked After,Children's Services and Education,Third Party Payments,Other establishments,13-Jul-21,6516950,128,SUPPLIER,STILL WATERS CARE SERVICES LTD,300000020474495
Portsmouth City Council,PCC,Children's and Education Services,Children Looked After,Children's Services and Education,Third Party Payments,Other establishments,13-Jul-21,6516950,254.18,SUPPLIER,STILL WATERS CARE SERVICES LTD,300000020474495
Portsmouth City Council,PCC,Children's and Education Services,Children Looked After,Children's Services and Education,Third Party Payments,Other establishments,13-Jul-21,6516950,254.29,SUPPLIER,STILL WATERS CARE SERVICES LTD,300000020474495
Portsmouth City Council,PCC,Children's and Education Services,Children Looked After,Children's Services and Education,Third Party Payments,Other establishments,13-Jul-21,6516950,"2,240.00",SUPPLIER,STILL WATERS CARE SERVICES LTD,300000020474495
Portsmouth City Council,PCC,Children's and Education Services,Children Looked After,Children's Services and Education,Third Party Payments,Other establishments,13-Jul-21,6516950,"4,450.00",SUPPLIER,STILL WATERS CARE SERVICES LTD,300000020474495
Portsmouth City Council,PCC,Children's and Education Services,Children Looked After,Children's Services and Education,Third Party Payments,Other establishments,13-Jul-21,6516950,-50,SUPPLIER,STILL WATERS CARE SERVICES LTD,300000020474495
Portsmouth City Council,PCC,Children's and Education Services,Children Looked After,Children's Services and Education,Third Party Payments,Other establishments,13-Jul-21,6516950,-4.29,SUPPLIER,STILL WATERS CARE SERVICES LTD,300000020474495
Portsmouth City Council,PCC,Children's and Education Services,Children Looked After,Children's Services and Education,Third Party Payments,Other establishments,13-Jul-21,6516950,-2.86,SUPPLIER,STILL WATERS CARE SERVICES LTD,300000020474495
Portsmouth City Council,PCC,Children's and Education Services,Children Looked After,Children's Services and Education,Third Party Payments,Other establishments,13-Jul-21,6516950,-0.05,SUPPLIER,STILL WATERS CARE SERVICES LTD,300000020474495
Portsmouth City Council,PCC,Children's and Education Services,Children Looked After,Children's Services and Education,Third Party Payments,Other establishments,13-Jul-21,6516950,86.86,SUPPLIER,STILL WATERS CARE SERVICES LTD,300000020474495
Portsmouth City Council,PCC,Children's and Education Services,Children Looked After,Children's Services and Education,Third Party Payments,Other establishments,13-Jul-21,6516950,130.29,SUPPLIER,STILL WATERS CARE SERVICES LTD,300000020474495
Portsmouth City Council,PCC,Children's and Education Services,Children Looked After,Children's Services and Education,Third Party Payments,Other establishments,13-Jul-21,6516950,257.14,SUPPLIER,STILL WATERS CARE SERVICES LTD,300000020474495
Portsmouth City Council,PCC,Children's and Education Services,Children Looked After,Children's Services and Education,Third Party Payments,Other establishments,13-Jul-21,6516950,"1,520.00",SUPPLIER,STILL WATERS CARE SERVICES LTD,300000020474495
Portsmouth City Council,PCC,Children's and Education Services,Children Looked After,Children's Services and Education,Third Party Payments,Other establishments,13-Jul-21,6516950,385.71,SUPPLIER,STILL WATERS CARE SERVICES LTD,300000020474495
Portsmouth City Council,PCC,Children's and Education Services,Children Looked After,Children's Services and Education,Third Party Payments,Other establishments,13-Jul-21,6516950,"4,500.00",SUPPLIER,STILL WATERS CARE SERVICES LTD,300000020474495
Portsmouth City Council,PCC,Children's and Education Services,Children Looked After,Children's Services and Education,Third Party Payments,Other establishments,13-Jul-21,6516950,-44.33,SUPPLIER,STILL WATERS CARE SERVICES LTD,300000020474495
Portsmouth City Council,PCC,Children's and Education Services,Children Looked After,Children's Services and Education,Third Party Payments,Other establishments,13-Jul-21,6516950,27.43,SUPPLIER,STILL WATERS CARE SERVICES LTD,300000020474495
Portsmouth City Council,PCC,Children's and Education Services,Children Looked After,Children's Services and Education,Third Party Payments,Other establishments,13-Jul-21,6516950,54.86,SUPPLIER,STILL WATERS CARE SERVICES LTD,300000020474495
Portsmouth City Council,PCC,Children's and Education Services,Children Looked After,Children's Services and Education,Third Party Payments,Other establishments,13-Jul-21,6516950,128.57,SUPPLIER,STILL WATERS CARE SERVICES LTD,300000020474495
Portsmouth City Council,PCC,Children's and Education Services,Children Looked After,Children's Services and Education,Third Party Payments,Other establishments,13-Jul-21,6516950,768,SUPPLIER,STILL WATERS CARE SERVICES LTD,300000020474495
Portsmouth City Council,PCC,Children's and Education Services,Children Looked After,Children's Services and Education,Third Party Payments,Other establishments,13-Jul-21,6516950,257.14,SUPPLIER,STILL WATERS CARE SERVICES LTD,300000020474495
Portsmouth City Council,PCC,Children's and Education Services,Children Looked After,Children's Services and Education,Third Party Payments,Other establishments,13-Jul-21,6516950,"3,600.00",SUPPLIER,STILL WATERS CARE SERVICES LTD,300000020474495
Portsmouth City Council,PCC,Children's and Education Services,Other Children and Family Services,Children's Services and Education,Third Party Payments,Other establishments,07-Jul-21,6516077,-323,SUPPLIER,ENABLE ABILITY,300000020465080
Portsmouth City Council,PCC,Children's and Education Services,Other Children and Family Services,Children's Services and Education,Third Party Payments,Other establishments,07-Jul-21,6516077,272,SUPPLIER,ENABLE ABILITY,300000020465080
Portsmouth City Council,PCC,Children's and Education Services,Other Children and Family Services,Children's Services and Education,Third Party Payments,Other establishments,07-Jul-21,6516077,714,SUPPLIER,ENABLE ABILITY,300000020465080
Portsmouth City Council,PCC,Children's and Education Services,Other Children and Family Services,Children's Services and Education,Third Party Payments,Other establishments,07-Jul-21,6516077,-255,SUPPLIER,ENABLE ABILITY,300000020465080
Portsmouth City Council,PCC,Children's and Education Services,Other Children and Family Services,Children's Services and Education,Third Party Payments,Other establishments,07-Jul-21,6516077,510,SUPPLIER,ENABLE ABILITY,300000020465080
Portsmouth City Council,PCC,Children's and Education Services,Other Children and Family Services,Children's Services and Education,Third Party Payments,Other establishments,07-Jul-21,6516077,-663,SUPPLIER,ENABLE ABILITY,300000020465080
Portsmouth City Council,PCC,Children's and Education Services,Other Children and Family Services,Children's Services and Education,Third Party Payments,Other establishments,07-Jul-21,6516077,255,SUPPLIER,ENABLE ABILITY,300000020465080
Portsmouth City Council,PCC,Children's and Education Services,Other Children and Family Services,Children's Services and Education,Third Party Payments,Other establishments,07-Jul-21,6516077,510,SUPPLIER,ENABLE ABILITY,300000020465080
Portsmouth City Council,PCC,Children's and Education Services,Other Children and Family Services,Children's Services and Education,Third Party Payments,Other establishments,07-Jul-21,6516077,425,SUPPLIER,ENABLE ABILITY,300000020465080
Portsmouth City Council,PCC,Children's and Education Services,Other Children and Family Services,Children's Services and Education,Third Party Payments,Other establishments,07-Jul-21,6516077,-136,SUPPLIER,ENABLE ABILITY,300000020465080
Portsmouth City Council,PCC,Children's and Education Services,Other Children and Family Services,Children's Services and Education,Third Party Payments,Other establishments,07-Jul-21,6516077,340,SUPPLIER,ENABLE ABILITY,300000020465080
Portsmouth City Council,PCC,Children's and Education Services,Other Children and Family Services,Children's Services and Education,Third Party Payments,Other establishments,07-Jul-21,6516077,"-1,207.00",SUPPLIER,ENABLE ABILITY,300000020465080
Portsmouth City Council,PCC,Children's and Education Services,Other Children and Family Services,Children's Services and Education,Third Party Payments,Other establishments,07-Jul-21,6516077,680,SUPPLIER,ENABLE ABILITY,300000020465080
Portsmouth City Council,PCC,Children's and Education Services,Other Children and Family Services,Children's Services and Education,Third Party Payments,Other establishments,07-Jul-21,6516077,510,SUPPLIER,ENABLE ABILITY,300000020465080
Portsmouth City Council,PCC,Children's and Education Services,Other Children and Family Services,Children's Services and Education,Third Party Payments,Other establishments,07-Jul-21,6516077,"1,020.00",SUPPLIER,ENABLE ABILITY,300000020465080
Portsmouth City Council,PCC,Children's and Education Services,Other Children and Family Services,Children's Services and Education,Third Party Payments,Other establishments,07-Jul-21,6516077,-620.5,SUPPLIER,ENABLE ABILITY,300000020465080
Portsmouth City Council,PCC,Children's and Education Services,Family Support Services,Children's Services and Education,Third Party Payments,Other establishments,07-Jul-21,6516077,544,SUPPLIER,ENABLE ABILITY,300000020465080
Portsmouth City Council,PCC,Children's and Education Services,Other Children and Family Services,Children's Services and Education,Third Party Payments,Other establishments,07-Jul-21,6516077,510,SUPPLIER,ENABLE ABILITY,300000020465080
Portsmouth City Council,PCC,Children's and Education Services,Other Children and Family Services,Children's Services and Education,Third Party Payments,Other establishments,07-Jul-21,6516077,"-2,635.00",SUPPLIER,ENABLE ABILITY,300000020465080
Portsmouth City Council,PCC,Children's and Education Services,Family Support Services,Children's Services and Education,Third Party Payments,Other establishments,07-Jul-21,6516077,612,SUPPLIER,ENABLE ABILITY,300000020465080
Portsmouth City Council,PCC,Children's and Education Services,Other Children and Family Services,Children's Services and Education,Third Party Payments,Other establishments,07-Jul-21,6516077,"1,020.00",SUPPLIER,ENABLE ABILITY,300000020465080
Portsmouth City Council,PCC,Children's and Education Services,Other Children and Family Services,Children's Services and Education,Third Party Payments,Other establishments,07-Jul-21,6516077,"1,785.00",SUPPLIER,ENABLE ABILITY,300000020465080
Portsmouth City Council,PCC,Children's and Education Services,Other Children and Family Services,Children's Services and Education,Third Party Payments,Other establishments,07-Jul-21,6516077,-756.5,SUPPLIER,ENABLE ABILITY,300000020465080
Portsmouth City Council,PCC,Children's and Education Services,Other Children and Family Services,Children's Services and Education,Third Party Payments,Other establishments,07-Jul-21,6516077,637.5,SUPPLIER,ENABLE ABILITY,300000020465080
Portsmouth City Council,PCC,Children's and Education Services,Other Children and Family Services,Children's Services and Education,Third Party Payments,Other establishments,07-Jul-21,6516077,680,SUPPLIER,ENABLE ABILITY,300000020465080
Portsmouth City Council,PCC,Children's and Education Services,Other Children and Family Services,Children's Services and Education,Third Party Payments,Other establishments,07-Jul-21,6516077,-68,SUPPLIER,ENABLE ABILITY,300000020465080
Portsmouth City Council,PCC,Children's and Education Services,Other Children and Family Services,Children's Services and Education,Third Party Payments,Other establishments,07-Jul-21,6516077,170,SUPPLIER,ENABLE ABILITY,300000020465080
Portsmouth City Council,PCC,Children's and Education Services,Family Support Services,Children's Services and Education,Third Party Payments,Other establishments,07-Jul-21,6516077,136,SUPPLIER,ENABLE ABILITY,300000020465080
Portsmouth City Council,PCC,Children's and Education Services,Other Children and Family Services,Children's Services and Education,Third Party Payments,Other establishments,07-Jul-21,6516077,-314.5,SUPPLIER,ENABLE ABILITY,300000020465080
Portsmouth City Council,PCC,Children's and Education Services,Other Children and Family Services,Children's Services and Education,Third Party Payments,Other establishments,07-Jul-21,6516077,408,SUPPLIER,ENABLE ABILITY,300000020465080
Portsmouth City Council,PCC,Children's and Education Services,Other Children and Family Services,Children's Services and Education,Third Party Payments,Other establishments,07-Jul-21,6516077,-939.25,SUPPLIER,ENABLE ABILITY,300000020465080
Portsmouth City Council,PCC,Children's and Education Services,Other Children and Family Services,Children's Services and Education,Third Party Payments,Other establishments,07-Jul-21,6516077,"1,428.00",SUPPLIER,ENABLE ABILITY,300000020465080
Portsmouth City Council,PCC,Children's and Education Services,Other Children and Family Services,Children's Services and Education,Third Party Payments,Other establishments,07-Jul-21,6516077,204,SUPPLIER,ENABLE ABILITY,300000020465080
Portsmouth City Council,PCC,Children's and Education Services,Other Children and Family Services,Children's Services and Education,Third Party Payments,Other establishments,07-Jul-21,6516077,-323,SUPPLIER,ENABLE ABILITY,300000020465080
Portsmouth City Council,PCC,Children's and Education Services,Other Children and Family Services,Children's Services and Education,Third Party Payments,Other establishments,07-Jul-21,6516077,408,SUPPLIER,ENABLE ABILITY,300000020465080
Portsmouth City Council,PCC,Children's and Education Services,Family Support Services,Children's Services and Education,Third Party Payments,Other establishments,07-Jul-21,6516077,544,SUPPLIER,ENABLE ABILITY,300000020465080
Portsmouth City Council,PCC,Children's and Education Services,Family Support Services,Children's Services and Education,Third Party Payments,Other establishments,12-Jul-21,6516716,136,SUPPLIER,ENABLE ABILITY,300000020465080
Portsmouth City Council,PCC,Children's and Education Services,Family Support Services,Children's Services and Education,Third Party Payments,Other establishments,12-Jul-21,6516716,136,SUPPLIER,ENABLE ABILITY,300000020465080
Portsmouth City Council,PCC,Children's and Education Services,Family Support Services,Children's Services and Education,Third Party Payments,Other establishments,12-Jul-21,6516716,136,SUPPLIER,ENABLE ABILITY,300000020465080
Portsmouth City Council,PCC,Children's and Education Services,Family Support Services,Children's Services and Education,Third Party Payments,Other establishments,12-Jul-21,6516716,-68,SUPPLIER,ENABLE ABILITY,300000020465080
Portsmouth City Council,PCC,Children's and Education Services,Family Support Services,Children's Services and Education,Third Party Payments,Other establishments,12-Jul-21,6516716,136,SUPPLIER,ENABLE ABILITY,300000020465080
Portsmouth City Council,PCC,Other,Suspense and Capital Schemes,"Housing, Neighbourhood and Building Services",Premises-Related Expenditure,Energy costs,05-Jul-21,6515714,510.8,LIMITED COMPANY,CONTRACT NATURAL GAS LTD,300000020484079
Portsmouth City Council,PCC,Housing Revenue Account,"Rents, Rates, Taxes and Other Charges","Housing, Neighbourhood and Building Services",Premises-Related Expenditure,Rates,23-Jul-21,6519248,125,OTHER LOCAL AUTHORITY,HAVANT BOROUGH COUNCIL,300000020457057
Portsmouth City Council,PCC,Adult Social Care,Mental Health Support Older People (65 - 74),Adult Services,Third Party Payments,Other establishments,21-Jul-21,6518898,563.88,SUPPLIER,ADMIRAL CARE LTD,300000020477405
Portsmouth City Council,PCC,Adult Social Care,Mental Health Support Older People (65 - 74),Adult Services,Third Party Payments,Other establishments,21-Jul-21,6518898,563.88,SUPPLIER,ADMIRAL CARE LTD,300000020477405
Portsmouth City Council,PCC,Children's and Education Services,Primary Schools,Children's Services and Education,Premises-Related Expenditure,Energy costs,09-Jul-21,6516586,"-1,615.08",PUBLIC LIMITED COMPANY,EDF ENERGY CUSTOMERS PLC,300000020460069
Portsmouth City Council,PCC,Children's and Education Services,Primary Schools,Children's Services and Education,Premises-Related Expenditure,Energy costs,09-Jul-21,6516586,"1,619.25",PUBLIC LIMITED COMPANY,EDF ENERGY CUSTOMERS PLC,300000020460069
Portsmouth City Council,PCC,Children's and Education Services,Primary Schools,Children's Services and Education,Premises-Related Expenditure,Energy costs,09-Jul-21,6516586,"2,013.48",PUBLIC LIMITED COMPANY,EDF ENERGY CUSTOMERS PLC,300000020460069
Portsmouth City Council,PCC,Highways and Transport Services,Street Lighting (including energy costs),Regeneration,Premises-Related Expenditure,Energy costs,09-Jul-21,6516586,"35,948.53",PUBLIC LIMITED COMPANY,EDF ENERGY CUSTOMERS PLC,300000020460069
Portsmouth City Council,PCC,Cultural and Related Services,Culture and Heritage,"Culture, Leisure & Regulatory Services",Premises-Related Expenditure,Energy costs,09-Jul-21,6516586,"1,790.82",PUBLIC LIMITED COMPANY,EDF ENERGY CUSTOMERS PLC,300000020460069
Portsmouth City Council,PCC,Highways and Transport Services,Street Lighting (including energy costs),Regeneration,Premises-Related Expenditure,Energy costs,09-Jul-21,6516586,"-44,131.89",PUBLIC LIMITED COMPANY,EDF ENERGY CUSTOMERS PLC,300000020460069
Portsmouth City Council,PCC,Highways and Transport Services,Street Lighting (including energy costs),Regeneration,Premises-Related Expenditure,Energy costs,09-Jul-21,6516586,"44,131.89",PUBLIC LIMITED COMPANY,EDF ENERGY CUSTOMERS PLC,300000020460069
Portsmouth City Council,PCC,Cultural and Related Services,Culture and Heritage,"Culture, Leisure & Regulatory Services",Premises-Related Expenditure,Energy costs,09-Jul-21,6516586,-700.54,PUBLIC LIMITED COMPANY,EDF ENERGY CUSTOMERS PLC,300000020460069
Portsmouth City Council,PCC,Cultural and Related Services,Culture and Heritage,"Culture, Leisure & Regulatory Services",Premises-Related Expenditure,Energy costs,09-Jul-21,6516586,703.15,PUBLIC LIMITED COMPANY,EDF ENERGY CUSTOMERS PLC,300000020460069
Portsmouth City Council,PCC,Cultural and Related Services,Culture and Heritage,"Culture, Leisure & Regulatory Services",Premises-Related Expenditure,Energy costs,09-Jul-21,6516586,381.49,PUBLIC LIMITED COMPANY,EDF ENERGY CUSTOMERS PLC,300000020460069
Portsmouth City Council,PCC,Housing Revenue Account,Supervision and Management,"Housing, Neighbourhood and Building Services",Premises-Related Expenditure,Energy costs,09-Jul-21,6516586,544.68,PUBLIC LIMITED COMPANY,EDF ENERGY CUSTOMERS PLC,300000020460069
Portsmouth City Council,PCC,Planning Services,Business support,Regeneration,Premises-Related Expenditure,Energy costs,09-Jul-21,6516586,"2,566.00",PUBLIC LIMITED COMPANY,EDF ENERGY CUSTOMERS PLC,300000020460069
Portsmouth City Council,PCC,Housing Revenue Account,"Rents, Rates, Taxes and Other Charges","Housing, Neighbourhood and Building Services",Premises-Related Expenditure,Energy costs,09-Jul-21,6516586,"-1,327.55",PUBLIC LIMITED COMPANY,EDF ENERGY CUSTOMERS PLC,300000020460069
Portsmouth City Council,PCC,Housing Revenue Account,"Rents, Rates, Taxes and Other Charges","Housing, Neighbourhood and Building Services",Premises-Related Expenditure,Energy costs,09-Jul-21,6516586,"1,329.06",PUBLIC LIMITED COMPANY,EDF ENERGY CUSTOMERS PLC,300000020460069
Portsmouth City Council,PCC,Housing Revenue Account,"Rents, Rates, Taxes and Other Charges","Housing, Neighbourhood and Building Services",Premises-Related Expenditure,Energy costs,09-Jul-21,6516586,"1,306.77",PUBLIC LIMITED COMPANY,EDF ENERGY CUSTOMERS PLC,300000020460069
Portsmouth City Council,PCC,Housing Revenue Account,Special Services,"Housing, Neighbourhood and Building Services",Premises-Related Expenditure,Energy costs,09-Jul-21,6516586,356.94,PUBLIC LIMITED COMPANY,EDF ENERGY CUSTOMERS PLC,300000020460069
Portsmouth City Council,PCC,Adult Social Care,Physical Support Adults (18 - 64),Adult Services,Third Party Payments,Other establishments,16-Jul-21,6517965,550.2,PRIVATE PROVIDER,Classified as 'personal data' (under the Data Protection Act 2018),300000020479334
Portsmouth City Council,PCC,Adult Social Care,Commissioning & service delivery,Adult Services,Supplies and Services,Services,09-Jul-21,6516628,"2,366.00",SUPPLIER,ADASS - DIRECTORS OF ADULT SOCIAL SERVICES,300000020476591
Portsmouth City Council,PCC,Adult Social Care,Physical Support Older People (85+),Adult Services,Third Party Payments,Other establishments,06-Jul-21,6515868,44.4,SUPPLIER,AGINCARE UK,300000020481869
Portsmouth City Council,PCC,Planning Services,Business support,Regeneration,Premises-Related Expenditure,Energy costs,09-Jul-21,6516586,"-2,552.64",PUBLIC LIMITED COMPANY,EDF ENERGY CUSTOMERS PLC,300000020460069
Portsmouth City Council,PCC,Planning Services,Business support,Regeneration,Premises-Related Expenditure,Energy costs,09-Jul-21,6516586,"2,557.62",PUBLIC LIMITED COMPANY,EDF ENERGY CUSTOMERS PLC,300000020460069
Portsmouth City Council,PCC,Planning Services,Business support,Regeneration,Premises-Related Expenditure,Energy costs,09-Jul-21,6516586,"2,608.55",PUBLIC LIMITED COMPANY,EDF ENERGY CUSTOMERS PLC,300000020460069
Portsmouth City Council,PCC,Other,Suspense and Capital Schemes,Portsmouth International Port,Premises-Related Expenditure,Energy costs,09-Jul-21,6516586,"-22,627.41",PUBLIC LIMITED COMPANY,EDF ENERGY CUSTOMERS PLC,300000020460069
Portsmouth City Council,PCC,Other,Suspense and Capital Schemes,Portsmouth International Port,Premises-Related Expenditure,Energy costs,09-Jul-21,6516586,"22,661.75",PUBLIC LIMITED COMPANY,EDF ENERGY CUSTOMERS PLC,300000020460069
Portsmouth City Council,PCC,Other,Suspense and Capital Schemes,Portsmouth International Port,Premises-Related Expenditure,Energy costs,09-Jul-21,6516586,"20,382.99",PUBLIC LIMITED COMPANY,EDF ENERGY CUSTOMERS PLC,300000020460069
Portsmouth City Council,PCC,Housing Revenue Account,"Rents, Rates, Taxes and Other Charges","Housing, Neighbourhood and Building Services",Premises-Related Expenditure,Energy costs,09-Jul-21,6516586,463.74,PUBLIC LIMITED COMPANY,EDF ENERGY CUSTOMERS PLC,300000020460069
Portsmouth City Council,PCC,Support Service / Transparency Costs Unallocated,AMS,"Housing, Neighbourhood and Building Services",Premises-Related Expenditure,Energy costs,09-Jul-21,6516586,"-33,800.70",PUBLIC LIMITED COMPANY,EDF ENERGY CUSTOMERS PLC,300000020460069
Portsmouth City Council,PCC,Support Service / Transparency Costs Unallocated,AMS,"Housing, Neighbourhood and Building Services",Premises-Related Expenditure,Energy costs,09-Jul-21,6516586,"33,835.13",PUBLIC LIMITED COMPANY,EDF ENERGY CUSTOMERS PLC,300000020460069
Portsmouth City Council,PCC,Support Service / Transparency Costs Unallocated,AMS,"Housing, Neighbourhood and Building Services",Premises-Related Expenditure,Energy costs,09-Jul-21,6516586,"34,288.18",PUBLIC LIMITED COMPANY,EDF ENERGY CUSTOMERS PLC,300000020460069
Portsmouth City Council,PCC,Children's and Education Services,Primary Schools,Children's Services and Education,Premises-Related Expenditure,Energy costs,09-Jul-21,6516586,-955.64,PUBLIC LIMITED COMPANY,EDF ENERGY CUSTOMERS PLC,300000020460069
Portsmouth City Council,PCC,Children's and Education Services,Primary Schools,Children's Services and Education,Premises-Related Expenditure,Energy costs,09-Jul-21,6516586,970.55,PUBLIC LIMITED COMPANY,EDF ENERGY CUSTOMERS PLC,300000020460069
Portsmouth City Council,PCC,Children's and Education Services,Primary Schools,Children's Services and Education,Premises-Related Expenditure,Energy costs,09-Jul-21,6516586,"1,259.80",PUBLIC LIMITED COMPANY,EDF ENERGY CUSTOMERS PLC,300000020460069
Portsmouth City Council,PCC,Children's and Education Services,Primary Schools,Children's Services and Education,Premises-Related Expenditure,Energy costs,09-Jul-21,6516586,-932.42,PUBLIC LIMITED COMPANY,EDF ENERGY CUSTOMERS PLC,300000020460069
Portsmouth City Council,PCC,Children's and Education Services,Primary Schools,Children's Services and Education,Premises-Related Expenditure,Energy costs,09-Jul-21,6516586,935.23,PUBLIC LIMITED COMPANY,EDF ENERGY CUSTOMERS PLC,300000020460069
Portsmouth City Council,PCC,Children's and Education Services,Primary Schools,Children's Services and Education,Premises-Related Expenditure,Energy costs,09-Jul-21,6516586,"1,100.80",PUBLIC LIMITED COMPANY,EDF ENERGY CUSTOMERS PLC,300000020460069
Portsmouth City Council,PCC,Housing Revenue Account,Special Services,"Housing, Neighbourhood and Building Services",Premises-Related Expenditure,Energy costs,09-Jul-21,6516586,746.26,PUBLIC LIMITED COMPANY,EDF ENERGY CUSTOMERS PLC,300000020460069
Portsmouth City Council,PCC,Cultural and Related Services,Culture and Heritage,"Culture, Leisure & Regulatory Services",Premises-Related Expenditure,Energy costs,09-Jul-21,6516586,-750.3,PUBLIC LIMITED COMPANY,EDF ENERGY CUSTOMERS PLC,300000020460069
Portsmouth City Council,PCC,Cultural and Related Services,Culture and Heritage,"Culture, Leisure & Regulatory Services",Premises-Related Expenditure,Energy costs,09-Jul-21,6516586,751.59,PUBLIC LIMITED COMPANY,EDF ENERGY CUSTOMERS PLC,300000020460069
Portsmouth City Council,PCC,Cultural and Related Services,Culture and Heritage,"Culture, Leisure & Regulatory Services",Premises-Related Expenditure,Energy costs,09-Jul-21,6516586,"1,309.44",PUBLIC LIMITED COMPANY,EDF ENERGY CUSTOMERS PLC,300000020460069
Portsmouth City Council,PCC,Highways and Transport Services,Parking Services,Regeneration,Premises-Related Expenditure,Energy costs,09-Jul-21,6516586,"-1,240.55",PUBLIC LIMITED COMPANY,EDF ENERGY CUSTOMERS PLC,300000020460069
Portsmouth City Council,PCC,Highways and Transport Services,Parking Services,Regeneration,Premises-Related Expenditure,Energy costs,09-Jul-21,6516586,"1,242.92",PUBLIC LIMITED COMPANY,EDF ENERGY CUSTOMERS PLC,300000020460069
Portsmouth City Council,PCC,Highways and Transport Services,Parking Services,Regeneration,Premises-Related Expenditure,Energy costs,09-Jul-21,6516586,"1,170.11",PUBLIC LIMITED COMPANY,EDF ENERGY CUSTOMERS PLC,300000020460069
Portsmouth City Council,PCC,Cultural and Related Services,Library Service,"Culture, Leisure & Regulatory Services",Premises-Related Expenditure,Energy costs,09-Jul-21,6516586,"-5,482.48",PUBLIC LIMITED COMPANY,EDF ENERGY CUSTOMERS PLC,300000020460069
Portsmouth City Council,PCC,Cultural and Related Services,Library Service,"Culture, Leisure & Regulatory Services",Premises-Related Expenditure,Energy costs,09-Jul-21,6516586,"5,490.21",PUBLIC LIMITED COMPANY,EDF ENERGY CUSTOMERS PLC,300000020460069
Portsmouth City Council,PCC,Cultural and Related Services,Library Service,"Culture, Leisure & Regulatory Services",Premises-Related Expenditure,Energy costs,09-Jul-21,6516586,"5,311.78",PUBLIC LIMITED COMPANY,EDF ENERGY CUSTOMERS PLC,300000020460069
Portsmouth City Council,PCC,Planning Services,Business support,Regeneration,Premises-Related Expenditure,Energy costs,09-Jul-21,6516586,-127.39,PUBLIC LIMITED COMPANY,EDF ENERGY CUSTOMERS PLC,300000020460069
Portsmouth City Council,PCC,Planning Services,Business support,Regeneration,Premises-Related Expenditure,Energy costs,09-Jul-21,6516586,127.46,PUBLIC LIMITED COMPANY,EDF ENERGY CUSTOMERS PLC,300000020460069
Portsmouth City Council,PCC,Planning Services,Business support,Regeneration,Premises-Related Expenditure,Energy costs,09-Jul-21,6516586,133.21,PUBLIC LIMITED COMPANY,EDF ENERGY CUSTOMERS PLC,300000020460069
Portsmouth City Council,PCC,Housing Revenue Account,Special Services,"Housing, Neighbourhood and Building Services",Premises-Related Expenditure,Energy costs,09-Jul-21,6516586,802.5,PUBLIC LIMITED COMPANY,EDF ENERGY CUSTOMERS PLC,300000020460069
Portsmouth City Council,PCC,Other,Suspense and Capital Schemes,Portsmouth International Port,Premises-Related Expenditure,Energy costs,09-Jul-21,6516586,-283.69,PUBLIC LIMITED COMPANY,EDF ENERGY CUSTOMERS PLC,300000020460069
Portsmouth City Council,PCC,Other,Suspense and Capital Schemes,Portsmouth International Port,Premises-Related Expenditure,Energy costs,09-Jul-21,6516586,284.05,PUBLIC LIMITED COMPANY,EDF ENERGY CUSTOMERS PLC,300000020460069
Portsmouth City Council,PCC,Other,Suspense and Capital Schemes,Portsmouth International Port,Premises-Related Expenditure,Energy costs,09-Jul-21,6516586,295,PUBLIC LIMITED COMPANY,EDF ENERGY CUSTOMERS PLC,300000020460069
Portsmouth City Council,PCC,Housing Revenue Account,Special Services,"Housing, Neighbourhood and Building Services",Premises-Related Expenditure,Energy costs,09-Jul-21,6516586,"-1,102.47",PUBLIC LIMITED COMPANY,EDF ENERGY CUSTOMERS PLC,300000020460069
Portsmouth City Council,PCC,Housing Revenue Account,Special Services,"Housing, Neighbourhood and Building Services",Premises-Related Expenditure,Energy costs,09-Jul-21,6516586,"1,103.77",PUBLIC LIMITED COMPANY,EDF ENERGY CUSTOMERS PLC,300000020460069
Portsmouth City Council,PCC,Housing Revenue Account,Special Services,"Housing, Neighbourhood and Building Services",Premises-Related Expenditure,Energy costs,09-Jul-21,6516586,"1,147.69",PUBLIC LIMITED COMPANY,EDF ENERGY CUSTOMERS PLC,300000020460069
Portsmouth City Council,PCC,Children's and Education Services,Secondary Schools,Children's Services and Education,Premises-Related Expenditure,Energy costs,09-Jul-21,6516586,"-4,706.08",PUBLIC LIMITED COMPANY,EDF ENERGY CUSTOMERS PLC,300000020460069
Portsmouth City Council,PCC,Children's and Education Services,Secondary Schools,Children's Services and Education,Premises-Related Expenditure,Energy costs,09-Jul-21,6516586,"4,717.81",PUBLIC LIMITED COMPANY,EDF ENERGY CUSTOMERS PLC,300000020460069
Portsmouth City Council,PCC,Children's and Education Services,Secondary Schools,Children's Services and Education,Premises-Related Expenditure,Energy costs,09-Jul-21,6516586,"5,692.30",PUBLIC LIMITED COMPANY,EDF ENERGY CUSTOMERS PLC,300000020460069
Portsmouth City Council,PCC,Cultural and Related Services,Recreation and Sport,"Culture, Leisure & Regulatory Services",Premises-Related Expenditure,Energy costs,09-Jul-21,6516586,"-18,271.49",PUBLIC LIMITED COMPANY,EDF ENERGY CUSTOMERS PLC,300000020460069
Portsmouth City Council,PCC,Cultural and Related Services,Recreation and Sport,"Culture, Leisure & Regulatory Services",Premises-Related Expenditure,Energy costs,09-Jul-21,6516586,"18,293.32",PUBLIC LIMITED COMPANY,EDF ENERGY CUSTOMERS PLC,300000020460069
Portsmouth City Council,PCC,Cultural and Related Services,Recreation and Sport,"Culture, Leisure & Regulatory Services",Premises-Related Expenditure,Energy costs,09-Jul-21,6516586,"15,808.63",PUBLIC LIMITED COMPANY,EDF ENERGY CUSTOMERS PLC,300000020460069
Portsmouth City Council,PCC,Adult Social Care,Physical Support Older People (85+),Adult Services,Third Party Payments,Other establishments,06-Jul-21,6515868,84.36,SUPPLIER,AGINCARE UK,300000020481869
Portsmouth City Council,PCC,Adult Social Care,Physical Support Older People (85+),Adult Services,Third Party Payments,Other establishments,06-Jul-21,6515868,466.2,SUPPLIER,AGINCARE UK,300000020481869
Portsmouth City Council,PCC,Adult Social Care,Physical Support Older People (85+),Adult Services,Third Party Payments,Other establishments,06-Jul-21,6515868,466.2,SUPPLIER,AGINCARE UK,300000020481869
Portsmouth City Council,PCC,Highways and Transport Services,"Environment, Safety and Routine Maintenance",Regeneration,Premises-Related Expenditure,Energy costs,09-Jul-21,6516586,18.74,PUBLIC LIMITED COMPANY,EDF ENERGY CUSTOMERS PLC,300000020460069
Portsmouth City Council,PCC,Adult Social Care,Physical Support Older People (85+),Adult Services,Third Party Payments,Other establishments,02-Jul-21,6515527,71.04,SUPPLIER,AGINCARE UK,300000020481869
Portsmouth City Council,PCC,Adult Social Care,Physical Support Older People (85+),Adult Services,Third Party Payments,Other establishments,02-Jul-21,6515527,35.52,SUPPLIER,AGINCARE UK,300000020481869
Portsmouth City Council,PCC,Adult Social Care,Physical Support Older People (85+),Adult Services,Third Party Payments,Other establishments,02-Jul-21,6515527,270.84,SUPPLIER,AGINCARE UK,300000020481869
Portsmouth City Council,PCC,Costs below Net Cost of Services,Trading,Regeneration,Premises-Related Expenditure,Energy costs,09-Jul-21,6516586,13.31,PUBLIC LIMITED COMPANY,EDF ENERGY CUSTOMERS PLC,300000020460069
Portsmouth City Council,PCC,Planning Services,Business support,Regeneration,Premises-Related Expenditure,Energy costs,09-Jul-21,6516586,332.2,PUBLIC LIMITED COMPANY,EDF ENERGY CUSTOMERS PLC,300000020460069
Portsmouth City Council,PCC,Cultural and Related Services,Recreation and Sport,"Culture, Leisure & Regulatory Services",Premises-Related Expenditure,Energy costs,09-Jul-21,6516586,"-5,702.31",PUBLIC LIMITED COMPANY,EDF ENERGY CUSTOMERS PLC,300000020460069
Portsmouth City Council,PCC,Cultural and Related Services,Culture and Heritage,"Culture, Leisure & Regulatory Services",Premises-Related Expenditure,Energy costs,09-Jul-21,6516586,"-3,607.70",PUBLIC LIMITED COMPANY,EDF ENERGY CUSTOMERS PLC,300000020460069
Portsmouth City Council,PCC,Cultural and Related Services,Culture and Heritage,"Culture, Leisure & Regulatory Services",Premises-Related Expenditure,Energy costs,09-Jul-21,6516586,"3,619.97",PUBLIC LIMITED COMPANY,EDF ENERGY CUSTOMERS PLC,300000020460069
Portsmouth City Council,PCC,Highways and Transport Services,Parking Services,Regeneration,Premises-Related Expenditure,Energy costs,09-Jul-21,6516586,686.81,PUBLIC LIMITED COMPANY,EDF ENERGY CUSTOMERS PLC,300000020460069
Portsmouth City Council,PCC,Housing Revenue Account,Special Services,"Housing, Neighbourhood and Building Services",Premises-Related Expenditure,Energy costs,09-Jul-21,6516586,"8,150.93",PUBLIC LIMITED COMPANY,EDF ENERGY CUSTOMERS PLC,300000020460069
Portsmouth City Council,PCC,Housing Revenue Account,Special Services,"Housing, Neighbourhood and Building Services",Premises-Related Expenditure,Energy costs,09-Jul-21,6516586,"7,112.83",PUBLIC LIMITED COMPANY,EDF ENERGY CUSTOMERS PLC,300000020460069
Portsmouth City Council,PCC,Highways and Transport Services,Street Lighting (including energy costs),Regeneration,Premises-Related Expenditure,Energy costs,09-Jul-21,6516586,"-34,676.71",PUBLIC LIMITED COMPANY,EDF ENERGY CUSTOMERS PLC,300000020460069
Portsmouth City Council,PCC,Highways and Transport Services,Street Lighting (including energy costs),Regeneration,Premises-Related Expenditure,Energy costs,09-Jul-21,6516586,"34,676.71",PUBLIC LIMITED COMPANY,EDF ENERGY CUSTOMERS PLC,300000020460069
Portsmouth City Council,PCC,Housing Revenue Account,Special Services,"Housing, Neighbourhood and Building Services",Premises-Related Expenditure,Energy costs,09-Jul-21,6516586,626.73,PUBLIC LIMITED COMPANY,EDF ENERGY CUSTOMERS PLC,300000020460069
Portsmouth City Council,PCC,Adult Social Care,Physical Support Older People (85+),Adult Services,Third Party Payments,Other establishments,02-Jul-21,6515527,386.28,SUPPLIER,AGINCARE UK,300000020481869
Portsmouth City Council,PCC,Adult Social Care,Physical Support Older People (85+),Adult Services,Third Party Payments,Other establishments,12-Jul-21,6516802,"2,954.61",SUPPLIER,AGINCARE UK,300000020481869
Portsmouth City Council,PCC,Adult Social Care,Physical Support Adults (18 - 64),Adult Services,Third Party Payments,Other establishments,19-Jul-21,6518035,199.8,SUPPLIER,AGINCARE UK,300000020481869
Portsmouth City Council,PCC,Cultural and Related Services,Recreation and Sport,"Culture, Leisure & Regulatory Services",Premises-Related Expenditure,Energy costs,09-Jul-21,6516586,"5,719.15",PUBLIC LIMITED COMPANY,EDF ENERGY CUSTOMERS PLC,300000020460069
Portsmouth City Council,PCC,Cultural and Related Services,Recreation and Sport,"Culture, Leisure & Regulatory Services",Premises-Related Expenditure,Energy costs,09-Jul-21,6516586,"6,093.49",PUBLIC LIMITED COMPANY,EDF ENERGY CUSTOMERS PLC,300000020460069
Portsmouth City Council,PCC,Other,Suspense and Capital Schemes,Capital - Housing General Fund,Capital Charges,Capital Expenditure (WIP),09-Jul-21,6516586,306.94,PUBLIC LIMITED COMPANY,EDF ENERGY CUSTOMERS PLC,300000020460069
Portsmouth City Council,PCC,Housing Revenue Account,Special Services,"Housing, Neighbourhood and Building Services",Premises-Related Expenditure,Energy costs,09-Jul-21,6516586,"1,453.25",PUBLIC LIMITED COMPANY,EDF ENERGY CUSTOMERS PLC,300000020460069
Portsmouth City Council,PCC,Housing Revenue Account,Supervision and Management,"Housing, Neighbourhood and Building Services",Premises-Related Expenditure,Energy costs,09-Jul-21,6516586,"-7,583.78",PUBLIC LIMITED COMPANY,EDF ENERGY CUSTOMERS PLC,300000020460069
Portsmouth City Council,PCC,Housing Revenue Account,Supervision and Management,"Housing, Neighbourhood and Building Services",Premises-Related Expenditure,Energy costs,09-Jul-21,6516586,"7,578.11",PUBLIC LIMITED COMPANY,EDF ENERGY CUSTOMERS PLC,300000020460069
Portsmouth City Council,PCC,Housing Revenue Account,Supervision and Management,"Housing, Neighbourhood and Building Services",Premises-Related Expenditure,Energy costs,09-Jul-21,6516586,"-5,260.34",PUBLIC LIMITED COMPANY,EDF ENERGY CUSTOMERS PLC,300000020460069
Portsmouth City Council,PCC,Housing Revenue Account,Supervision and Management,"Housing, Neighbourhood and Building Services",Premises-Related Expenditure,Energy costs,09-Jul-21,6516586,"5,711.87",PUBLIC LIMITED COMPANY,EDF ENERGY CUSTOMERS PLC,300000020460069
Portsmouth City Council,PCC,Housing Revenue Account,Supervision and Management,"Housing, Neighbourhood and Building Services",Premises-Related Expenditure,Energy costs,09-Jul-21,6516586,"5,171.79",PUBLIC LIMITED COMPANY,EDF ENERGY CUSTOMERS PLC,300000020460069
Portsmouth City Council,PCC,Housing Revenue Account,Special Services,"Housing, Neighbourhood and Building Services",Premises-Related Expenditure,Energy costs,09-Jul-21,6516586,136.6,PUBLIC LIMITED COMPANY,EDF ENERGY CUSTOMERS PLC,300000020460069
Portsmouth City Council,PCC,Children's and Education Services,Children Looked After,Children's Services and Education,Premises-Related Expenditure,Energy costs,09-Jul-21,6516586,259.55,PUBLIC LIMITED COMPANY,EDF ENERGY CUSTOMERS PLC,300000020460069
Portsmouth City Council,PCC,Adult Social Care,Social Care Activities,Adult Services,Third Party Payments,Other establishments,19-Jul-21,6518035,284.16,SUPPLIER,AGINCARE UK,300000020481869
Portsmouth City Council,PCC,Housing Revenue Account,Special Services,"Housing, Neighbourhood and Building Services",Premises-Related Expenditure,Energy costs,09-Jul-21,6516586,"1,175.91",PUBLIC LIMITED COMPANY,EDF ENERGY CUSTOMERS PLC,300000020460069
Portsmouth City Council,PCC,Housing Revenue Account,Special Services,"Housing, Neighbourhood and Building Services",Premises-Related Expenditure,Energy costs,09-Jul-21,6516586,-872.75,PUBLIC LIMITED COMPANY,EDF ENERGY CUSTOMERS PLC,300000020460069
Portsmouth City Council,PCC,Housing Revenue Account,Special Services,"Housing, Neighbourhood and Building Services",Premises-Related Expenditure,Energy costs,09-Jul-21,6516586,874.02,PUBLIC LIMITED COMPANY,EDF ENERGY CUSTOMERS PLC,300000020460069
Portsmouth City Council,PCC,Housing Revenue Account,Special Services,"Housing, Neighbourhood and Building Services",Premises-Related Expenditure,Energy costs,09-Jul-21,6516586,894.67,PUBLIC LIMITED COMPANY,EDF ENERGY CUSTOMERS PLC,300000020460069
Portsmouth City Council,PCC,Costs below Net Cost of Services,Trading,Regeneration,Premises-Related Expenditure,Energy costs,09-Jul-21,6516586,-750.14,PUBLIC LIMITED COMPANY,EDF ENERGY CUSTOMERS PLC,300000020460069
Portsmouth City Council,PCC,Costs below Net Cost of Services,Trading,Regeneration,Premises-Related Expenditure,Energy costs,09-Jul-21,6516586,751.43,PUBLIC LIMITED COMPANY,EDF ENERGY CUSTOMERS PLC,300000020460069
Portsmouth City Council,PCC,Costs below Net Cost of Services,Trading,Regeneration,Premises-Related Expenditure,Energy costs,09-Jul-21,6516586,796.37,PUBLIC LIMITED COMPANY,EDF ENERGY CUSTOMERS PLC,300000020460069
Portsmouth City Council,PCC,Environmental and Regulatory Services,Community Safety (CCTV),"Housing, Neighbourhood and Building Services",Premises-Related Expenditure,Energy costs,09-Jul-21,6516586,"1,520.61",PUBLIC LIMITED COMPANY,EDF ENERGY CUSTOMERS PLC,300000020460069
Portsmouth City Council,PCC,Adult Social Care,Social Care Activities,Adult Services,Third Party Payments,Other establishments,19-Jul-21,6518035,284.16,SUPPLIER,AGINCARE UK,300000020481869
Portsmouth City Council,PCC,Adult Social Care,Social Support - Support for Carer,Adult Services,Third Party Payments,Other establishments,19-Jul-21,6518035,61.12,SUPPLIER,AGINCARE UK,300000020481869
Portsmouth City Council,PCC,Adult Social Care,Physical Support Older People (85+),Adult Services,Third Party Payments,Other establishments,20-Jul-21,6518108,115.44,SUPPLIER,AGINCARE UK,300000020481869
Portsmouth City Council,PCC,Costs below Net Cost of Services,Trading,Regeneration,Premises-Related Expenditure,Energy costs,09-Jul-21,6516586,"-1,117.57",PUBLIC LIMITED COMPANY,EDF ENERGY CUSTOMERS PLC,300000020460069
Portsmouth City Council,PCC,Costs below Net Cost of Services,Trading,Regeneration,Premises-Related Expenditure,Energy costs,09-Jul-21,6516586,"1,119.34",PUBLIC LIMITED COMPANY,EDF ENERGY CUSTOMERS PLC,300000020460069
Portsmouth City Council,PCC,Costs below Net Cost of Services,Trading,Regeneration,Premises-Related Expenditure,Energy costs,09-Jul-21,6516586,"1,140.11",PUBLIC LIMITED COMPANY,EDF ENERGY CUSTOMERS PLC,300000020460069
Portsmouth City Council,PCC,Cultural and Related Services,Culture and Heritage,"Culture, Leisure & Regulatory Services",Premises-Related Expenditure,Energy costs,09-Jul-21,6516586,"-2,536.42",PUBLIC LIMITED COMPANY,EDF ENERGY CUSTOMERS PLC,300000020460069
Portsmouth City Council,PCC,Cultural and Related Services,Culture and Heritage,"Culture, Leisure & Regulatory Services",Premises-Related Expenditure,Energy costs,09-Jul-21,6516586,"2,538.72",PUBLIC LIMITED COMPANY,EDF ENERGY CUSTOMERS PLC,300000020460069
Portsmouth City Council,PCC,Cultural and Related Services,Culture and Heritage,"Culture, Leisure & Regulatory Services",Premises-Related Expenditure,Energy costs,09-Jul-21,6516586,"-2,397.51",PUBLIC LIMITED COMPANY,EDF ENERGY CUSTOMERS PLC,300000020460069
Portsmouth City Council,PCC,Cultural and Related Services,Culture and Heritage,"Culture, Leisure & Regulatory Services",Premises-Related Expenditure,Energy costs,09-Jul-21,6516586,"2,411.28",PUBLIC LIMITED COMPANY,EDF ENERGY CUSTOMERS PLC,300000020460069
Portsmouth City Council,PCC,Cultural and Related Services,Culture and Heritage,"Culture, Leisure & Regulatory Services",Premises-Related Expenditure,Energy costs,09-Jul-21,6516586,"-2,033.43",PUBLIC LIMITED COMPANY,EDF ENERGY CUSTOMERS PLC,300000020460069
Portsmouth City Council,PCC,Cultural and Related Services,Culture and Heritage,"Culture, Leisure & Regulatory Services",Premises-Related Expenditure,Energy costs,09-Jul-21,6516586,"2,011.48",PUBLIC LIMITED COMPANY,EDF ENERGY CUSTOMERS PLC,300000020460069
Portsmouth City Council,PCC,Cultural and Related Services,Culture and Heritage,"Culture, Leisure & Regulatory Services",Premises-Related Expenditure,Energy costs,09-Jul-21,6516586,"-1,787.05",PUBLIC LIMITED COMPANY,EDF ENERGY CUSTOMERS PLC,300000020460069
Portsmouth City Council,PCC,Cultural and Related Services,Culture and Heritage,"Culture, Leisure & Regulatory Services",Premises-Related Expenditure,Energy costs,09-Jul-21,6516586,"1,904.44",PUBLIC LIMITED COMPANY,EDF ENERGY CUSTOMERS PLC,300000020460069
Portsmouth City Council,PCC,Cultural and Related Services,Culture and Heritage,"Culture, Leisure & Regulatory Services",Premises-Related Expenditure,Energy costs,09-Jul-21,6516586,"1,777.64",PUBLIC LIMITED COMPANY,EDF ENERGY CUSTOMERS PLC,300000020460069
Portsmouth City Council,PCC,Housing Revenue Account,Special Services,"Housing, Neighbourhood and Building Services",Premises-Related Expenditure,Energy costs,09-Jul-21,6516586,"1,935.35",PUBLIC LIMITED COMPANY,EDF ENERGY CUSTOMERS PLC,300000020460069
Portsmouth City Council,PCC,Costs below Net Cost of Services,Trading,Regeneration,Premises-Related Expenditure,Energy costs,09-Jul-21,6516586,"79,034.72",PUBLIC LIMITED COMPANY,EDF ENERGY CUSTOMERS PLC,300000020460069
Portsmouth City Council,PCC,Housing Revenue Account,Special Services,"Housing, Neighbourhood and Building Services",Premises-Related Expenditure,Energy costs,09-Jul-21,6516586,"1,060.34",PUBLIC LIMITED COMPANY,EDF ENERGY CUSTOMERS PLC,300000020460069
Portsmouth City Council,PCC,Housing Revenue Account,Special Services,"Housing, Neighbourhood and Building Services",Premises-Related Expenditure,Energy costs,09-Jul-21,6516586,-230.25,PUBLIC LIMITED COMPANY,EDF ENERGY CUSTOMERS PLC,300000020460069
Portsmouth City Council,PCC,Housing Revenue Account,Special Services,"Housing, Neighbourhood and Building Services",Premises-Related Expenditure,Energy costs,09-Jul-21,6516586,231.19,PUBLIC LIMITED COMPANY,EDF ENERGY CUSTOMERS PLC,300000020460069
Portsmouth City Council,PCC,Housing Revenue Account,Special Services,"Housing, Neighbourhood and Building Services",Premises-Related Expenditure,Energy costs,09-Jul-21,6516586,220.55,PUBLIC LIMITED COMPANY,EDF ENERGY CUSTOMERS PLC,300000020460069
Portsmouth City Council,PCC,Housing Revenue Account,Special Services,"Housing, Neighbourhood and Building Services",Premises-Related Expenditure,Energy costs,09-Jul-21,6516586,-461.73,PUBLIC LIMITED COMPANY,EDF ENERGY CUSTOMERS PLC,300000020460069
Portsmouth City Council,PCC,Housing Revenue Account,Special Services,"Housing, Neighbourhood and Building Services",Premises-Related Expenditure,Energy costs,09-Jul-21,6516586,462.46,PUBLIC LIMITED COMPANY,EDF ENERGY CUSTOMERS PLC,300000020460069
Portsmouth City Council,PCC,Housing Revenue Account,Special Services,"Housing, Neighbourhood and Building Services",Premises-Related Expenditure,Energy costs,09-Jul-21,6516586,523.61,PUBLIC LIMITED COMPANY,EDF ENERGY CUSTOMERS PLC,300000020460069
Portsmouth City Council,PCC,Housing Revenue Account,Special Services,"Housing, Neighbourhood and Building Services",Premises-Related Expenditure,Energy costs,09-Jul-21,6516586,34.49,PUBLIC LIMITED COMPANY,EDF ENERGY CUSTOMERS PLC,300000020460069
Portsmouth City Council,PCC,Costs below Net Cost of Services,Trading,Regeneration,Premises-Related Expenditure,Energy costs,09-Jul-21,6516586,"-1,121.45",PUBLIC LIMITED COMPANY,EDF ENERGY CUSTOMERS PLC,300000020460069
Portsmouth City Council,PCC,Costs below Net Cost of Services,Trading,Regeneration,Premises-Related Expenditure,Energy costs,09-Jul-21,6516586,"1,126.81",PUBLIC LIMITED COMPANY,EDF ENERGY CUSTOMERS PLC,300000020460069
Portsmouth City Council,PCC,Costs below Net Cost of Services,Trading,Regeneration,Premises-Related Expenditure,Energy costs,09-Jul-21,6516586,937.2,PUBLIC LIMITED COMPANY,EDF ENERGY CUSTOMERS PLC,300000020460069
Portsmouth City Council,PCC,Children's and Education Services,Primary Schools,Children's Services and Education,Premises-Related Expenditure,Energy costs,09-Jul-21,6516586,"-1,332.95",PUBLIC LIMITED COMPANY,EDF ENERGY CUSTOMERS PLC,300000020460069
Portsmouth City Council,PCC,Children's and Education Services,Primary Schools,Children's Services and Education,Premises-Related Expenditure,Energy costs,09-Jul-21,6516586,"1,337.99",PUBLIC LIMITED COMPANY,EDF ENERGY CUSTOMERS PLC,300000020460069
Portsmouth City Council,PCC,Children's and Education Services,Primary Schools,Children's Services and Education,Premises-Related Expenditure,Energy costs,09-Jul-21,6516586,"1,649.28",PUBLIC LIMITED COMPANY,EDF ENERGY CUSTOMERS PLC,300000020460069
Portsmouth City Council,PCC,Other,Suspense and Capital Schemes,"Housing, Neighbourhood and Building Services",Premises-Related Expenditure,Energy costs,09-Jul-21,6516586,11.2,PUBLIC LIMITED COMPANY,EDF ENERGY CUSTOMERS PLC,300000020460069
Portsmouth City Council,PCC,Housing Revenue Account,Special Services,"Housing, Neighbourhood and Building Services",Premises-Related Expenditure,Energy costs,09-Jul-21,6516586,0.17,PUBLIC LIMITED COMPANY,EDF ENERGY CUSTOMERS PLC,300000020460069
Portsmouth City Council,PCC,Children's and Education Services,Primary Schools,Children's Services and Education,Premises-Related Expenditure,Energy costs,09-Jul-21,6516586,"-1,208.30",PUBLIC LIMITED COMPANY,EDF ENERGY CUSTOMERS PLC,300000020460069
Portsmouth City Council,PCC,Children's and Education Services,Primary Schools,Children's Services and Education,Premises-Related Expenditure,Energy costs,09-Jul-21,6516586,"1,210.97",PUBLIC LIMITED COMPANY,EDF ENERGY CUSTOMERS PLC,300000020460069
Portsmouth City Council,PCC,Children's and Education Services,Primary Schools,Children's Services and Education,Premises-Related Expenditure,Energy costs,09-Jul-21,6516586,"1,327.87",PUBLIC LIMITED COMPANY,EDF ENERGY CUSTOMERS PLC,300000020460069
Portsmouth City Council,PCC,Housing Revenue Account,Special Services,"Housing, Neighbourhood and Building Services",Premises-Related Expenditure,Energy costs,09-Jul-21,6516586,-607.85,PUBLIC LIMITED COMPANY,EDF ENERGY CUSTOMERS PLC,300000020460069
Portsmouth City Council,PCC,Housing Revenue Account,Special Services,"Housing, Neighbourhood and Building Services",Premises-Related Expenditure,Energy costs,09-Jul-21,6516586,609.15,PUBLIC LIMITED COMPANY,EDF ENERGY CUSTOMERS PLC,300000020460069
Portsmouth City Council,PCC,Housing Revenue Account,Special Services,"Housing, Neighbourhood and Building Services",Premises-Related Expenditure,Energy costs,09-Jul-21,6516586,597.94,PUBLIC LIMITED COMPANY,EDF ENERGY CUSTOMERS PLC,300000020460069
Portsmouth City Council,PCC,Housing Revenue Account,Special Services,"Housing, Neighbourhood and Building Services",Premises-Related Expenditure,Energy costs,09-Jul-21,6516586,758.18,PUBLIC LIMITED COMPANY,EDF ENERGY CUSTOMERS PLC,300000020460069
Portsmouth City Council,PCC,Highways and Transport Services,Parking Services,Regeneration,Premises-Related Expenditure,Energy costs,09-Jul-21,6516586,-667.69,PUBLIC LIMITED COMPANY,EDF ENERGY CUSTOMERS PLC,300000020460069
Portsmouth City Council,PCC,Highways and Transport Services,Parking Services,Regeneration,Premises-Related Expenditure,Energy costs,09-Jul-21,6516586,716.81,PUBLIC LIMITED COMPANY,EDF ENERGY CUSTOMERS PLC,300000020460069
Portsmouth City Council,PCC,Highways and Transport Services,Parking Services,Regeneration,Premises-Related Expenditure,Energy costs,09-Jul-21,6516586,549.27,PUBLIC LIMITED COMPANY,EDF ENERGY CUSTOMERS PLC,300000020460069
Portsmouth City Council,PCC,Housing Revenue Account,Supervision and Management,"Housing, Neighbourhood and Building Services",Premises-Related Expenditure,Energy costs,09-Jul-21,6516586,9.95,PUBLIC LIMITED COMPANY,EDF ENERGY CUSTOMERS PLC,300000020460069
Portsmouth City Council,PCC,Adult Social Care,Physical Support Older People (85+),Adult Services,Third Party Payments,Other establishments,20-Jul-21,6518108,17.76,SUPPLIER,AGINCARE UK,300000020481869
Portsmouth City Council,PCC,Adult Social Care,Physical Support Older People (85+),Adult Services,Third Party Payments,Other establishments,20-Jul-21,6518108,586.08,SUPPLIER,AGINCARE UK,300000020481869
Portsmouth City Council,PCC,Adult Social Care,Physical Support Older People (85+),Adult Services,Third Party Payments,Other establishments,20-Jul-21,6518108,79.92,SUPPLIER,AGINCARE UK,300000020481869
Portsmouth City Council,PCC,Children's and Education Services,Primary Schools,Children's Services and Education,Premises-Related Expenditure,Energy costs,09-Jul-21,6516586,"-1,154.02",PUBLIC LIMITED COMPANY,EDF ENERGY CUSTOMERS PLC,300000020460069
Portsmouth City Council,PCC,Children's and Education Services,Primary Schools,Children's Services and Education,Premises-Related Expenditure,Energy costs,09-Jul-21,6516586,"1,157.10",PUBLIC LIMITED COMPANY,EDF ENERGY CUSTOMERS PLC,300000020460069
Portsmouth City Council,PCC,Children's and Education Services,Primary Schools,Children's Services and Education,Premises-Related Expenditure,Energy costs,09-Jul-21,6516586,"1,493.24",PUBLIC LIMITED COMPANY,EDF ENERGY CUSTOMERS PLC,300000020460069
Portsmouth City Council,PCC,Housing Revenue Account,Special Services,"Housing, Neighbourhood and Building Services",Premises-Related Expenditure,Energy costs,09-Jul-21,6516586,102.44,PUBLIC LIMITED COMPANY,EDF ENERGY CUSTOMERS PLC,300000020460069
Portsmouth City Council,PCC,Cultural and Related Services,Library Service,"Culture, Leisure & Regulatory Services",Premises-Related Expenditure,Energy costs,09-Jul-21,6516586,"-1,780.67",PUBLIC LIMITED COMPANY,EDF ENERGY CUSTOMERS PLC,300000020460069
Portsmouth City Council,PCC,Cultural and Related Services,Library Service,"Culture, Leisure & Regulatory Services",Premises-Related Expenditure,Energy costs,09-Jul-21,6516586,"1,784.77",PUBLIC LIMITED COMPANY,EDF ENERGY CUSTOMERS PLC,300000020460069
Portsmouth City Council,PCC,Cultural and Related Services,Library Service,"Culture, Leisure & Regulatory Services",Premises-Related Expenditure,Energy costs,09-Jul-21,6516586,"1,687.15",PUBLIC LIMITED COMPANY,EDF ENERGY CUSTOMERS PLC,300000020460069
Portsmouth City Council,PCC,Housing Revenue Account,Special Services,"Housing, Neighbourhood and Building Services",Premises-Related Expenditure,Energy costs,09-Jul-21,6516586,103.87,PUBLIC LIMITED COMPANY,EDF ENERGY CUSTOMERS PLC,300000020460069
Portsmouth City Council,PCC,Housing Revenue Account,Supervision and Management,"Housing, Neighbourhood and Building Services",Premises-Related Expenditure,Energy costs,09-Jul-21,6516586,-689.43,PUBLIC LIMITED COMPANY,EDF ENERGY CUSTOMERS PLC,300000020460069
Portsmouth City Council,PCC,Housing Revenue Account,Supervision and Management,"Housing, Neighbourhood and Building Services",Premises-Related Expenditure,Energy costs,09-Jul-21,6516586,690.94,PUBLIC LIMITED COMPANY,EDF ENERGY CUSTOMERS PLC,300000020460069
Portsmouth City Council,PCC,Housing Revenue Account,Supervision and Management,"Housing, Neighbourhood and Building Services",Premises-Related Expenditure,Energy costs,09-Jul-21,6516586,681.46,PUBLIC LIMITED COMPANY,EDF ENERGY CUSTOMERS PLC,300000020460069
Portsmouth City Council,PCC,Housing Revenue Account,Special Services,"Housing, Neighbourhood and Building Services",Premises-Related Expenditure,Energy costs,09-Jul-21,6516586,171.38,PUBLIC LIMITED COMPANY,EDF ENERGY CUSTOMERS PLC,300000020460069
Portsmouth City Council,PCC,Housing Revenue Account,Supervision and Management,"Housing, Neighbourhood and Building Services",Premises-Related Expenditure,Energy costs,09-Jul-21,6516586,-566.22,PUBLIC LIMITED COMPANY,EDF ENERGY CUSTOMERS PLC,300000020460069
Portsmouth City Council,PCC,Housing Revenue Account,Supervision and Management,"Housing, Neighbourhood and Building Services",Premises-Related Expenditure,Energy costs,09-Jul-21,6516586,568.19,PUBLIC LIMITED COMPANY,EDF ENERGY CUSTOMERS PLC,300000020460069
Portsmouth City Council,PCC,Highways and Transport Services,"Environment, Safety and Routine Maintenance",Regeneration,Premises-Related Expenditure,Energy costs,12-Jul-21,6516754,706.93,PUBLIC LIMITED COMPANY,SCOTTISH AND SOUTHERN ENERGY PLC,300000020481543
Portsmouth City Council,PCC,Children's and Education Services,Other Education and Community Budget,Regeneration,Income,Customer and client receipts,06-Jul-21,6515867,941.16,GRANT RECEIPT,KICKSTART PROGRAM,300000113912977
Portsmouth City Council,PCC,Children's and Education Services,Other Education and Community Budget,Regeneration,Income,Customer and client receipts,06-Jul-21,6515867,941.16,GRANT RECEIPT,KICKSTART PROGRAM,300000113912977
Portsmouth City Council,PCC,Children's and Education Services,Other Education and Community Budget,Regeneration,Income,Customer and client receipts,06-Jul-21,6515867,941.16,GRANT RECEIPT,KICKSTART PROGRAM,300000113912977
Portsmouth City Council,PCC,Children's and Education Services,Safeguarding Children and Young Peoples Services,Children's Services and Education,Third Party Payments,Other establishments,12-Jul-21,6516817,813.04,SUPPLIER,LOVE146,300000020473545
Portsmouth City Council,PCC,Children's and Education Services,Other Children and Family Services,Children's Services and Education,Third Party Payments,Other establishments,12-Jul-21,6516716,-204,SUPPLIER,ENABLE ABILITY,300000020465080
Portsmouth City Council,PCC,Children's and Education Services,Family Support Services,Children's Services and Education,Third Party Payments,Other establishments,12-Jul-21,6516716,204,SUPPLIER,ENABLE ABILITY,300000020465080
Portsmouth City Council,PCC,Children's and Education Services,Other Children and Family Services,Children's Services and Education,Third Party Payments,Other establishments,12-Jul-21,6516716,204,SUPPLIER,ENABLE ABILITY,300000020465080
Portsmouth City Council,PCC,Children's and Education Services,Safeguarding Children and Young Peoples Services,Children's Services and Education,Third Party Payments,Other establishments,12-Jul-21,6516868,-42.86,SUPPLIER,PATHWAYS TO INDEPENDENCE HOUSING (UK) LIMITED,300000020480095
Portsmouth City Council,PCC,Children's and Education Services,Safeguarding Children and Young Peoples Services,Children's Services and Education,Third Party Payments,Other establishments,12-Jul-21,6516868,-30,SUPPLIER,PATHWAYS TO INDEPENDENCE HOUSING (UK) LIMITED,300000020480095
Portsmouth City Council,PCC,Children's and Education Services,Safeguarding Children and Young Peoples Services,Children's Services and Education,Third Party Payments,Other establishments,12-Jul-21,6516868,-8.57,SUPPLIER,PATHWAYS TO INDEPENDENCE HOUSING (UK) LIMITED,300000020480095
Portsmouth City Council,PCC,Children's and Education Services,Safeguarding Children and Young Peoples Services,Children's Services and Education,Third Party Payments,Other establishments,12-Jul-21,6516868,-4.29,SUPPLIER,PATHWAYS TO INDEPENDENCE HOUSING (UK) LIMITED,300000020480095
Portsmouth City Council,PCC,Children's and Education Services,Safeguarding Children and Young Peoples Services,Children's Services and Education,Third Party Payments,Other establishments,12-Jul-21,6516868,-0.17,SUPPLIER,PATHWAYS TO INDEPENDENCE HOUSING (UK) LIMITED,300000020480095
Portsmouth City Council,PCC,Children's and Education Services,Safeguarding Children and Young Peoples Services,Children's Services and Education,Third Party Payments,Other establishments,12-Jul-21,6516868,49.29,SUPPLIER,PATHWAYS TO INDEPENDENCE HOUSING (UK) LIMITED,300000020480095
Portsmouth City Council,PCC,Children's and Education Services,Safeguarding Children and Young Peoples Services,Children's Services and Education,Third Party Payments,Other establishments,12-Jul-21,6516868,98.57,SUPPLIER,PATHWAYS TO INDEPENDENCE HOUSING (UK) LIMITED,300000020480095
Portsmouth City Council,PCC,Children's and Education Services,Safeguarding Children and Young Peoples Services,Children's Services and Education,Third Party Payments,Other establishments,12-Jul-21,6516868,345,SUPPLIER,PATHWAYS TO INDEPENDENCE HOUSING (UK) LIMITED,300000020480095
Portsmouth City Council,PCC,Children's and Education Services,Safeguarding Children and Young Peoples Services,Children's Services and Education,Third Party Payments,Other establishments,12-Jul-21,6516868,179.14,SUPPLIER,PATHWAYS TO INDEPENDENCE HOUSING (UK) LIMITED,300000020480095
Portsmouth City Council,PCC,Children's and Education Services,Safeguarding Children and Young Peoples Services,Children's Services and Education,Third Party Payments,Other establishments,12-Jul-21,6516868,358.29,SUPPLIER,PATHWAYS TO INDEPENDENCE HOUSING (UK) LIMITED,300000020480095
Portsmouth City Council,PCC,Children's and Education Services,Safeguarding Children and Young Peoples Services,Children's Services and Education,Third Party Payments,Other establishments,12-Jul-21,6516868,"1,254.00",SUPPLIER,PATHWAYS TO INDEPENDENCE HOUSING (UK) LIMITED,300000020480095
Portsmouth City Council,PCC,Children's and Education Services,Children Looked After,Children's Services and Education,Third Party Payments,Other establishments,15-Jul-21,6517720,0.02,SUPPLIER,FOSTERING SOLUTIONS,300000009793967
Portsmouth City Council,PCC,Children's and Education Services,Children Looked After,Children's Services and Education,Third Party Payments,Other establishments,15-Jul-21,6517720,407.89,SUPPLIER,FOSTERING SOLUTIONS,300000009793967
Portsmouth City Council,PCC,Children's and Education Services,Children Looked After,Children's Services and Education,Third Party Payments,Other establishments,15-Jul-21,6517720,509.86,SUPPLIER,FOSTERING SOLUTIONS,300000009793967
Portsmouth City Council,PCC,Children's and Education Services,Children Looked After,Children's Services and Education,Third Party Payments,Other establishments,15-Jul-21,6517720,"2,141.43",SUPPLIER,FOSTERING SOLUTIONS,300000009793967
Portsmouth City Council,PCC,Children's and Education Services,Safeguarding Children and Young Peoples Services,Children's Services and Education,Third Party Payments,Other establishments,15-Jul-21,6517720,-0.05,SUPPLIER,FOSTERING SOLUTIONS,300000009793967
Portsmouth City Council,PCC,Children's and Education Services,Safeguarding Children and Young Peoples Services,Children's Services and Education,Third Party Payments,Other establishments,15-Jul-21,6517720,254.29,SUPPLIER,FOSTERING SOLUTIONS,300000009793967
Portsmouth City Council,PCC,Children's and Education Services,Safeguarding Children and Young Peoples Services,Children's Services and Education,Third Party Payments,Other establishments,15-Jul-21,6517720,317.86,SUPPLIER,FOSTERING SOLUTIONS,300000009793967
Portsmouth City Council,PCC,Children's and Education Services,Safeguarding Children and Young Peoples Services,Children's Services and Education,Third Party Payments,Other establishments,15-Jul-21,6517720,"1,335.00",SUPPLIER,FOSTERING SOLUTIONS,300000009793967
Portsmouth City Council,PCC,Children's and Education Services,Children Looked After,Children's Services and Education,Third Party Payments,Other establishments,15-Jul-21,6517720,0.75,SUPPLIER,FOSTERING SOLUTIONS,300000009793967
Portsmouth City Council,PCC,Children's and Education Services,Children Looked After,Children's Services and Education,Third Party Payments,Other establishments,15-Jul-21,6517720,407.79,SUPPLIER,FOSTERING SOLUTIONS,300000009793967
Portsmouth City Council,PCC,Children's and Education Services,Children Looked After,Children's Services and Education,Third Party Payments,Other establishments,15-Jul-21,6517720,509.74,SUPPLIER,FOSTERING SOLUTIONS,300000009793967
Portsmouth City Council,PCC,Children's and Education Services,Children Looked After,Children's Services and Education,Third Party Payments,Other establishments,15-Jul-21,6517720,"2,140.92",SUPPLIER,FOSTERING SOLUTIONS,300000009793967
Portsmouth City Council,PCC,Children's and Education Services,Children Looked After,Children's Services and Education,Third Party Payments,Other establishments,15-Jul-21,6517720,0.07,SUPPLIER,FOSTERING SOLUTIONS,300000009793967
Portsmouth City Council,PCC,Children's and Education Services,Children Looked After,Children's Services and Education,Third Party Payments,Other establishments,15-Jul-21,6517720,429.35,SUPPLIER,FOSTERING SOLUTIONS,300000009793967
Portsmouth City Council,PCC,Children's and Education Services,Children Looked After,Children's Services and Education,Third Party Payments,Other establishments,15-Jul-21,6517720,536.69,SUPPLIER,FOSTERING SOLUTIONS,300000009793967
Portsmouth City Council,PCC,Children's and Education Services,Children Looked After,Children's Services and Education,Third Party Payments,Other establishments,15-Jul-21,6517720,"2,254.11",SUPPLIER,FOSTERING SOLUTIONS,300000009793967
Portsmouth City Council,PCC,Children's and Education Services,Children Looked After,Children's Services and Education,Third Party Payments,Other establishments,15-Jul-21,6517720,0.07,SUPPLIER,FOSTERING SOLUTIONS,300000009793967
Portsmouth City Council,PCC,Children's and Education Services,Children Looked After,Children's Services and Education,Third Party Payments,Other establishments,15-Jul-21,6517720,429.35,SUPPLIER,FOSTERING SOLUTIONS,300000009793967
Portsmouth City Council,PCC,Children's and Education Services,Children Looked After,Children's Services and Education,Third Party Payments,Other establishments,15-Jul-21,6517720,536.69,SUPPLIER,FOSTERING SOLUTIONS,300000009793967
Portsmouth City Council,PCC,Children's and Education Services,Children Looked After,Children's Services and Education,Third Party Payments,Other establishments,15-Jul-21,6517720,"2,254.11",SUPPLIER,FOSTERING SOLUTIONS,300000009793967
Portsmouth City Council,PCC,Children's and Education Services,Family Support Services,Children's Services and Education,Third Party Payments,Other establishments,12-Jul-21,6516716,-68,SUPPLIER,ENABLE ABILITY,300000020465080
Portsmouth City Council,PCC,Children's and Education Services,Family Support Services,Children's Services and Education,Third Party Payments,Other establishments,12-Jul-21,6516716,136,SUPPLIER,ENABLE ABILITY,300000020465080
Portsmouth City Council,PCC,Children's and Education Services,Other Children and Family Services,Children's Services and Education,Third Party Payments,Other establishments,12-Jul-21,6516716,-102,SUPPLIER,ENABLE ABILITY,300000020465080
Portsmouth City Council,PCC,Children's and Education Services,Family Support Services,Children's Services and Education,Third Party Payments,Other establishments,12-Jul-21,6516716,272,SUPPLIER,ENABLE ABILITY,300000020465080
Portsmouth City Council,PCC,Children's and Education Services,Other Children and Family Services,Children's Services and Education,Third Party Payments,Other establishments,12-Jul-21,6516716,102,SUPPLIER,ENABLE ABILITY,300000020465080
Portsmouth City Council,PCC,Children's and Education Services,Family Support Services,Children's Services and Education,Third Party Payments,Other establishments,12-Jul-21,6516716,272,SUPPLIER,ENABLE ABILITY,300000020465080
Portsmouth City Council,PCC,Children's and Education Services,Family Support Services,Children's Services and Education,Third Party Payments,Other establishments,12-Jul-21,6516716,408,SUPPLIER,ENABLE ABILITY,300000020465080
Portsmouth City Council,PCC,Children's and Education Services,Other Children and Family Services,Children's Services and Education,Third Party Payments,Other establishments,12-Jul-21,6516716,-561,SUPPLIER,ENABLE ABILITY,300000020465080
Portsmouth City Council,PCC,Children's and Education Services,Family Support Services,Children's Services and Education,Third Party Payments,Other establishments,12-Jul-21,6516716,272,SUPPLIER,ENABLE ABILITY,300000020465080
Portsmouth City Council,PCC,Children's and Education Services,Other Children and Family Services,Children's Services and Education,Third Party Payments,Other establishments,12-Jul-21,6516716,204,SUPPLIER,ENABLE ABILITY,300000020465080
Portsmouth City Council,PCC,Children's and Education Services,Other Children and Family Services,Children's Services and Education,Third Party Payments,Other establishments,12-Jul-21,6516716,357,SUPPLIER,ENABLE ABILITY,300000020465080
Portsmouth City Council,PCC,Children's and Education Services,Other Children and Family Services,Children's Services and Education,Third Party Payments,Other establishments,12-Jul-21,6516716,-102,SUPPLIER,ENABLE ABILITY,300000020465080
Portsmouth City Council,PCC,Children's and Education Services,Family Support Services,Children's Services and Education,Third Party Payments,Other establishments,12-Jul-21,6516716,-68,SUPPLIER,ENABLE ABILITY,300000020465080
Portsmouth City Council,PCC,Children's and Education Services,Other Children and Family Services,Children's Services and Education,Third Party Payments,Other establishments,12-Jul-21,6516716,102,SUPPLIER,ENABLE ABILITY,300000020465080
Portsmouth City Council,PCC,Children's and Education Services,Family Support Services,Children's Services and Education,Third Party Payments,Other establishments,12-Jul-21,6516716,272,SUPPLIER,ENABLE ABILITY,300000020465080
Portsmouth City Council,PCC,Children's and Education Services,Children Looked After,Children's Services and Education,Third Party Payments,Other establishments,16-Jul-21,6517841,457.14,SUPPLIER,WESTERN PATHWAYS LIMITED,300000020475374
Portsmouth City Council,PCC,Children's and Education Services,Children Looked After,Children's Services and Education,Third Party Payments,Other establishments,16-Jul-21,6517841,"1,142.86",SUPPLIER,WESTERN PATHWAYS LIMITED,300000020475374
Portsmouth City Council,PCC,Children's and Education Services,Safeguarding Children and Young Peoples Services,Children's Services and Education,Third Party Payments,Other establishments,16-Jul-21,6517841,228.57,SUPPLIER,WESTERN PATHWAYS LIMITED,300000020475374
Portsmouth City Council,PCC,Children's and Education Services,Safeguarding Children and Young Peoples Services,Children's Services and Education,Third Party Payments,Other establishments,16-Jul-21,6517841,571.43,SUPPLIER,WESTERN PATHWAYS LIMITED,300000020475374
Portsmouth City Council,PCC,Children's and Education Services,Safeguarding Children and Young Peoples Services,Children's Services and Education,Third Party Payments,Other establishments,16-Jul-21,6517841,228.57,SUPPLIER,WESTERN PATHWAYS LIMITED,300000020475374
Portsmouth City Council,PCC,Children's and Education Services,Safeguarding Children and Young Peoples Services,Children's Services and Education,Third Party Payments,Other establishments,16-Jul-21,6517841,571.43,SUPPLIER,WESTERN PATHWAYS LIMITED,300000020475374
Portsmouth City Council,PCC,Children's and Education Services,Special Schools,Children's Services and Education,Third Party Payments,Other establishments,23-Jul-21,6519131,"169,369.76",SUPPLIER,SOLENT ACADEMIES TRUST,300000020477417
Portsmouth City Council,PCC,Children's and Education Services,Special Schools,Children's Services and Education,Third Party Payments,Other establishments,23-Jul-21,6519131,"25,273.20",SUPPLIER,SOLENT ACADEMIES TRUST,300000020477417
Portsmouth City Council,PCC,Children's and Education Services,Special Schools,Children's Services and Education,Third Party Payments,Other establishments,23-Jul-21,6519131,"17,266.64",SUPPLIER,SOLENT ACADEMIES TRUST,300000020477417
Portsmouth City Council,PCC,Children's and Education Services,Special Schools,Children's Services and Education,Third Party Payments,Other establishments,26-Jul-21,6519415,"189,943.36",SUPPLIER,SOLENT ACADEMIES TRUST,300000020477417
Portsmouth City Council,PCC,Children's and Education Services,Special Schools,Children's Services and Education,Third Party Payments,Other establishments,26-Jul-21,6519415,"24,425.60",SUPPLIER,SOLENT ACADEMIES TRUST,300000020477417
